Department Family,Entity,Date of Payment,Expense Type,Expense Area,Supplier,Voluntary & Community Sector,SME Class,Sole Trader,D-U-N-S Number,Transaction number,PSPES Level 2,Narrative,Postal Code,Amount in Sterling,Grant?
Communities & Local Government,DCLG,01/03/2017,Cap Grants to Local Authorities (DEL),Decentralisation and Local Growth,PORTSMOUTH CITY COUNCIL,,Public Bodies,,211183082,2100271227,,Payment to Portsmouth CC for Solent LEP - Centenary Quay,PO1 2AR,"7,676,000.00",Yes
Communities & Local Government,DCLG,01/03/2017,ERDF Work in Progress � Resource,Decentralisation and Local Growth,BLUE ORCHID ENTERPRISE,,Small,,,7700000186,,ERDF grant payment,L1 3BT,"89,873.39",Yes
Communities & Local Government,DCLG,01/03/2017,ERDF Work in Progress � Resource,Decentralisation and Local Growth,BLUE ORCHID ENTERPRISE,,Small,,,7700000187,,ERDF grant payment,L1 3BT,"105,077.89",Yes
Communities & Local Government,DCLG,01/03/2017,ERDF Work in Progress � Resource,Decentralisation and Local Growth,MARKETING BIRMINGHAM LTD,,,,,7700000188,,ERDF grant payment,B1 2ND,"154,733.06",Yes
Communities & Local Government,DCLG,01/03/2017,EXP � PURCHASE OF GOODS /SERVICES R & D,Housing & Planning,BUILDING RESEARCH ESTABLISHMENT,,Large,,896495033,5106226684,Research,Part 1: Fire Incident Investigations,WD25 9XX,"17,710.00",
Communities & Local Government,DCLG,01/03/2017,IT - Service Contracts,Corporate Services,SPEECH CENTRE,,Micro,,423301022,5106226647,IT Managed / Outsourced Services,Assistive Technology Consultancy,TN6 1DL,790.00,
Communities & Local Government,DCLG,01/03/2017,IT - Service Contracts,Corporate Services,STATIONERY OFFICE LTD,,Large,,779375633,5106226677,IT Managed / Outsourced Services,3rd Line App Support 12mths,NR3 1PD,"9,317.00",
Communities & Local Government,DCLG,01/03/2017,IT - Service Contracts,Local Government & Public Services,SDMC CONSULTING LTD,,Micro,,,5106226488,IT Managed / Outsourced Services,Support Services re: Financial Analyzer,GU19 5AS,"4,494.00",
Communities & Local Government,DCLG,01/03/2017,IT Maintenance,Corporate Services,ORACLE CORPORATION UK LTD,,Large,,291601524,5106226669,ICT Services,Oracle Hardware Support T4-1 (x2),RG6 1RA,"4,310.98",
Communities & Local Government,DCLG,01/03/2017,Professional services,Corporate Services,ATKINS LTD,,Large,,293650339,5106226670,Financial,SO18233 Support to Holocaust Memorial,KT18 5BW,"37,036.80",
Communities & Local Government,DCLG,01/03/2017,Professional services,Housing & Planning,VALUATION OFFICE AGENCY,,Public Bodies,,215253886,5106226675,Financial,Financial Checks 2016/17,W1D 5BU,764.52,
Communities & Local Government,DCLG,01/03/2017,Professional services,Local Government & Public Services,BARKER LANGHAM LTD,,Small,,,5106226666,Financial,Delivery of Concept paper,WC1X 0GB,"19,350.00",
Communities & Local Government,DCLG,01/03/2017,Training,Corporate Services,KORN FERRY HAY GROUP (CSL),,Large,,,5106226688,Development and Training,Civil Service Training,SW1X 7HG,"2,744.00",
Communities & Local Government,DCLG,01/03/2017,Training,Corporate Services,KPMG LLP (CSL),,Large,,,5106226653,Development and Training,Civil Service Training,E14 5GL,"2,500.00",
Communities & Local Government,DCLG,01/03/2017,Training,Corporate Services,KPMG LLP (CSL),,Large,,,5106226654,Development and Training,Civil Service Training,E14 5GL,"5,340.00",
Communities & Local Government,DCLG,01/03/2017,Training,Corporate Services,RADA ENTERPRISES,,Small,,519928266,5106226668,Development and Training,Civil Service Training,WC1E 7EX,650.00,
Communities & Local Government,DCLG,01/03/2017,Web Services,Corporate Services,DEXTROUS WEB LTD,,Micro,,211267270,5106226672,ICT Services,HO-Website Hosting & Support (x2 Years),N1 7NG,"1,285.44",
Communities & Local Government,DCLG,02/03/2017,IT - Service Contracts,Corporate Services,DAISY CORPORATE SERVICES LTD,,Large,,221481042,5106226723,IT Managed / Outsourced Services,FY16/17 Transition Costs Capital,BB9 5SR,482.40,
Communities & Local Government,DCLG,02/03/2017,IT - Service Contracts,Corporate Services,GAMMA TELECOM LTD,,Large,,,5106226715,IT Managed / Outsourced Services,SO12178 - Contract Capital FY 16-17,EC4M 7RD,"112,230.00",
Communities & Local Government,DCLG,02/03/2017,IT - Service Contracts,Corporate Services,STATIONERY OFFICE LTD,,Large,,779375633,5106226671,IT Managed / Outsourced Services,G-Cloud services for Datamart Statistical Data Collection,NR3 1PD,"113,390.00",
Communities & Local Government,DCLG,02/03/2017,IT - Service Contracts,Corporate Services,STATIONERY OFFICE LTD,,Large,,779375633,5106226722,IT Managed / Outsourced Services,IT Application support - Charge for DCLG Datamart,NR3 1PD,"66,912.50",
Communities & Local Government,DCLG,02/03/2017,Publicity,Corporate Services,JONES YARRELL LEADENHALL LTD,,Large,,505670265,5106226729,Advertising,Newspapers and Magazines 16/17,E3 3JH,347.37,
Communities & Local Government,DCLG,02/03/2017,Repayments of Private Sect Grant (Cap),Decentralisation and Local Growth,THARSUS ENGINEERING LTD,,,,,2300002765,,Clawback of Regional Growth Fund,NE24 5TG,"-17,620.35",
Communities & Local Government,DCLG,02/03/2017,Repayments of Private Sect Grant (Curr),Decentralisation and Local Growth,SURGICAL INNOVATIONS LTD,,Medium,,,2300002741,,RGF Recovery of grant  - ref:449c,LS16 6Q7,"-25,362.00",
Communities & Local Government,DCLG,02/03/2017,Steady State Service Provision,Housing & Planning,LOCALITY,,Medium,,347998312,5106226712,Business Process Outsourcing Services,Neighbourhood Planning & CRTB,N1 6DR,"36,792.88",
Communities & Local Government,DCLG,02/03/2017,Training,Corporate Services,NATIONAL COUNCIL FOR VOL ORGS,,Medium,,290082338,5106226702,Development and Training,Civil Service Training,N1 9RL,"5,000.00",
Communities & Local Government,DCLG,02/03/2017,Training,Corporate Services,QA  LTD,,Large,,215584661,5106226735,Development and Training,Civil Service Training,SL1 1SG,855.00,
Communities & Local Government,DCLG,02/03/2017,Utilisation of Unfunded Pension Scheme,Corporate Services,LONDON PENSIONS FUND AUTHORITY,,Public Bodies,,236915880,5106226726,Financial,Pension fund management,SE1 0LL,372.97,
Communities & Local Government,DCLG,03/03/2017,Advertising,Corporate Services,CARAT LTD,,Large,,211589882,5106226652,Advertising,Media Buying - Radio Campaign,NW1 3BF,"128,658.82",
Communities & Local Government,DCLG,03/03/2017,Advertising,Corporate Services,CARAT LTD,,Large,,211589882,5106226777,Advertising,Media Buying - Radio Campaign,NW1 3BF,"50,424.87",
Communities & Local Government,DCLG,03/03/2017,Agency Staff,Corporate Services,BROOK STREET UK LTD,,Large,,364940028,5106226758,Contingent Labour,EO Reconciliation Clerk,AL1 4JB,430.68,
Communities & Local Government,DCLG,03/03/2017,Agency Staff,Corporate Services,BROOK STREET UK LTD,,Large,,364940028,5106226760,Contingent Labour,Support worker for staff interim measure,AL1 4JB,492.77,
Communities & Local Government,DCLG,03/03/2017,Agency Staff,Corporate Services,BROOK STREET UK LTD,,Large,,364940028,5106226761,Contingent Labour,Interim Manager,AL1 4JB,678.88,
Communities & Local Government,DCLG,03/03/2017,Agency Staff,Decentralisation and Local Growth,BROOK STREET UK LTD,,Large,,364940028,5106226759,Contingent Labour,Temporary PA,AL1 4JB,880.26,
Communities & Local Government,DCLG,03/03/2017,Current Grants to Non Profit Bodies,Decentralisation and Local Growth,ASSOCIATION TOWN CENTRE MANAGEMENT,,Small,,348626995,2100271620,,Funding for Great British High Street Campaign,SE1 0EH,"3,000.00",Yes
Communities & Local Government,DCLG,03/03/2017,Current Grants to Non Profit Bodies,Local Government & Public Services,APASENTH,,,,,2100271622,,Community-Based English language Programme,E14 7FF,"25,392.00",Yes
Communities & Local Government,DCLG,03/03/2017,Current Grants to Non Profit Bodies,Local Government & Public Services,ONE20,Yes,Small,,217857528,2100271624,,Community-Based English language Programme,WC1H 8BS,"21,000.00",Yes
Communities & Local Government,DCLG,03/03/2017,Electronic Data Storage,Corporate Services,TNT UK LIMITED,,Large,,,5106226775,Warehousing and Storage,Visions electronic storage,BL10 9GR,"4,272.10",
Communities & Local Government,DCLG,03/03/2017,ERDF Work in Progress � Capital,Decentralisation and Local Growth,INSIDER KNOWLEDGE LTD,,,,,2300002666,,ERDF grant writeoff,TR15 3AJ,"-125,999.97",Yes
Communities & Local Government,DCLG,03/03/2017,ERDF Work in Progress � Capital,Decentralisation and Local Growth,KROWJI LTD,,,,,2300002738,,ERDF grant recovery,TR15 3AJ,"-293,382.40",Yes
Communities & Local Government,DCLG,03/03/2017,ERDF Work in Progress � Capital,Decentralisation and Local Growth,NATURE PAINT LIMITED,,Small,,,2300002668,,ERDF grant writeoff,TR27 5JR,"-26,135.50",Yes
Communities & Local Government,DCLG,03/03/2017,ERDF Work in Progress � Capital,Decentralisation and Local Growth,SLEABRIDGE LTD,,Small,,,2300002665,,ERDF grant writeoff,TA18 7HE,"-14,957.80",Yes
Communities & Local Government,DCLG,03/03/2017,ERDF Work in Progress � Capital,Decentralisation and Local Growth,TRADEWIND TURBINES LIMITED,,,,,2300002667,,ERDF grant writeoff,EX2 8QE,"-111,999.80",Yes
Communities & Local Government,DCLG,03/03/2017,ERDF Work in Progress � Resource,Decentralisation and Local Growth,NORTHUMBERLAND COUNTY COUNCIL,,,,,2300002647,,ERDF grant writeoff,NE61 2EF,"-2,207,669.86",Yes
Communities & Local Government,DCLG,03/03/2017,ERDF Work in Progress � Resource,Decentralisation and Local Growth,SOCIAL ENTERPRISE NORTH WEST,,,,,2300002206,,ERDF grant writeoff,L2 2AH,"-1,472,653.44",Yes
Communities & Local Government,DCLG,03/03/2017,EXP � PURCHASE OF GOODS /SERVICES R & D,Housing & Planning,OVE ARUP & PARTNERS,,Large,,221940898,5106226748,Research,Study on Dangerous Substances,W1P 6BQ,"16,179.00",
Communities & Local Government,DCLG,03/03/2017,EXP � PURCHASE OF GOODS /SERVICES R & D,Local Government & Public Services,ECONOMIC & SOCIAL RESEARCH CNCL,,Public Bodies,,239878051,5106226763,Research,Research - What Works Centre for Wellbeing,SN2 1UJ,"96,400.00",
Communities & Local Government,DCLG,03/03/2017,EXP � PURCHASE OF GOODS /SERVICES R & D,Local Government & Public Services,ECONOMIC & SOCIAL RESEARCH CNCL,,Public Bodies,,239878051,5106226763,Research,Research - What Works Centre for Wellbeing,SN2 1UJ,"3,600.00",
Communities & Local Government,DCLG,03/03/2017,EXP � PURCHASE OF GOODS /SERVICES R & D,Local Government & Public Services,MARKET & OPINION RESEARCH INT LTD,,Large,,227257185,5106226753,Research,Year 2 2016/17 Milestone 1,E1W 1YW,"6,466.00",
Communities & Local Government,DCLG,03/03/2017,IT - Service Contracts,Corporate Services,DAISY CORPORATE SERVICES LTD,,Large,,221481042,5106226772,IT Managed / Outsourced Services,FY16/17 Transition Costs Resource,BB9 5SR,"6,264.00",
Communities & Local Government,DCLG,03/03/2017,IT - Service Contracts,Corporate Services,DAISY CORPORATE SERVICES LTD,,Large,,221481042,5106226776,IT Managed / Outsourced Services,FY16/17 Transition Costs Capital,BB9 5SR,540.00,
Communities & Local Government,DCLG,03/03/2017,IT - Service Contracts,Corporate Services,FUJITSU SERVICES LTD,,Large,,423375062,5106226708,IT Managed / Outsourced Services,LOGASnet Change Budget FY16/17,WA3 6GD,741.90,
Communities & Local Government,DCLG,03/03/2017,Printing,Corporate Services,WILLIAMS LEA LIMITED,,Large,,393456413,5106226768,Printing Services,Year 3 Print services (0% VAT),NR3 1PD,797.48,
Communities & Local Government,DCLG,03/03/2017,Professional services,Local Government & Public Services,MALCOLM READING CONSULTANTS,,Micro,,424223282,5106226299,Financial,Technical Contract Management  Support,EC1N 6RY,"14,073.90",
Communities & Local Government,DCLG,03/03/2017,Publications,Corporate Services,JONES YARRELL LEADENHALL LTD,,Large,,505670265,5106226750,Learning and Development Materials,JYL Printed Pub 16/17 Extenstion,E3 3JH,366.54,
Communities & Local Government,DCLG,03/03/2017,Research,Corporate Services,CABINET OFFICE,,Public Bodies,,232159186,5106226764,Research,People Survey Costs 2016-17,FY5 3TA,"25,084.11",
Communities & Local Government,DCLG,03/03/2017,Travel and Subsistence Account,Corporate Services,DIAL A CAB,,Medium,,225338235,2100271627,Business Travel,Official Travel & Subsistence,N1 6AH,183.18,
Communities & Local Government,DCLG,03/03/2017,Travel and Subsistence Account,Corporate Services,DIAL A CAB,,Medium,,225338235,2100271627,Business Travel,Official Travel & Subsistence,N1 6AH,351.64,
Communities & Local Government,DCLG,03/03/2017,Travel and Subsistence Account,Corporate Services,DIAL A CAB,,Medium,,225338235,2100271627,Business Travel,Official Travel & Subsistence,N1 6AH,33.68,
Communities & Local Government,DCLG,03/03/2017,Travel and Subsistence Account,"Strategy, Communications and Private Office",DIAL A CAB,,Medium,,225338235,2100271627,Business Travel,Official Travel & Subsistence,N1 6AH,68.35,
Communities & Local Government,DCLG,03/03/2017,Vehicle hire,Corporate Services,HAYMARKET PUBLISHING SERVS LTD,,Large,,516858800,5106226767,Vehicle Hire and Lease,16/17 Lease Hire,TW1 3SP,"5,394.49",
Communities & Local Government,DCLG,06/03/2017,Advertising,Corporate Services,CARAT LTD,,Large,,211589882,5106226788,Advertising,Media Buying - Radio Campaign,NW1 3BF,"81,798.33",
Communities & Local Government,DCLG,06/03/2017,Agency Staff,Corporate Services,CAPITA BUS. SERV. LTD (CON LAB),,Large,,,5106226780,Contingent Labour,Interim Manager,DL1 9HB,"6,600.00",
Communities & Local Government,DCLG,06/03/2017,Agency Staff,Corporate Services,CAPITA BUS. SERV. LTD (CON LAB),,Large,,,5106226781,Contingent Labour,Interim Manager,DL1 9HB,"1,884.29",
Communities & Local Government,DCLG,06/03/2017,Agency Staff,Corporate Services,INTERQUEST GROUP UK LIMITED,,Large,,423935241,5106226790,IT Managed / Outsourced Services,SAP Support Services,EC1N 8UA,"11,194.34",
Communities & Local Government,DCLG,06/03/2017,Agency Staff,Decentralisation and Local Growth,CAPITA BUS. SERV. LTD (CON LAB),,Large,,,5106226782,Contingent Labour,Interim Manager,DL1 9HB,"2,814.34",
Communities & Local Government,DCLG,06/03/2017,Agency Staff,Housing & Planning,CAPITA BUS. SERV. LTD (CON LAB),,Large,,,5106226779,Contingent Labour,Interim Manager,DL1 9HB,"1,705.38",
Communities & Local Government,DCLG,06/03/2017,Agency Staff,Local Government & Public Services,CAPITA BUS. SERV. LTD (CON LAB),,Large,,,5106226784,Contingent Labour,Interim Manager,DL1 9HB,"5,369.21",
Communities & Local Government,DCLG,06/03/2017,Cap Grants to Local Authorities (DEL),Decentralisation and Local Growth,TEES VALLEY COMBINED AUTHORITY,,,,,2100271172,,Payment to Tees Valley Combined Auth for SSI steel legacy,TS17 6QY,"6,491,531.00",Yes
Communities & Local Government,DCLG,06/03/2017,Current (non AEF) Grants to Local Authorities,Local Government & Public Services,CORNWALL COUNCIL,,,,211334404,2100271656,,Cornish Culture Fund,TR1 3AY,"50,000.00",Yes
Communities & Local Government,DCLG,06/03/2017,Current Grants to Non Profit Bodies,Housing & Planning,ADUR DC,,,,227472891,5000363503,,Domestic Abuse Grant Payment,BN11 1HA,"24,402.00",Yes
Communities & Local Government,DCLG,06/03/2017,Current Grants to Non Profit Bodies,Housing & Planning,BARKING & DAGENHAM LB (HSG),,,,217142293,5000363453,,Domestic Abuse Grant Payment,RM10 7BY,"11,669.00",Yes
Communities & Local Government,DCLG,06/03/2017,Current Grants to Non Profit Bodies,Housing & Planning,BASILDON BOROUGH COUNCIL,,,,,5000363509,,Domestic Abuse Grant Payment,SS14 0DF,"250,000.00",Yes
Communities & Local Government,DCLG,06/03/2017,Current Grants to Non Profit Bodies,Housing & Planning,BATH & NE SOMERSET DC (HSG),,,,214502499,5000363456,,Domestic Abuse Grant Payment,BA1 5AW,"12,750.00",Yes
Communities & Local Government,DCLG,06/03/2017,Current Grants to Non Profit Bodies,Housing & Planning,BOURNEMOUTH DC,,,,,5000363514,,Domestic Abuse Grant Payment,BH2 6EB,"11,416.00",Yes
Communities & Local Government,DCLG,06/03/2017,Current Grants to Non Profit Bodies,Housing & Planning,BRIGHTON & HOVE CITY COUNCIL,,Large,,228455218,5000363517,,Domestic Abuse Grant Payment,BN3 2LS,"1,634.00",Yes
Communities & Local Government,DCLG,06/03/2017,Current Grants to Non Profit Bodies,Housing & Planning,BRISTOL CITY CNCL (HSG),,,,211103882,5000363459,,Domestic Abuse Grant Payment,BS99 7BL,"40,000.00",Yes
Communities & Local Government,DCLG,06/03/2017,Current Grants to Non Profit Bodies,Housing & Planning,CAMBRIDGE CITY COUNCIL,,,,210357534,5000363520,,Domestic Abuse Grant Payment,CB1 0JH,"126,000.00",Yes
Communities & Local Government,DCLG,06/03/2017,Current Grants to Non Profit Bodies,Housing & Planning,CANTERBURY CITY CNCL,,,,,5000363462,,Domestic Abuse Grant Payment,CT1 1YW,"14,013.00",Yes
Communities & Local Government,DCLG,06/03/2017,Current Grants to Non Profit Bodies,Housing & Planning,CARLISLE CITY CNCL,,,,227471059,5000363466,,Domestic Abuse Grant Payment,CA3 8QG,"366,620.00",Yes
Communities & Local Government,DCLG,06/03/2017,Current Grants to Non Profit Bodies,Housing & Planning,COLCHESTER BC,,,,,5000363525,,Domestic Abuse Grant Payment,CO3 3WG,"50,672.00",Yes
Communities & Local Government,DCLG,06/03/2017,Current Grants to Non Profit Bodies,Housing & Planning,CORNWALL UNITARY AUTHORITY,,,,211334404,5000363640,,Domestic Abuse Grant Payment,TR1 3AY,"21,000.00",Yes
Communities & Local Government,DCLG,06/03/2017,Current Grants to Non Profit Bodies,Housing & Planning,CROYDON LB,,,,212419973,5000363530,,Domestic Abuse Grant Payment,CR9 3JS,"18,570.00",Yes
Communities & Local Government,DCLG,06/03/2017,Current Grants to Non Profit Bodies,Housing & Planning,DERBYSHIRE COUNTYCOUNCIL,,,,232152967,5000363532,,Domestic Abuse Grant Payment,DE4 3AG,"30,392.00",Yes
Communities & Local Government,DCLG,06/03/2017,Current Grants to Non Profit Bodies,Housing & Planning,DORSET COUNTY CNCL,,,,225431279,5000363537,,Domestic Abuse Grant Payment,DT1 1XJ,"17,249.00",Yes
Communities & Local Government,DCLG,06/03/2017,Current Grants to Non Profit Bodies,Housing & Planning,EAST SUSSEX COUNTY CNCL,,,,,5000363540,,Domestic Abuse Grant Payment,BN7 1SF,"8,236.00",Yes
Communities & Local Government,DCLG,06/03/2017,Current Grants to Non Profit Bodies,Housing & Planning,ENFIELD LB,,,,,5000363543,,Domestic Abuse Grant Payment,EN1 3XF,"43,000.00",Yes
Communities & Local Government,DCLG,06/03/2017,Current Grants to Non Profit Bodies,Housing & Planning,ESSEX COUNTY CNCL,,,,233572986,5000363547,,Domestic Abuse Grant Payment,CM1 1JZ,"19,494.00",Yes
Communities & Local Government,DCLG,06/03/2017,Current Grants to Non Profit Bodies,Housing & Planning,GREENWICH LB,,,,,5000363549,,Domestic Abuse Grant Payment,SE18 6HQ,"7,700.00",Yes
Communities & Local Government,DCLG,06/03/2017,Current Grants to Non Profit Bodies,Housing & Planning,HART DC,,,,229723895,5000363554,,Domestic Abuse Grant Payment,GU13 8AE,"21,410.00",Yes
Communities & Local Government,DCLG,06/03/2017,Current Grants to Non Profit Bodies,Housing & Planning,HAVANT BC,,,,211047543,5000363556,,Domestic Abuse Grant Payment,PO9 2AX,"21,853.00",Yes
Communities & Local Government,DCLG,06/03/2017,Current Grants to Non Profit Bodies,Housing & Planning,HEREFORDSHIRE COUNCIL,,,,,5000363469,,Domestic Abuse Grant Payment,HR4 0XH,"8,483.00",Yes
Communities & Local Government,DCLG,06/03/2017,Current Grants to Non Profit Bodies,Housing & Planning,HERTFORDSHIRE COUNTY CNCL,,,,210659897,5000363561,,Domestic Abuse Grant Payment,SG13 8DQ,"100,000.00",Yes
Communities & Local Government,DCLG,06/03/2017,Current Grants to Non Profit Bodies,Housing & Planning,ISLINGTON LB,,,,225716729,5000363566,,Domestic Abuse Grant Payment,N1 1XR,"20,235.00",Yes
Communities & Local Government,DCLG,06/03/2017,Current Grants to Non Profit Bodies,Housing & Planning,KINGS LYNN & WEST NORFOLK BC,,,,236417671,5000363473,,Domestic Abuse Grant Payment,PE30 1EX,"20,438.00",Yes
Communities & Local Government,DCLG,06/03/2017,Current Grants to Non Profit Bodies,Housing & Planning,LANCASHIRE COUNTY CNCL,,,,233136584,5000363573,,Domestic Abuse Grant Payment,PR1 8RD,"103,106.00",Yes
Communities & Local Government,DCLG,06/03/2017,Current Grants to Non Profit Bodies,Housing & Planning,LEEDS CITY CNCL,,Micro,,,5000363576,,Domestic Abuse Grant Payment,LS1 1JF,"47,840.00",Yes
Communities & Local Government,DCLG,06/03/2017,Current Grants to Non Profit Bodies,Housing & Planning,LEICESTER CITY CNCL,,,,228219960,5000363475,,Domestic Abuse Grant Payment,LE1 1FZ,"12,059.00",Yes
Communities & Local Government,DCLG,06/03/2017,Current Grants to Non Profit Bodies,Housing & Planning,LEWISHAM LB (HSG),,Large,,235653300,5000363479,,Domestic Abuse Grant Payment,SE6 4RU,"24,913.00",Yes
Communities & Local Government,DCLG,06/03/2017,Current Grants to Non Profit Bodies,Housing & Planning,LINCOLNSHIRE COUNTY COUNCIL,,,,,5000363580,,Domestic Abuse Grant Payment,LN2 1DY,"81,899.00",Yes
Communities & Local Government,DCLG,06/03/2017,Current Grants to Non Profit Bodies,Housing & Planning,LOCALITY,,Medium,,347998312,2300002768,,Recovery of underspend,N1 6DR,"-4,990.86",Yes
Communities & Local Government,DCLG,06/03/2017,Current Grants to Non Profit Bodies,Housing & Planning,LONDON BOROUGH OF BARNET,,,,211049507,5000363507,,Domestic Abuse Grant Payment,NN1 1NP,"25,785.00",Yes
Communities & Local Government,DCLG,06/03/2017,Current Grants to Non Profit Bodies,Housing & Planning,LONDON BOROUGH OF LAMBETH,,,,228216479,5000363571,,Domestic Abuse Grant Payment,SW2 1RL,"20,000.00",Yes
Communities & Local Government,DCLG,06/03/2017,Current Grants to Non Profit Bodies,Housing & Planning,LONDON BOROUGH OF NEWHAM,,,,211381004,5000363592,,Domestic Abuse Grant Payment,E16 2QU,"22,845.00",Yes
Communities & Local Government,DCLG,06/03/2017,Current Grants to Non Profit Bodies,Housing & Planning,LONDON BOROUGH OF REDBRIDGE,,,,211341417,5000363601,,Domestic Abuse Grant Payment,IG1 1NN,"10,050.00",Yes
Communities & Local Government,DCLG,06/03/2017,Current Grants to Non Profit Bodies,Housing & Planning,LUTON BC,,,,365112155,5000363583,,Domestic Abuse Grant Payment,LU1 2BQ,"7,956.00",Yes
Communities & Local Government,DCLG,06/03/2017,Current Grants to Non Profit Bodies,Housing & Planning,MANCHESTER CITY CNCL (HSG),,,,211241393,5000363482,,Domestic Abuse Grant Payment,M60 2JR,"10,750.00",Yes
Communities & Local Government,DCLG,06/03/2017,Current Grants to Non Profit Bodies,Housing & Planning,MANSFIELD DC,,,,237922968,5000363585,,Domestic Abuse Grant Payment,NG19 7BH,"103,644.00",Yes
Communities & Local Government,DCLG,06/03/2017,Current Grants to Non Profit Bodies,Housing & Planning,NEWCASTLE UPON TYNE DC,,,,239154040,5000363588,,Domestic Abuse Grant Payment,NE99 2BN,"142,000.00",Yes
Communities & Local Government,DCLG,06/03/2017,Current Grants to Non Profit Bodies,Housing & Planning,NORTH DEVON DC,,,,,5000363486,,Domestic Abuse Grant Payment,EX32 2GR,"69,200.00",Yes
Communities & Local Government,DCLG,06/03/2017,Current Grants to Non Profit Bodies,Housing & Planning,NORTH LINCOLNSHIRE DC (HSG),,Public Bodies,,424005502,5000363490,,Domestic Abuse Grant Payment,DN16 1AB,"200,000.00",Yes
Communities & Local Government,DCLG,06/03/2017,Current Grants to Non Profit Bodies,Housing & Planning,NORWICH CITY CNCL,,,,235981297,5000363594,,Domestic Abuse Grant Payment,NR2 1NH,"20,438.00",Yes
Communities & Local Government,DCLG,06/03/2017,Current Grants to Non Profit Bodies,Housing & Planning,NOTTINGHAM CITY COUNCIL,,,,214495447,5000363598,,Domestic Abuse Grant Payment,NG2 3NG,"20,000.00",Yes
Communities & Local Government,DCLG,06/03/2017,Current Grants to Non Profit Bodies,Housing & Planning,POOLE BC (HSG),,,,,5000363492,,Domestic Abuse Grant Payment,BH15 2RU,"13,329.00",Yes
Communities & Local Government,DCLG,06/03/2017,Current Grants to Non Profit Bodies,Housing & Planning,REDCAR & CLEVELAND BOROUGH COUNCIL,,,,215175196,5000363604,,Domestic Abuse Grant Payment,TS10 1RT,"98,000.00",Yes
Communities & Local Government,DCLG,06/03/2017,Current Grants to Non Profit Bodies,Housing & Planning,REIGATE & BANSTEAD BC,,,,211313515,5000363606,,Domestic Abuse Grant Payment,RH2 OSH,"69,461.00",Yes
Communities & Local Government,DCLG,06/03/2017,Current Grants to Non Profit Bodies,Housing & Planning,RICHMOND UPON THAMES LB,,,,228868535,5000363609,,Domestic Abuse Grant Payment,TW1 3BZ,"19,477.00",Yes
Communities & Local Government,DCLG,06/03/2017,Current Grants to Non Profit Bodies,Housing & Planning,ROTHERHAM MBC,,,,211266937,5000363613,,Domestic Abuse Grant Payment,S60 1AE,"47,000.00",Yes
Communities & Local Government,DCLG,06/03/2017,Current Grants to Non Profit Bodies,Housing & Planning,SHEFFIELD CITY CNCL,,,,,5000363615,,Domestic Abuse Grant Payment,S1 1UJ,"23,500.00",Yes
Communities & Local Government,DCLG,06/03/2017,Current Grants to Non Profit Bodies,Housing & Planning,SOLIHULL MBC,,,,,5000363618,,Domestic Abuse Grant Payment,B91 3QR,"50,149.00",Yes
Communities & Local Government,DCLG,06/03/2017,Current Grants to Non Profit Bodies,Housing & Planning,SOUTHAMPTON CITY CNCL,,,,216927475,5000363620,,Domestic Abuse Grant Payment,SO14 7LY,"31,000.00",Yes
Communities & Local Government,DCLG,06/03/2017,Current Grants to Non Profit Bodies,Housing & Planning,STAFFORD BC,,,,227476934,5000363622,,Domestic Abuse Grant Payment,ST16 3AQ,"29,975.00",Yes
Communities & Local Government,DCLG,06/03/2017,Current Grants to Non Profit Bodies,Housing & Planning,STROUD DC (HSG),,,,,5000363496,,Domestic Abuse Grant Payment,GL5 4UB,"10,585.00",Yes
Communities & Local Government,DCLG,06/03/2017,Current Grants to Non Profit Bodies,Housing & Planning,SUFFOLK CC (SOCIAL CARE SERV) (H,,,,385614821,5000363499,,Domestic Abuse Grant Payment,IP4 1LH,"271,772.00",Yes
Communities & Local Government,DCLG,06/03/2017,Current Grants to Non Profit Bodies,Housing & Planning,SUTTON LB,,,,,5000363625,,Domestic Abuse Grant Payment,SM1 1EA,"3,333.00",Yes
Communities & Local Government,DCLG,06/03/2017,Current Grants to Non Profit Bodies,Housing & Planning,TAMESIDE MBC,,,,212635875,5000363627,,Domestic Abuse Grant Payment,OL6 0GA,"5,232.00",Yes
Communities & Local Government,DCLG,06/03/2017,Current Grants to Non Profit Bodies,Housing & Planning,TORBAY BC,,,,,5000363629,,Domestic Abuse Grant Payment,TQ1 3DR,"5,700.00",Yes
Communities & Local Government,DCLG,06/03/2017,Current Grants to Non Profit Bodies,Housing & Planning,TRAFFORD MBC,,,,,5000363632,,Domestic Abuse Grant Payment,M32 0TH,"64,122.00",Yes
Communities & Local Government,DCLG,06/03/2017,Current Grants to Non Profit Bodies,Housing & Planning,WALTHAM FOREST LB,,,,,5000363634,,Domestic Abuse Grant Payment,E17 4JA,"19,994.00",Yes
Communities & Local Government,DCLG,06/03/2017,Current Grants to Non Profit Bodies,Housing & Planning,WARRINGTON BC,,,,,5000363635,,Domestic Abuse Grant Payment,WA1 1BN,"239,000.00",Yes
Communities & Local Government,DCLG,06/03/2017,Current Grants to Non Profit Bodies,Housing & Planning,WEST BERKSHIRE COUNCIL,,,,364809181,5000363636,,Domestic Abuse Grant Payment,RG14 2AF,"10,410.00",Yes
Communities & Local Government,DCLG,06/03/2017,Current Grants to Non Profit Bodies,Housing & Planning,WORCESTERSHIRE COUNTY COUNCIL,,,,230359643,5000363638,,Domestic Abuse Grant Payment,WR5 2NP,"4,500.00",Yes
Communities & Local Government,DCLG,06/03/2017,Current Grants to Non Profit Bodies,Local Government & Public Services,FAYRE SHARE FOUNDATION,,,,,2100271655,,Strengthening Faith Institutions,W1K 3JF,"100,000.00",Yes
Communities & Local Government,DCLG,06/03/2017,ERDF Work in Progress � Capital,Decentralisation and Local Growth,DERBY CITY COUNCIL,,Large,,,2300002703,,ERDF grant recovery,DE1 2FE,"-63,389.79",Yes
Communities & Local Government,DCLG,06/03/2017,ERDF Work in Progress � Resource,Decentralisation and Local Growth,DERBY CITY COUNCIL,,Large,,,2300002703,,ERDF grant recovery,DE1 2FE,"-62,400.91",Yes
Communities & Local Government,DCLG,06/03/2017,ERDF Work in Progress � Resource,Decentralisation and Local Growth,DERBY CITY COUNCIL,,Large,,,2300002703,,ERDF grant recovery,DE1 2FE,-179.60,Yes
Communities & Local Government,DCLG,06/03/2017,IT - Service Contracts,Local Government & Public Services,CAPITA BUS. SERV. LTD (CON LAB),,Large,,,5106226783,Contingent Labour,SPECIALIST EXPERTISE,DL1 9HB,"8,552.88",
Communities & Local Government,DCLG,06/03/2017,IT - Software Maintenance,Corporate Services,INTERQUEST GROUP UK LIMITED,,Large,,423935241,5106226795,IT Managed / Outsourced Services,ERP Transformation service- Solaris UNIX,EC1N 8UA,"12,600.00",
Communities & Local Government,DCLG,06/03/2017,Physical Storage,Corporate Services,IRON MOUNTAIN (UK) LIMITED,,Large,,501338354,5106226791,Warehousing and Storage,Off-site Storage Tapes 2016,EH54 7DF,419.26,
Communities & Local Government,DCLG,06/03/2017,Publications,Corporate Services,DCLG GOVERNMENT PROCUREMENT CARD,,,,,1000004187,Learning and Development Materials,3 x Jabra 80 headsets for RA user,TN37 7GA,544.69,
Communities & Local Government,DCLG,06/03/2017,Steady State Service Provision,Local Government & Public Services,LOCALITY,,Medium,,347998312,5106226792,Business Process Outsourcing Services,Asset Count/Capacity Building 2016-17,N1 6DR,"61,279.00",
Communities & Local Government,DCLG,06/03/2017,Training,Corporate Services,CAPITA BUS. SERV. LTD (CSL),,Large,,215580993,5106226786,Development and Training,Civil Service Training,DL1 9HB,"4,512.19",
Communities & Local Government,DCLG,06/03/2017,Web Services,Corporate Services,PULSION TECHNOLOGY LTD,,Small,,,5106226778,ICT Services,Hosting maint & devel Year 2,G4 9XA,858.00,
Communities & Local Government,DCLG,07/03/2017,Conferences and Meeting Facilities,Housing & Planning,CENTRAL HALL WESTMINSTER LTD,,Small,,238100221,5106226803,Business Travel Accommodation,Homelessness Data development workshops,SW1H 9NH,"1,500.00",
Communities & Local Government,DCLG,07/03/2017,Current (non AEF) Grants to Local Authorities,Corporate Services,CO DURHAM & DARLINGTON FIRE RESCUE,,Public Bodies,,211684266,2100271701,,Regional Control Centre,DH1 1TW,"75,725.67",Yes
Communities & Local Government,DCLG,07/03/2017,Current (non AEF) Grants to Local Authorities,Corporate Services,GREATER LONDON AUTHORITY,,Large,,225353416,2100271700,,Regional Control Centre,SE10 1AP,"160,743.58",Yes
Communities & Local Government,DCLG,07/03/2017,Current (non AEF) Grants to Local Authorities,Corporate Services,GREATER MANCHESTER FIRE & RESCUE,,Public Bodies,,424873172,2100271699,,Regional Control Centre,M27 8US,"74,517.33",Yes
Communities & Local Government,DCLG,07/03/2017,Current Grants to Non Profit Bodies,Housing & Planning,CEL GROUP,,Medium,,394794614,5106226809,Technical Services,Home Improvement Agencies 01.04.16 - 31.03.18,WA2 0YL,"68,870.86",Yes
Communities & Local Government,DCLG,07/03/2017,ERDF Work in Progress � Capital,Decentralisation and Local Growth,MANCHESTER CITY COUNCIL,,,,,2300002724,,ERDF grant recovery,M60 2JR,"-5,275.96",Yes
Communities & Local Government,DCLG,07/03/2017,Grant in Aid to NDPBs (non budget),Corporate Services,COMMISSION LOCAL ADMINISTRATION,,,,215271508,2100271626,,DCLG Budget Contribution for the CLAE for March 17,CV1 3BH,"1,026,000.00",Yes
Communities & Local Government,DCLG,07/03/2017,Grant in Aid to NDPBs (non budget),Corporate Services,VALUATION TRIBUNAL SERVICE,,,,211218366,2100271697,,Grant in Aid to VTS - For Non Domestic Rates,E1 8EU,"800,000.00",Yes
Communities & Local Government,DCLG,07/03/2017,IT - Service Contracts,Corporate Services,ARCUS GLOBAL LIMITED,,Medium,,,5106226831,IT Managed / Outsourced Services,Design and implemantion of web services,CB4 2HY,"15,274.70",
Communities & Local Government,DCLG,07/03/2017,IT - Service Contracts,Corporate Services,KAIZEN ASSOCIATES LTD,,Micro,,217482430,5106226808,IT Managed / Outsourced Services,DataMart SAP Application Support,SE1 6SW,"4,500.00",
Communities & Local Government,DCLG,07/03/2017,IT - Software Maintenance,Corporate Services,KAIZEN ASSOCIATES LTD,,Micro,,217482430,5106226808,IT Managed / Outsourced Services,SAP Application Support 2015-17,SE1 6SW,159.98,
Communities & Local Government,DCLG,07/03/2017,IT - Software Maintenance,Corporate Services,KAIZEN ASSOCIATES LTD,,Micro,,217482430,5106226808,IT Managed / Outsourced Services,HR SAP Application Support,SE1 6SW,"30,937.12",
Communities & Local Government,DCLG,07/03/2017,Mobile phone costs,Corporate Services,ORANGE (AIRTIME/LINE RENTAL),,Large,,210707540,2100271704,Telecoms,Monthly consolidated Telephone Costs,S98 1DX,399.54,
Communities & Local Government,DCLG,07/03/2017,Physical Storage,Corporate Services,TNT UK LIMITED,,Large,,,5106226815,Warehousing and Storage,Offsite Records Storage FYR 16/17,BL10 9GR,"25,318.67",
Communities & Local Government,DCLG,07/03/2017,Physical Storage,Corporate Services,TNT UK LIMITED,,Large,,,5106226816,Warehousing and Storage,Offsite Records Storage FYR 16/17,BL10 9GR,"1,535.70",
Communities & Local Government,DCLG,07/03/2017,Physical Storage,Corporate Services,TNT UK LIMITED,,Large,,,5106226821,Warehousing and Storage,Offsite Records Storage FYR 16/17,BL10 9GR,876.06,
Communities & Local Government,DCLG,07/03/2017,Publicity,Corporate Services,PRESS ASSOCIATION,,Large,,217191704,5106226802,Advertising,PRESS ASSOCIATION (PA) 2014-17,DN14 7YH,"1,369.00",
Communities & Local Government,DCLG,07/03/2017,Steady State Service Provision,Corporate Services,CGI IT UK LIMITED,,Large,,239881618,5106226706,Business Process Outsourcing Services,Payroll Services & Licences 15/17,CF31 9AP,"7,259.23",
Communities & Local Government,DCLG,07/03/2017,Steady State Service Provision,Corporate Services,CGI IT UK LIMITED,,Large,,239881618,5106226836,Business Process Outsourcing Services,Payroll Services & Licences 15/17,CF31 9AP,215.75,
Communities & Local Government,DCLG,07/03/2017,Steady State Service Provision,Corporate Services,CGI IT UK LIMITED,,Large,,239881618,5106226837,Business Process Outsourcing Services,Payroll Services & Licences 15/17,CF31 9AP,"2,541.62",
Communities & Local Government,DCLG,07/03/2017,Training,Corporate Services,PURPLE GRIFFON LTD,,Small,,732918375,5106226787,Development and Training,Civil Service Training,LA9 4BH,595.00,
Communities & Local Government,DCLG,07/03/2017,Training,Corporate Services,PURPLE GRIFFON LTD,,Small,,732918375,5106226807,Development and Training,Civil Service Training,LA9 4BH,395.00,
Communities & Local Government,DCLG,08/03/2017,Current (non AEF) Grants to Local Authorities,Housing & Planning,DERBY CITY COUNCIL,,Large,,229641378,2100271740,,To pay for related costs to the HRA stock data col,DE1 2YL,500.00,Yes
Communities & Local Government,DCLG,08/03/2017,Current Grants to Non Profit Bodies,Local Government & Public Services,THE LINKING NETWORK,,Micro,,,2100271739,,Schools Linking project,BD1 1NN,"35,450.00",Yes
Communities & Local Government,DCLG,08/03/2017,ERDF Work in Progress � Capital,Decentralisation and Local Growth,CORNWALL COUNCIL,,,,,2300002707,,ERDF grant recovery,TR1 3AY,"-1,815.26",Yes
Communities & Local Government,DCLG,08/03/2017,ERDF Work in Progress � Capital,Decentralisation and Local Growth,UNIVERSITY OF SHEFFIELD,,,,,2300002728,,ERDF funded project within the 2007-13 YH,S60 5TZ,"-6,432.33",Yes
Communities & Local Government,DCLG,08/03/2017,IT - Service Contracts,Corporate Services,ARCUS GLOBAL LIMITED,,Medium,,,5106226877,IT Managed / Outsourced Services,DataMart Hosting charges 2016/17,CB4 2HY,"1,044.85",
Communities & Local Government,DCLG,08/03/2017,IT - Service Contracts,Corporate Services,ARCUS GLOBAL LIMITED,,Medium,,,5106226878,IT Managed / Outsourced Services,DataMart Hosting charges 2016/17,CB4 2HY,510.34,
Communities & Local Government,DCLG,08/03/2017,IT - Service Contracts,Corporate Services,ARCUS GLOBAL LIMITED,,Medium,,,5106226880,IT Managed / Outsourced Services,DataMart Hosting charges 2016/17,CB4 2HY,959.74,
Communities & Local Government,DCLG,08/03/2017,IT - Service Contracts,Corporate Services,ARCUS GLOBAL LIMITED,,Medium,,,5106226881,IT Managed / Outsourced Services,DataMart Hosting charges 2016/17,CB4 2HY,"32,633.68",
Communities & Local Government,DCLG,08/03/2017,IT - Service Contracts,Corporate Services,GAMMA TELECOM LTD,,Large,,,5106226862,Telecoms,SO12178 - Contract Capital FY 16-17,EC4M 7RD,"7,740.00",
Communities & Local Government,DCLG,08/03/2017,IT - Software Maintenance,Corporate Services,ARCH CONSULTING LTD,,Small,,543735104,5106226649,IT Managed / Outsourced Services,ARCH Software Subscription 17-18,W4 1PF,"28,152.00",
Communities & Local Government,DCLG,08/03/2017,Physical Storage,Corporate Services,TNT UK LIMITED,,Large,,,5106226867,Warehousing and Storage,Offsite Records Storage FYR 16/17,BL10 9GR,223.16,
Communities & Local Government,DCLG,08/03/2017,Printing,Corporate Services,WILLIAMS LEA LIMITED,,Large,,393456413,5106226842,Printing Services,Housing White Paper,NR3 1PD,"16,361.17",
Communities & Local Government,DCLG,08/03/2017,Repayments of Private Sect Grant (Curr),Decentralisation and Local Growth,HIATCO LTD,,Small,,,2300002787,,RGF - grant repayment - 555C-D,DH9 8NJ,"-5,463.00",
Communities & Local Government,DCLG,08/03/2017,Telecoms equipment (non-capitalised),Corporate Services,DAISY CORPORATE SERVICES LTD,,Large,,221481042,5106226884,IT Managed / Outsourced Services,3mth service extension to 31/12/16,BB9 5SR,"108,172.80",
Communities & Local Government,DCLG,09/03/2017,Advertising,Corporate Services,CARAT LTD,,Large,,211589882,5106226846,Advertising,ASBOF,NW1 3BF,6.27,
Communities & Local Government,DCLG,09/03/2017,Advertising,Corporate Services,CARAT LTD,,Large,,211589882,5106226846,Advertising,Own Your Own Home Media partnership,NW1 3BF,"7,870.34",
Communities & Local Government,DCLG,09/03/2017,Conferences and Meeting Facilities,Decentralisation and Local Growth,M U ENTERPRISES LTD,,Small,,569582521,5106226904,Business Travel Accommodation,Princess Alexandra Rm - 28 Feb & 1 Mar,SW1P 3RB,704.00,
Communities & Local Government,DCLG,09/03/2017,Current Grants to Non Profit Bodies,Local Government & Public Services,STOP HATE UK,,,,,2100271766,,Challenging Online Hate,LS3 1AB,"10,000.00",Yes
Communities & Local Government,DCLG,09/03/2017,IT - Service Contracts,Corporate Services,BLUEFIN SOLUTIONS LTD,,Medium,,,5106226650,IT Managed / Outsourced Services,Interim Manager,W4 5YE,"9,768.10",
Communities & Local Government,DCLG,09/03/2017,IT - Service Contracts,Corporate Services,BLUEFIN SOLUTIONS LTD,,Medium,,,5106226705,IT Managed / Outsourced Services,Business Objects,W4 5YE,"54,825.00",
Communities & Local Government,DCLG,09/03/2017,IT - Service Contracts,Corporate Services,BLUEFIN SOLUTIONS LTD,,Medium,,,5106226754,IT Managed / Outsourced Services,Interim Manager,W4 5YE,"31,423.30",
Communities & Local Government,DCLG,09/03/2017,IT - Service Contracts,Corporate Services,DAISY CORPORATE SERVICES LTD,,Large,,221481042,5106226850,IT Managed / Outsourced Services,FY16/17 Transition Costs Capital,BB9 5SR,"5,455.20",
Communities & Local Government,DCLG,09/03/2017,IT - Service Contracts,Corporate Services,FUJITSU SERVICES LTD,,Large,,423375062,5106226916,IT Managed / Outsourced Services,NR     PAMU Office Move Project,WA3 6GD,"2,552.00",
Communities & Local Government,DCLG,09/03/2017,IT - Service Contracts,Local Government & Public Services,GROUNDWORK UK,Yes,,,739193758,5106226918,IT Managed / Outsourced Services,Lot 2 Community Rights programme Grant,B1 2RR,"10,245.92",
Communities & Local Government,DCLG,09/03/2017,IT - Service Contracts,Local Government & Public Services,SWIRRL IT LIMITED,,Micro,,211074993,5106226852,IT Managed / Outsourced Services,Open Data Communities Development work,FK7 7WT,"11,976.00",
Communities & Local Government,DCLG,09/03/2017,IT - Service Contracts,Local Government & Public Services,SWIRRL IT LIMITED,,Micro,,211074993,5106226853,IT Managed / Outsourced Services,Open Data Communities Development work,FK7 7WT,"40,716.00",
Communities & Local Government,DCLG,09/03/2017,IT - Service Contracts,Local Government & Public Services,SWIRRL IT LIMITED,,Micro,,211074993,5106226855,IT Managed / Outsourced Services,Open Data Communities Development work,FK7 7WT,"16,380.00",
Communities & Local Government,DCLG,09/03/2017,IT - Software Maintenance,Corporate Services,SAP (UK) LTD,,Large,,396951675,5106226915,IT Managed / Outsourced Services,SAP Exhibit 2 Support 2017,TW14 8HD,"15,091.56",
Communities & Local Government,DCLG,09/03/2017,IT - Software Maintenance,Corporate Services,SAP (UK) LTD,,Large,,396951675,5106226915,IT Managed / Outsourced Services,SAP Exhibit 3 Support 2017,TW14 8HD,"3,076.92",
Communities & Local Government,DCLG,09/03/2017,IT - Software Maintenance,Corporate Services,SAP (UK) LTD,,Large,,396951675,5106226915,IT Managed / Outsourced Services,SAP Exhibit 5 Support 2017,TW14 8HD,"43,383.12",
Communities & Local Government,DCLG,09/03/2017,IT - Software Maintenance,Corporate Services,SAP (UK) LTD,,Large,,396951675,5106226917,IT Managed / Outsourced Services,SAP Exhibit 7 support 2016,TW14 8HD,"1,515.60",
Communities & Local Government,DCLG,09/03/2017,Physical Storage,Corporate Services,WILLIAMS LEA LIMITED,,Large,,393456413,5106226920,Warehousing and Storage,Document Storage,NR3 1PD,627.48,
Communities & Local Government,DCLG,09/03/2017,Printing,Corporate Services,WILLIAMS LEA LIMITED,,Large,,393456413,5106226920,Printing Services,Housing White Paper,NR3 1PD,"4,582.27",
Communities & Local Government,DCLG,09/03/2017,Printing,Corporate Services,WILLIAMS LEA LIMITED,,Large,,393456413,5106226920,Printing Services,Year 3 Print services,NR3 1PD,"37,268.79",
Communities & Local Government,DCLG,09/03/2017,Printing,Corporate Services,WILLIAMS LEA LIMITED,,Large,,393456413,5106226920,Printing Services,Year 3 Print services (0% VAT),NR3 1PD,"37,427.76",
Communities & Local Government,DCLG,09/03/2017,Repayments of Private Sect Grant (Cap),Decentralisation and Local Growth,UK STEEL ENTERPRISE LTD,,,,,2300002774,,RGF Recovery of grant  - ref:1779C,S1 4DP,"-73,850.00",
Communities & Local Government,DCLG,09/03/2017,Repayments of Private Sect Grant (Curr),Decentralisation and Local Growth,UK STEEL ENTERPRISE LTD,,,,,2300002774,,RGF Recovery of grant  - ref:1779C,S1 4DP,-628.00,
Communities & Local Government,DCLG,09/03/2017,Research,Local Government & Public Services,BMG RESEARCH LIMITED,,,,569488612,5106226849,Research,Research - ERDF Evaluation Scoping Study,B15 3BE,"6,744.50",
Communities & Local Government,DCLG,09/03/2017,Training,Corporate Services,KORN FERRY HAY GROUP (CSL),,Large,,,5106226848,Development and Training,Civil Service Training,SW1X 7HG,"3,577.50",
Communities & Local Government,DCLG,09/03/2017,Training,Corporate Services,MYCSP LIMITED,,Large,,217279092,5106226910,Development and Training,Civil Service Training,SK3 0XN,"2,795.00",
Communities & Local Government,DCLG,09/03/2017,Training,Corporate Services,MYCSP LIMITED,,Large,,217279092,5106226911,Development and Training,Civil Service Training,SK3 0XN,-430.00,
Communities & Local Government,DCLG,09/03/2017,Training,Corporate Services,SCT CONSULTANTS LTD,,Micro,,,5106226897,Development and Training,Civil Service Training,W8 5RL,"6,000.00",
Communities & Local Government,DCLG,09/03/2017,Training,Corporate Services,WHITEHALL & INDUSTRY GROUP,,Small,,385853957,5106226905,Development and Training,Civil Service Training,SW1H 9EX,450.00,
Communities & Local Government,DCLG,10/03/2017,Agency Staff,Corporate Services,BROOK STREET UK LTD,,Large,,364940028,5106226929,Contingent Labour,Interim Manager,AL1 4JB,678.88,
Communities & Local Government,DCLG,10/03/2017,Agency Staff,Corporate Services,BROOK STREET UK LTD,,Large,,364940028,5106226936,Contingent Labour,EO Reconciliation Clerk,AL1 4JB,430.68,
Communities & Local Government,DCLG,10/03/2017,Agency Staff,Corporate Services,BROOK STREET UK LTD,,Large,,364940028,5106226950,Contingent Labour,Support worker for staff interim measure,AL1 4JB,532.87,
Communities & Local Government,DCLG,10/03/2017,Agency Staff,Decentralisation and Local Growth,BROOK STREET UK LTD,,Large,,364940028,5106226928,Contingent Labour,Temporary PA,AL1 4JB,740.45,
Communities & Local Government,DCLG,10/03/2017,Catering,Decentralisation and Local Growth,LILLIE'S CATERING,,Micro,,,5106226944,Business Support,Refreshments for STDC Meetings,TS10 5AU,213.80,
Communities & Local Government,DCLG,10/03/2017,Grant in Aid to NDPBs (non budget),Housing & Planning,HOMES & COMMUNITIES AGENCY,,Public Bodies,,215576860,2100271812,,HCA Grant in Aid Claim for March 2017,NE11 0NA,"452,932,504.00",Yes
Communities & Local Government,DCLG,10/03/2017,IT - Service Contracts,Corporate Services,ARCUS GLOBAL LIMITED,,Medium,,,5106226935,IT Managed / Outsourced Services,MCIS/TESA Cloud Hosting Support 16/17,CB4 2HY,"11,319.87",
Communities & Local Government,DCLG,10/03/2017,IT - Service Contracts,Corporate Services,FUJITSU SERVICES LTD,,Large,,423375062,5106226898,IT Managed / Outsourced Services,LOGASnet Change Budget FY16/17,WA3 6GD,"17,007.60",
Communities & Local Government,DCLG,10/03/2017,IT - Service Contracts,Corporate Services,FUJITSU SERVICES LTD,,Large,,423375062,5106226948,IT Managed / Outsourced Services,New Requirements FY 16/17,WA3 6GD,"4,346.00",
Communities & Local Government,DCLG,10/03/2017,IT - Service Contracts,Corporate Services,INFO-ASSURE LTD,,Small,,,5106226923,IT Managed / Outsourced Services,Telephny Project Works,GU14 0LX,900.00,
Communities & Local Government,DCLG,10/03/2017,IT - Service Contracts,Corporate Services,INTERQUEST GROUP UK LIMITED,,Large,,423935241,5106226879,IT Managed / Outsourced Services,BW Specialist Support for HR Project,EC1N 8UA,"10,125.00",
Communities & Local Government,DCLG,10/03/2017,IT - Service Contracts,Local Government & Public Services,CAJA,,Micro,,,5106226922,IT Managed / Outsourced Services,Interim Manager,ST5 5NB,"17,245.04",
Communities & Local Government,DCLG,10/03/2017,Online Database Information Retrieval,Corporate Services,HAYMARKET PUBLISHING SERVS LTD,,Large,,516858800,5106226926,ICT Services,ENDS EUROPE on-line subscription 2017-18,TW1 3SP,"3,225.60",
Communities & Local Government,DCLG,10/03/2017,Professional services,Decentralisation and Local Growth,HOMES & COMMUNITIES AGENCY,,Public Bodies,,215576860,5106226900,Operation of Industrial Facilities,SSI Steel Works,NE11 0NA,"207,398.24",
Communities & Local Government,DCLG,10/03/2017,Professional services,Housing & Planning,VALUATION OFFICE AGENCY,,Public Bodies,,215253886,5106226939,Financial,Financial Checks 2016/17,W1D 5BU,"4,367.77",
Communities & Local Government,DCLG,10/03/2017,Professional services,Local Government & Public Services,VALUATION OFFICE AGENCY,,Public Bodies,,215253886,2100271743,Environmental Services,Payment for work on NNDR and Council Tax - MAR,W1D 5BU,"13,325,000.00",
Communities & Local Government,DCLG,10/03/2017,Repayments of Private Sect Grant (Cap),Decentralisation and Local Growth,BIGNALL LUBRITEC LTD,,Small,,,2300002785,,RGF - grant repayment - 555C-A,DL1 2DD,"-3,391.00",
Communities & Local Government,DCLG,10/03/2017,Steady State Service Provision,Corporate Services,ALLPAY LIMITED,,Medium,,738359918,5106226854,Business Process Outsourcing Services,BACS Processing Services,HR1 3SE,720.00,
Communities & Local Government,DCLG,10/03/2017,Telecoms equipment (non-capitalised),Corporate Services,DAISY CORPORATE SERVICES LTD,,Large,,221481042,5106226954,IT Managed / Outsourced Services,3mth service extension to 31/3/17,BB9 5SR,"107,846.66",
Communities & Local Government,DCLG,10/03/2017,Training,Corporate Services,ST GEORGE'S HSE TRUST,,Small,,,5106226927,Development and Training,Civil Service Training,SL4 1NJ,745.00,
Communities & Local Government,DCLG,10/03/2017,Training,Housing & Planning,ROYAL TOWN PLANNING INSTITUTE,,,,227231818,5106226953,Development and Training,Civil Service Training,EC3R 8DL,297.00,
Communities & Local Government,DCLG,10/03/2017,Travel and Subsistence Account,Decentralisation and Local Growth,KEITH READMAN COACH TRAVEL,,Micro,,,5106226805,Travel Management,Coach Travel for Site Visits,TS9 6HN,"1,000.00",
Communities & Local Government,DCLG,13/03/2017,Accommodation - actuals,Corporate Services,REDFERN TRAVEL LIMITED,,Small,,213089972,2100271840,Business Travel Accommodation,Consolidated Monthly Travel February Hotels,BD1 3AZ,"1,437.00",
Communities & Local Government,DCLG,13/03/2017,Accommodation - actuals,Corporate Services,REDFERN TRAVEL LIMITED,,Small,,213089972,2100271840,Business Travel Accommodation,Consolidated Monthly Travel February Hotels,BD1 3AZ,"3,657.07",
Communities & Local Government,DCLG,13/03/2017,Accommodation - actuals,Corporate Services,REDFERN TRAVEL LIMITED,,Small,,213089972,2100271840,Business Travel Accommodation,Consolidated Monthly Travel February Hotels,BD1 3AZ,493.72,
Communities & Local Government,DCLG,13/03/2017,Accommodation - actuals,Corporate Services,REDFERN TRAVEL LIMITED,,Small,,213089972,2100271840,Business Travel Accommodation,Consolidated Monthly Travel February Hotels,BD1 3AZ,754.36,
Communities & Local Government,DCLG,13/03/2017,Accommodation - actuals,Corporate Services,REDFERN TRAVEL LIMITED,,Small,,213089972,2100271840,Business Travel Accommodation,Consolidated Monthly Travel February Hotels,BD1 3AZ,284.72,
Communities & Local Government,DCLG,13/03/2017,Accommodation - actuals,Decentralisation and Local Growth,REDFERN TRAVEL LIMITED,,Small,,213089972,2100271840,Business Travel Accommodation,Consolidated Monthly Travel February Hotels,BD1 3AZ,503.00,
Communities & Local Government,DCLG,13/03/2017,Accommodation - actuals,Decentralisation and Local Growth,REDFERN TRAVEL LIMITED,,Small,,213089972,2100271840,Business Travel Accommodation,Consolidated Monthly Travel February Hotels,BD1 3AZ,258.28,
Communities & Local Government,DCLG,13/03/2017,Accommodation - actuals,Decentralisation and Local Growth,REDFERN TRAVEL LIMITED,,Small,,213089972,2100271840,Business Travel Accommodation,Consolidated Monthly Travel February Hotels,BD1 3AZ,571.52,
Communities & Local Government,DCLG,13/03/2017,Accommodation - actuals,Decentralisation and Local Growth,REDFERN TRAVEL LIMITED,,Small,,213089972,2100271840,Business Travel Accommodation,Consolidated Monthly Travel February Hotels,BD1 3AZ,911.00,
Communities & Local Government,DCLG,13/03/2017,Accommodation - actuals,Decentralisation and Local Growth,REDFERN TRAVEL LIMITED,,Small,,213089972,2100271840,Business Travel Accommodation,Consolidated Monthly Travel February Hotels,BD1 3AZ,"2,646.65",
Communities & Local Government,DCLG,13/03/2017,Accommodation - actuals,Decentralisation and Local Growth,REDFERN TRAVEL LIMITED,,Small,,213089972,2100271840,Business Travel Accommodation,Consolidated Monthly Travel February Hotels,BD1 3AZ,462.12,
Communities & Local Government,DCLG,13/03/2017,Accommodation - actuals,Decentralisation and Local Growth,REDFERN TRAVEL LIMITED,,Small,,213089972,2100271840,Business Travel Accommodation,Consolidated Monthly Travel February Hotels,BD1 3AZ,321.89,
Communities & Local Government,DCLG,13/03/2017,Accommodation - actuals,Decentralisation and Local Growth,REDFERN TRAVEL LIMITED,,Small,,213089972,2100271840,Business Travel Accommodation,Consolidated Monthly Travel February Hotels,BD1 3AZ,"1,292.11",
Communities & Local Government,DCLG,13/03/2017,Accommodation - actuals,Decentralisation and Local Growth,REDFERN TRAVEL LIMITED,,Small,,213089972,2100271840,Business Travel Accommodation,Consolidated Monthly Travel February Hotels,BD1 3AZ,"1,295.62",
Communities & Local Government,DCLG,13/03/2017,Accommodation - actuals,Housing & Planning,REDFERN TRAVEL LIMITED,,Small,,213089972,2100271840,Business Travel Accommodation,Consolidated Monthly Travel February Hotels,BD1 3AZ,528.34,
Communities & Local Government,DCLG,13/03/2017,Accommodation - actuals,Housing & Planning,REDFERN TRAVEL LIMITED,,Small,,213089972,2100271840,Business Travel Accommodation,Consolidated Monthly Travel February Hotels,BD1 3AZ,333.12,
Communities & Local Government,DCLG,13/03/2017,Accommodation - actuals,Housing & Planning,REDFERN TRAVEL LIMITED,,Small,,213089972,2100271840,Business Travel Accommodation,Consolidated Monthly Travel February Hotels,BD1 3AZ,482.73,
Communities & Local Government,DCLG,13/03/2017,Accommodation - actuals,Housing & Planning,REDFERN TRAVEL LIMITED,,Small,,213089972,2100271840,Business Travel Accommodation,Consolidated Monthly Travel February Hotels,BD1 3AZ,835.74,
Communities & Local Government,DCLG,13/03/2017,Accommodation - actuals,Local Government & Public Services,REDFERN TRAVEL LIMITED,,Small,,213089972,2100271840,Business Travel Accommodation,Consolidated Monthly Travel February Hotels,BD1 3AZ,633.60,
Communities & Local Government,DCLG,13/03/2017,Accommodation - actuals,Local Government & Public Services,REDFERN TRAVEL LIMITED,,Small,,213089972,2100271840,Business Travel Accommodation,Consolidated Monthly Travel February Hotels,BD1 3AZ,407.04,
Communities & Local Government,DCLG,13/03/2017,Accommodation - actuals,Local Government & Public Services,REDFERN TRAVEL LIMITED,,Small,,213089972,2100271840,Business Travel Accommodation,Consolidated Monthly Travel February Hotels,BD1 3AZ,275.17,
Communities & Local Government,DCLG,13/03/2017,Accommodation - actuals,Local Government & Public Services,REDFERN TRAVEL LIMITED,,Small,,213089972,2100271840,Business Travel Accommodation,Consolidated Monthly Travel February Hotels,BD1 3AZ,"1,299.79",
Communities & Local Government,DCLG,13/03/2017,Accommodation - actuals,Local Government & Public Services,REDFERN TRAVEL LIMITED,,Small,,213089972,2100271840,Business Travel Accommodation,Consolidated Monthly Travel February Hotels,BD1 3AZ,273.78,
Communities & Local Government,DCLG,13/03/2017,Accommodation - actuals,Local Government & Public Services,REDFERN TRAVEL LIMITED,,Small,,213089972,2100271840,Business Travel Accommodation,Consolidated Monthly Travel February Hotels,BD1 3AZ,326.43,
Communities & Local Government,DCLG,13/03/2017,Accommodation - actuals,Local Government & Public Services,REDFERN TRAVEL LIMITED,,Small,,213089972,2100271840,Business Travel Accommodation,Consolidated Monthly Travel February Hotels,BD1 3AZ,554.70,
Communities & Local Government,DCLG,13/03/2017,Accommodation - actuals,Local Government & Public Services,REDFERN TRAVEL LIMITED,,Small,,213089972,2100271840,Business Travel Accommodation,Consolidated Monthly Travel February Hotels,BD1 3AZ,342.73,
Communities & Local Government,DCLG,13/03/2017,Accommodation - actuals,Local Government & Public Services,REDFERN TRAVEL LIMITED,,Small,,213089972,2100271840,Business Travel Accommodation,Consolidated Monthly Travel February Hotels,BD1 3AZ,665.49,
Communities & Local Government,DCLG,13/03/2017,Accommodation - actuals,"Strategy, Communications and Private Office",REDFERN TRAVEL LIMITED,,Small,,213089972,2100271840,Business Travel Accommodation,Consolidated Monthly Travel February Hotels,BD1 3AZ,615.54,
Communities & Local Government,DCLG,13/03/2017,Agency Staff,Corporate Services,CAPITA BUS. SERV. LTD (CON LAB),,Large,,,5106226958,Contingent Labour,Interim Manager,DL1 9HB,"4,710.72",
Communities & Local Government,DCLG,13/03/2017,Agency Staff,Decentralisation and Local Growth,CAPITA BUS. SERV. LTD (CON LAB),,Large,,,5106226960,Contingent Labour,Interim Manager,DL1 9HB,"1,696.32",
Communities & Local Government,DCLG,13/03/2017,Agency Staff,Decentralisation and Local Growth,CAPITA BUS. SERV. LTD (CON LAB),,Large,,,5106226980,Contingent Labour,Interim Manager,DL1 9HB,"1,649.21",
Communities & Local Government,DCLG,13/03/2017,Agency Staff,Housing & Planning,OVE ARUP & PARTNERS,,Large,,221940898,5106226985,Consultancy,Project Management,W1P 6BQ,"25,740.00",
Communities & Local Government,DCLG,13/03/2017,Air Travel,Decentralisation and Local Growth,REDFERN TRAVEL LIMITED,,Small,,213089972,2100271840,Air,Consolidated Monthly Travel February Air Tickets,BD1 3AZ,406.77,
Communities & Local Government,DCLG,13/03/2017,Air Travel,Decentralisation and Local Growth,REDFERN TRAVEL LIMITED,,Small,,213089972,2100271840,Air,Consolidated Monthly Travel February Air Tickets,BD1 3AZ,"2,758.51",
Communities & Local Government,DCLG,13/03/2017,Air Travel,Decentralisation and Local Growth,REDFERN TRAVEL LIMITED,,Small,,213089972,2100271840,Air,Consolidated Monthly Travel February Air Tickets,BD1 3AZ,562.54,
Communities & Local Government,DCLG,13/03/2017,Air Travel,Decentralisation and Local Growth,REDFERN TRAVEL LIMITED,,Small,,213089972,2100271840,Air,Consolidated Monthly Travel February Air Tickets,BD1 3AZ,300.33,
Communities & Local Government,DCLG,13/03/2017,Air Travel,Local Government & Public Services,REDFERN TRAVEL LIMITED,,Small,,213089972,2100271840,Air,Consolidated Monthly Travel February Air Tickets,BD1 3AZ,517.16,
Communities & Local Government,DCLG,13/03/2017,Conferences and Meeting Facilities,Local Government & Public Services,COIN STREET COMMUNITY BUILDERS LTD,,Medium,,294729389,5106226957,Promotion,LGP Away Day,SE1 9NH,"1,857.60",
Communities & Local Government,DCLG,13/03/2017,Current (non AEF) Grants to Local Authorities,Housing & Planning,LANCASHIRE COUNTY COUNCIL,,Large,,233047435,2100271837,,Rent officer Pensions refund 16/17,PR1 8XJ,"3,299.64",Yes
Communities & Local Government,DCLG,13/03/2017,Current (non AEF) Grants to Local Authorities,Housing & Planning,LONDON BOROUGH GREENWICH,,,,228314522,2100271836,,Rent officer Pensions refund 16/17,SE18 6BU,"1,567.32",Yes
Communities & Local Government,DCLG,13/03/2017,Current Grants to Non Profit Bodies,Local Government & Public Services,CHURCH URBAN FUND,,Small,,396728263,2100271816,,Creating the Common Good Fund,SW1P 3AZ,"124,000.00",Yes
Communities & Local Government,DCLG,13/03/2017,ERDF Work in Progress � Resource,Decentralisation and Local Growth,UNIVERSITY OF WARWICK,,Large,,,2300002748,,"Project: Creating and Characters, Project Ref: 080",CV4 8UW,"-11,478.50",Yes
Communities & Local Government,DCLG,13/03/2017,IT - Service Contracts,Corporate Services,DAISY CORPORATE SERVICES LTD,,Large,,221481042,5106226992,IT Managed / Outsourced Services,FY16/17 Transition Costs Capital,BB9 5SR,"14,841.60",
Communities & Local Government,DCLG,13/03/2017,IT - Service Contracts,Corporate Services,FUJITSU SERVICES LTD,,Large,,423375062,5106226919,IT Managed / Outsourced Services,NR     PAMU Office Move Project,WA3 6GD,"-7,656.00",
Communities & Local Government,DCLG,13/03/2017,IT - Service Contracts,Corporate Services,FUJITSU SERVICES LTD,,Large,,423375062,5106226994,IT Managed / Outsourced Services,VTS - CR002 Resource FY17/18,WA3 6GD,"32,441.00",
Communities & Local Government,DCLG,13/03/2017,IT - Service Contracts,Corporate Services,MARKLOGIC CORPORATION,,Large,,,5106226990,IT Managed / Outsourced Services,CPD4109106AS3 & AS6 velopment Charges,CA 94070,"279,346.90",
Communities & Local Government,DCLG,13/03/2017,IT - Service Contracts,Local Government & Public Services,CAPITA BUS. SERV. LTD (CON LAB),,Large,,,5106226961,Contingent Labour,SPECIALIST EXPERTISE,DL1 9HB,"4,276.44",
Communities & Local Government,DCLG,13/03/2017,Legal Fees,Corporate Services,GOVERNMENT LEGAL DEPARTMENT,,Public Bodies,,215580680,2100271839,Legal,Legal Advice,WC2B 4TS,"8,172.50",
Communities & Local Government,DCLG,13/03/2017,Office Supplies,Corporate Services,BANNER BUSINESS SUPPLIES LTD,,Large,,236638362,5106226491,Office Supplies,BANNER A4 L/ARCH FILE 75MM SPINE BK - EA,S9 1XU,18.72,
Communities & Local Government,DCLG,13/03/2017,Office Supplies,Corporate Services,BANNER BUSINESS SUPPLIES LTD,,Large,,236638362,5106226491,Office Supplies,BANNER EASY TEAR ADH TAPE 18MMX33M - PAC,S9 1XU,1.15,
Communities & Local Government,DCLG,13/03/2017,Office Supplies,Corporate Services,BANNER BUSINESS SUPPLIES LTD,,Large,,236638362,5106226491,Office Supplies,BANNER MEDIUM GLUE STICK 20G - EACH,S9 1XU,0.48,
Communities & Local Government,DCLG,13/03/2017,Office Supplies,Corporate Services,BANNER BUSINESS SUPPLIES LTD,,Large,,236638362,5106226491,Office Supplies,BANNER OFFICE PIN 25MM - BOX150,S9 1XU,0.26,
Communities & Local Government,DCLG,13/03/2017,Office Supplies,Corporate Services,BANNER BUSINESS SUPPLIES LTD,,Large,,236638362,5106226491,Office Supplies,BANNER POB A4 2R BINDER 25MM BLUE - BOX1,S9 1XU,99.84,
Communities & Local Government,DCLG,13/03/2017,Office Supplies,Corporate Services,BANNER BUSINESS SUPPLIES LTD,,Large,,236638362,5106226491,Office Supplies,BANNER PUSH PIN ASSORTED COLOURS - PACK2,S9 1XU,1.32,
Communities & Local Government,DCLG,13/03/2017,Office Supplies,Corporate Services,BANNER BUSINESS SUPPLIES LTD,,Large,,236638362,5106226491,Office Supplies,BANNER STICKY TAC 70G - PACK,S9 1XU,0.60,
Communities & Local Government,DCLG,13/03/2017,Office Supplies,Corporate Services,BANNER BUSINESS SUPPLIES LTD,,Large,,236638362,5106226491,Office Supplies,CONTRACT S/STICK NOTES PALE IVORY - PACK,S9 1XU,1.55,
Communities & Local Government,DCLG,13/03/2017,Office Supplies,Corporate Services,BANNER BUSINESS SUPPLIES LTD,,Large,,236638362,5106226491,Office Supplies,EVOLUTION RECYCLED COPIER A4 80GSM - BOX,S9 1XU,175.14,
Communities & Local Government,DCLG,13/03/2017,Office Supplies,"Strategy, Communications and Private Office",PINPOINT FACILITATION LTD,,Small,,738540173,5106226959,Office Supplies,Pinpoint facilitation materials,OX11 7HJ,"2,016.90",
Communities & Local Government,DCLG,13/03/2017,Professional services,Housing & Planning,PLANNING INSPECTORATE,,Public Bodies,,213918365,5106226983,Technical Services,Analysing & Design DCLG workshop,BS1 6PN,"9,003.00",
Communities & Local Government,DCLG,13/03/2017,Professional services,Housing & Planning,PLANNING INSPECTORATE,,Public Bodies,,213918365,5106226983,Technical Services,PINS Unrecoverable VAT,BS1 6PN,"1,800.60",
Communities & Local Government,DCLG,13/03/2017,Publications,Corporate Services,KANTAR MEDIA,Yes,Large,,,5106226970,Learning and Development Materials,S015335 - Press Cutting Prov,EC2M 2QS,"1,250.00",
Communities & Local Government,DCLG,13/03/2017,Publications,Corporate Services,KANTAR MEDIA,Yes,Large,,,5106226972,Learning and Development Materials,S015335 - Press Cutting Prov,EC2M 2QS,"1,250.00",
Communities & Local Government,DCLG,13/03/2017,Publications,Corporate Services,KANTAR MEDIA,Yes,Large,,,5106226973,Learning and Development Materials,S015335 - Press Cutting Prov,EC2M 2QS,"1,250.00",
Communities & Local Government,DCLG,13/03/2017,"Rail, Underground and Eurostar",Casey Review,REDFERN TRAVEL LIMITED,,Small,,213089972,2100271840,Rail,Consolidated Monthly Travel February Rail,BD1 3AZ,796.90,
Communities & Local Government,DCLG,13/03/2017,"Rail, Underground and Eurostar",Corporate Services,REDFERN TRAVEL LIMITED,,Small,,213089972,2100271840,Rail,Consolidated Monthly Travel February Rail,BD1 3AZ,"6,076.80",
Communities & Local Government,DCLG,13/03/2017,"Rail, Underground and Eurostar",Corporate Services,REDFERN TRAVEL LIMITED,,Small,,213089972,2100271840,Rail,Consolidated Monthly Travel February Rail,BD1 3AZ,492.00,
Communities & Local Government,DCLG,13/03/2017,"Rail, Underground and Eurostar",Corporate Services,REDFERN TRAVEL LIMITED,,Small,,213089972,2100271840,Rail,Consolidated Monthly Travel February Rail,BD1 3AZ,"1,263.75",
Communities & Local Government,DCLG,13/03/2017,"Rail, Underground and Eurostar",Corporate Services,REDFERN TRAVEL LIMITED,,Small,,213089972,2100271840,Rail,Consolidated Monthly Travel February Rail,BD1 3AZ,"1,386.60",
Communities & Local Government,DCLG,13/03/2017,"Rail, Underground and Eurostar",Corporate Services,REDFERN TRAVEL LIMITED,,Small,,213089972,2100271840,Rail,Consolidated Monthly Travel February Rail,BD1 3AZ,939.00,
Communities & Local Government,DCLG,13/03/2017,"Rail, Underground and Eurostar",Corporate Services,REDFERN TRAVEL LIMITED,,Small,,213089972,2100271840,Rail,Consolidated Monthly Travel February Rail,BD1 3AZ,"1,746.20",
Communities & Local Government,DCLG,13/03/2017,"Rail, Underground and Eurostar",Corporate Services,REDFERN TRAVEL LIMITED,,Small,,213089972,2100271840,Rail,Consolidated Monthly Travel February Rail,BD1 3AZ,631.00,
Communities & Local Government,DCLG,13/03/2017,"Rail, Underground and Eurostar",Corporate Services,REDFERN TRAVEL LIMITED,,Small,,213089972,2100271840,Rail,Consolidated Monthly Travel February Rail,BD1 3AZ,343.90,
Communities & Local Government,DCLG,13/03/2017,"Rail, Underground and Eurostar",Corporate Services,REDFERN TRAVEL LIMITED,,Small,,213089972,2100271840,Rail,Consolidated Monthly Travel February Rail,BD1 3AZ,620.70,
Communities & Local Government,DCLG,13/03/2017,"Rail, Underground and Eurostar",Corporate Services,REDFERN TRAVEL LIMITED,,Small,,213089972,2100271840,Rail,Consolidated Monthly Travel February Rail,BD1 3AZ,580.70,
Communities & Local Government,DCLG,13/03/2017,"Rail, Underground and Eurostar",Corporate Services,REDFERN TRAVEL LIMITED,,Small,,213089972,2100271840,Rail,Consolidated Monthly Travel February Rail,BD1 3AZ,508.61,
Communities & Local Government,DCLG,13/03/2017,"Rail, Underground and Eurostar",Corporate Services,REDFERN TRAVEL LIMITED,,Small,,213089972,2100271840,Rail,Consolidated Monthly Travel February Rail,BD1 3AZ,"1,048.95",
Communities & Local Government,DCLG,13/03/2017,"Rail, Underground and Eurostar",Corporate Services,REDFERN TRAVEL LIMITED,,Small,,213089972,2100271840,Rail,Consolidated Monthly Travel February Rail,BD1 3AZ,582.80,
Communities & Local Government,DCLG,13/03/2017,"Rail, Underground and Eurostar",Corporate Services,REDFERN TRAVEL LIMITED,,Small,,213089972,2100271840,Rail,Consolidated Monthly Travel February Rail,BD1 3AZ,686.85,
Communities & Local Government,DCLG,13/03/2017,"Rail, Underground and Eurostar",Decentralisation and Local Growth,REDFERN TRAVEL LIMITED,,Small,,213089972,2100271840,Rail,Consolidated Monthly Travel February Rail,BD1 3AZ,494.45,
Communities & Local Government,DCLG,13/03/2017,"Rail, Underground and Eurostar",Decentralisation and Local Growth,REDFERN TRAVEL LIMITED,,Small,,213089972,2100271840,Rail,Consolidated Monthly Travel February Rail,BD1 3AZ,258.30,
Communities & Local Government,DCLG,13/03/2017,"Rail, Underground and Eurostar",Decentralisation and Local Growth,REDFERN TRAVEL LIMITED,,Small,,213089972,2100271840,Rail,Consolidated Monthly Travel February Rail,BD1 3AZ,"2,412.30",
Communities & Local Government,DCLG,13/03/2017,"Rail, Underground and Eurostar",Decentralisation and Local Growth,REDFERN TRAVEL LIMITED,,Small,,213089972,2100271840,Rail,Consolidated Monthly Travel February Rail,BD1 3AZ,"2,790.90",
Communities & Local Government,DCLG,13/03/2017,"Rail, Underground and Eurostar",Decentralisation and Local Growth,REDFERN TRAVEL LIMITED,,Small,,213089972,2100271840,Rail,Consolidated Monthly Travel February Rail,BD1 3AZ,"1,304.31",
Communities & Local Government,DCLG,13/03/2017,"Rail, Underground and Eurostar",Decentralisation and Local Growth,REDFERN TRAVEL LIMITED,,Small,,213089972,2100271840,Rail,Consolidated Monthly Travel February Rail,BD1 3AZ,"4,292.15",
Communities & Local Government,DCLG,13/03/2017,"Rail, Underground and Eurostar",Decentralisation and Local Growth,REDFERN TRAVEL LIMITED,,Small,,213089972,2100271840,Rail,Consolidated Monthly Travel February Rail,BD1 3AZ,"1,834.95",
Communities & Local Government,DCLG,13/03/2017,"Rail, Underground and Eurostar",Decentralisation and Local Growth,REDFERN TRAVEL LIMITED,,Small,,213089972,2100271840,Rail,Consolidated Monthly Travel February Rail,BD1 3AZ,"2,597.90",
Communities & Local Government,DCLG,13/03/2017,"Rail, Underground and Eurostar",Decentralisation and Local Growth,REDFERN TRAVEL LIMITED,,Small,,213089972,2100271840,Rail,Consolidated Monthly Travel February Rail,BD1 3AZ,"2,462.65",
Communities & Local Government,DCLG,13/03/2017,"Rail, Underground and Eurostar",Decentralisation and Local Growth,REDFERN TRAVEL LIMITED,,Small,,213089972,2100271840,Rail,Consolidated Monthly Travel February Rail,BD1 3AZ,"1,727.61",
Communities & Local Government,DCLG,13/03/2017,"Rail, Underground and Eurostar",Decentralisation and Local Growth,REDFERN TRAVEL LIMITED,,Small,,213089972,2100271840,Rail,Consolidated Monthly Travel February Rail,BD1 3AZ,"1,986.11",
Communities & Local Government,DCLG,13/03/2017,"Rail, Underground and Eurostar",Decentralisation and Local Growth,REDFERN TRAVEL LIMITED,,Small,,213089972,2100271840,Rail,Consolidated Monthly Travel February Rail,BD1 3AZ,"1,508.30",
Communities & Local Government,DCLG,13/03/2017,"Rail, Underground and Eurostar",Decentralisation and Local Growth,REDFERN TRAVEL LIMITED,,Small,,213089972,2100271840,Rail,Consolidated Monthly Travel February Rail,BD1 3AZ,535.00,
Communities & Local Government,DCLG,13/03/2017,"Rail, Underground and Eurostar",Decentralisation and Local Growth,REDFERN TRAVEL LIMITED,,Small,,213089972,2100271840,Rail,Consolidated Monthly Travel February Rail,BD1 3AZ,569.00,
Communities & Local Government,DCLG,13/03/2017,"Rail, Underground and Eurostar",Decentralisation and Local Growth,REDFERN TRAVEL LIMITED,,Small,,213089972,2100271840,Rail,Consolidated Monthly Travel February Rail,BD1 3AZ,"1,792.20",
Communities & Local Government,DCLG,13/03/2017,"Rail, Underground and Eurostar",Decentralisation and Local Growth,REDFERN TRAVEL LIMITED,,Small,,213089972,2100271840,Rail,Consolidated Monthly Travel February Rail,BD1 3AZ,"2,297.00",
Communities & Local Government,DCLG,13/03/2017,"Rail, Underground and Eurostar",Decentralisation and Local Growth,REDFERN TRAVEL LIMITED,,Small,,213089972,2100271840,Rail,Consolidated Monthly Travel February Rail,BD1 3AZ,"8,458.31",
Communities & Local Government,DCLG,13/03/2017,"Rail, Underground and Eurostar",Decentralisation and Local Growth,REDFERN TRAVEL LIMITED,,Small,,213089972,2100271840,Rail,Consolidated Monthly Travel February Rail,BD1 3AZ,"1,322.30",
Communities & Local Government,DCLG,13/03/2017,"Rail, Underground and Eurostar",Decentralisation and Local Growth,REDFERN TRAVEL LIMITED,,Small,,213089972,2100271840,Rail,Consolidated Monthly Travel February Rail,BD1 3AZ,"1,483.90",
Communities & Local Government,DCLG,13/03/2017,"Rail, Underground and Eurostar",Decentralisation and Local Growth,REDFERN TRAVEL LIMITED,,Small,,213089972,2100271840,Rail,Consolidated Monthly Travel February Rail,BD1 3AZ,"4,905.85",
Communities & Local Government,DCLG,13/03/2017,"Rail, Underground and Eurostar",Housing & Planning,REDFERN TRAVEL LIMITED,,Small,,213089972,2100271840,Rail,Consolidated Monthly Travel February Rail,BD1 3AZ,682.65,
Communities & Local Government,DCLG,13/03/2017,"Rail, Underground and Eurostar",Housing & Planning,REDFERN TRAVEL LIMITED,,Small,,213089972,2100271840,Rail,Consolidated Monthly Travel February Rail,BD1 3AZ,350.75,
Communities & Local Government,DCLG,13/03/2017,"Rail, Underground and Eurostar",Housing & Planning,REDFERN TRAVEL LIMITED,,Small,,213089972,2100271840,Rail,Consolidated Monthly Travel February Rail,BD1 3AZ,"3,432.36",
Communities & Local Government,DCLG,13/03/2017,"Rail, Underground and Eurostar",Housing & Planning,REDFERN TRAVEL LIMITED,,Small,,213089972,2100271840,Rail,Consolidated Monthly Travel February Rail,BD1 3AZ,"1,615.04",
Communities & Local Government,DCLG,13/03/2017,"Rail, Underground and Eurostar",Housing & Planning,REDFERN TRAVEL LIMITED,,Small,,213089972,2100271840,Rail,Consolidated Monthly Travel February Rail,BD1 3AZ,"3,040.85",
Communities & Local Government,DCLG,13/03/2017,"Rail, Underground and Eurostar",Housing & Planning,REDFERN TRAVEL LIMITED,,Small,,213089972,2100271840,Rail,Consolidated Monthly Travel February Rail,BD1 3AZ,"4,912.76",
Communities & Local Government,DCLG,13/03/2017,"Rail, Underground and Eurostar",Housing & Planning,REDFERN TRAVEL LIMITED,,Small,,213089972,2100271840,Rail,Consolidated Monthly Travel February Rail,BD1 3AZ,545.50,
Communities & Local Government,DCLG,13/03/2017,"Rail, Underground and Eurostar",Housing & Planning,REDFERN TRAVEL LIMITED,,Small,,213089972,2100271840,Rail,Consolidated Monthly Travel February Rail,BD1 3AZ,"1,064.30",
Communities & Local Government,DCLG,13/03/2017,"Rail, Underground and Eurostar",Housing & Planning,REDFERN TRAVEL LIMITED,,Small,,213089972,2100271840,Rail,Consolidated Monthly Travel February Rail,BD1 3AZ,648.20,
Communities & Local Government,DCLG,13/03/2017,"Rail, Underground and Eurostar",Housing & Planning,REDFERN TRAVEL LIMITED,,Small,,213089972,2100271840,Rail,Consolidated Monthly Travel February Rail,BD1 3AZ,836.50,
Communities & Local Government,DCLG,13/03/2017,"Rail, Underground and Eurostar",Local Government & Public Services,REDFERN TRAVEL LIMITED,,Small,,213089972,2100271840,Rail,Consolidated Monthly Travel February Rail,BD1 3AZ,"1,199.15",
Communities & Local Government,DCLG,13/03/2017,"Rail, Underground and Eurostar",Local Government & Public Services,REDFERN TRAVEL LIMITED,,Small,,213089972,2100271840,Rail,Consolidated Monthly Travel February Rail,BD1 3AZ,812.40,
Communities & Local Government,DCLG,13/03/2017,"Rail, Underground and Eurostar",Local Government & Public Services,REDFERN TRAVEL LIMITED,,Small,,213089972,2100271840,Rail,Consolidated Monthly Travel February Rail,BD1 3AZ,"3,118.35",
Communities & Local Government,DCLG,13/03/2017,"Rail, Underground and Eurostar",Local Government & Public Services,REDFERN TRAVEL LIMITED,,Small,,213089972,2100271840,Rail,Consolidated Monthly Travel February Rail,BD1 3AZ,371.80,
Communities & Local Government,DCLG,13/03/2017,"Rail, Underground and Eurostar",Local Government & Public Services,REDFERN TRAVEL LIMITED,,Small,,213089972,2100271840,Rail,Consolidated Monthly Travel February Rail,BD1 3AZ,724.75,
Communities & Local Government,DCLG,13/03/2017,"Rail, Underground and Eurostar",Local Government & Public Services,REDFERN TRAVEL LIMITED,,Small,,213089972,2100271840,Rail,Consolidated Monthly Travel February Rail,BD1 3AZ,"1,695.42",
Communities & Local Government,DCLG,13/03/2017,"Rail, Underground and Eurostar",Local Government & Public Services,REDFERN TRAVEL LIMITED,,Small,,213089972,2100271840,Rail,Consolidated Monthly Travel February Rail,BD1 3AZ,"1,044.90",
Communities & Local Government,DCLG,13/03/2017,"Rail, Underground and Eurostar",Local Government & Public Services,REDFERN TRAVEL LIMITED,,Small,,213089972,2100271840,Rail,Consolidated Monthly Travel February Rail,BD1 3AZ,"2,232.65",
Communities & Local Government,DCLG,13/03/2017,"Rail, Underground and Eurostar",Local Government & Public Services,REDFERN TRAVEL LIMITED,,Small,,213089972,2100271840,Rail,Consolidated Monthly Travel February Rail,BD1 3AZ,"1,470.80",
Communities & Local Government,DCLG,13/03/2017,"Rail, Underground and Eurostar",Local Government & Public Services,REDFERN TRAVEL LIMITED,,Small,,213089972,2100271840,Rail,Consolidated Monthly Travel February Rail,BD1 3AZ,"1,378.95",
Communities & Local Government,DCLG,13/03/2017,"Rail, Underground and Eurostar",Local Government & Public Services,REDFERN TRAVEL LIMITED,,Small,,213089972,2100271840,Rail,Consolidated Monthly Travel February Rail,BD1 3AZ,327.30,
Communities & Local Government,DCLG,13/03/2017,"Rail, Underground and Eurostar",Local Government & Public Services,REDFERN TRAVEL LIMITED,,Small,,213089972,2100271840,Rail,Consolidated Monthly Travel February Rail,BD1 3AZ,"3,093.57",
Communities & Local Government,DCLG,13/03/2017,"Rail, Underground and Eurostar",Local Government & Public Services,REDFERN TRAVEL LIMITED,,Small,,213089972,2100271840,Rail,Consolidated Monthly Travel February Rail,BD1 3AZ,"3,574.72",
Communities & Local Government,DCLG,13/03/2017,"Rail, Underground and Eurostar","Strategy, Communications and Private Office",REDFERN TRAVEL LIMITED,,Small,,213089972,2100271840,Rail,Consolidated Monthly Travel February Rail,BD1 3AZ,"1,687.85",
Communities & Local Government,DCLG,13/03/2017,"Rail, Underground and Eurostar","Strategy, Communications and Private Office",REDFERN TRAVEL LIMITED,,Small,,213089972,2100271840,Rail,Consolidated Monthly Travel February Rail,BD1 3AZ,840.90,
Communities & Local Government,DCLG,13/03/2017,Services provided by other Govt Orgs,Housing & Planning,HOMES & COMMUNITIES AGENCY,,Public Bodies,,215576860,2100271835,Financial,Fund  payments voluntary right to buy pilot,NE11 0NA,"3,241,671.00",Yes
Communities & Local Government,DCLG,13/03/2017,Steady State Service Provision,Local Government & Public Services,VODAFONE LTD FORMELY CABLE  & WIREL,,Large,,239869688,5106226991,Business Process Outsourcing Services,Managed Internet Access Line ,MK3 5JP,582.58,
Communities & Local Government,DCLG,13/03/2017,Telecoms equipment (non-capitalised),Corporate Services,DAISY CORPORATE SERVICES LTD,,Large,,221481042,5106226995,IT Managed / Outsourced Services,3mth service extension to 31/3/17,BB9 5SR,"107,846.66",
Communities & Local Government,DCLG,13/03/2017,Training,Housing & Planning,CONTACT PROPERTY TRAINING LTD,,Micro,,764461323,5106226993,Development and Training,Civil Service Training,RG2 8LW,250.00,
Communities & Local Government,DCLG,13/03/2017,Training,Housing & Planning,QE II CONFERENCE CENTRE,,Public Bodies,,228452843,5106226757,Development and Training,Civil Service Training,SW1P 3EE,"2,160.00",
Communities & Local Government,DCLG,13/03/2017,Travel and Subsistence Account,Decentralisation and Local Growth,REDFERN TRAVEL LIMITED,,Small,,213089972,2100271840,Business Travel,Consolidated Monthly Travel February Misc T&S,BD1 3AZ,"1,598.81",
Communities & Local Government,DCLG,13/03/2017,Travel and Subsistence Account,Local Government & Public Services,REDFERN TRAVEL LIMITED,,Small,,213089972,2100271840,Business Travel,Consolidated Monthly Travel February Misc T&S,BD1 3AZ,255.79,
Communities & Local Government,DCLG,13/03/2017,Vehicle hire,Corporate Services,GOVERNMENT CAR & DESPATCH AGENCY,,Public Bodies,,,5106226962,Vehicle Hire and Lease,Ministerial Duty Car (Non-VAT),SW8 5AX,357.00,
Communities & Local Government,DCLG,13/03/2017,Vehicle hire,Corporate Services,GOVERNMENT CAR & DESPATCH AGENCY,,Public Bodies,,,5106226962,Vehicle Hire and Lease,Ministerial Duty Car 2(LT206) 2016-17,SW8 5AX,"6,916.66",
Communities & Local Government,DCLG,13/03/2017,Vehicle hire,Corporate Services,GOVERNMENT CAR & DESPATCH AGENCY,,Public Bodies,,,5106226966,Vehicle Hire and Lease,Ministerial Duty Car (Non-VAT),SW8 5AX,357.00,
Communities & Local Government,DCLG,13/03/2017,Vehicle hire,Corporate Services,GOVERNMENT CAR & DESPATCH AGENCY,,Public Bodies,,,5106226966,Vehicle Hire and Lease,Ministerial Duty Car 1 (LT118) 2016-17,SW8 5AX,"6,861.33",
Communities & Local Government,DCLG,14/03/2017,Advertising,Corporate Services,TULLO MARSHALL WARREN LTD,,Medium,,,5106227012,Advertising,Right to Buy Marketing Contract 16/17,W1F 9NB,"2,289.00",
Communities & Local Government,DCLG,14/03/2017,Advertising,Corporate Services,TULLO MARSHALL WARREN LTD,,Medium,,,5106227014,Advertising,Right to Buy Marketing Contract 16/17,W1F 9NB,"3,450.85",
Communities & Local Government,DCLG,14/03/2017,Advertising,Corporate Services,TULLO MARSHALL WARREN LTD,,Medium,,,5106227015,Advertising,Right to Buy Marketing Contract 16/17,W1F 9NB,438.50,
Communities & Local Government,DCLG,14/03/2017,Advertising,Corporate Services,TULLO MARSHALL WARREN LTD,,Medium,,,5106227016,Advertising,Right to Buy Customer Relationship Mgt.,W1F 9NB,"3,066.60",
Communities & Local Government,DCLG,14/03/2017,Current (non AEF) Grants to Local Authorities,Local Government & Public Services,ADUR DC,,,,227472891,5000364560,,Business Rates Multiplier Cap,BN11 1HA,"2,827.00",Yes
Communities & Local Government,DCLG,14/03/2017,Current (non AEF) Grants to Local Authorities,Local Government & Public Services,ADUR DC,,,,227472891,5000364563,,New Empty Property Relief,BN11 1HA,471.00,Yes
Communities & Local Government,DCLG,14/03/2017,Current (non AEF) Grants to Local Authorities,Local Government & Public Services,ADUR DC,,,,227472891,5000364566,,Doubling of Small Business Rates Relief,BN11 1HA,"21,804.00",Yes
Communities & Local Government,DCLG,14/03/2017,Current (non AEF) Grants to Local Authorities,Local Government & Public Services,ALLERDALE BOROUGH COUNCIL,,,,218146780,5000364569,,Small Business Rates Relief on Second Properties,CA14 3YJ,344.00,Yes
Communities & Local Government,DCLG,14/03/2017,Current (non AEF) Grants to Local Authorities,Local Government & Public Services,ALLERDALE BOROUGH COUNCIL,,,,218146780,5000364572,,Extended Transitional Relief for Small and Medium,CA14 3YJ,338.00,Yes
Communities & Local Government,DCLG,14/03/2017,Current (non AEF) Grants to Local Authorities,Local Government & Public Services,ALLERDALE BOROUGH COUNCIL,,,,218146780,5000364575,,Business Rates Multiplier Cap,CA14 3YJ,"5,538.00",Yes
Communities & Local Government,DCLG,14/03/2017,Current (non AEF) Grants to Local Authorities,Local Government & Public Services,ALLERDALE BOROUGH COUNCIL,,,,218146780,5000364578,,Doubling of Small Business Rates Relief,CA14 3YJ,"60,533.00",Yes
Communities & Local Government,DCLG,14/03/2017,Current (non AEF) Grants to Local Authorities,Local Government & Public Services,ALLERDALE BOROUGH COUNCIL,,,,218146780,5000364581,,Long Term Empty Property Relief,CA14 3YJ,"1,000.00",Yes
Communities & Local Government,DCLG,14/03/2017,Current (non AEF) Grants to Local Authorities,Local Government & Public Services,AMBER VALLEY BC,,,,,5000364584,,Business Rates Multiplier Cap,DE5 3BT,"3,911.00",Yes
Communities & Local Government,DCLG,14/03/2017,Current (non AEF) Grants to Local Authorities,Local Government & Public Services,AMBER VALLEY BC,,,,,5000364587,,Doubling of Small Business Rates Relief,DE5 3BT,"45,349.00",Yes
Communities & Local Government,DCLG,14/03/2017,Current (non AEF) Grants to Local Authorities,Local Government & Public Services,AMBER VALLEY BC,,,,,5000364590,,Extended Transitional Relief for Small and Medium,DE5 3BT,571.00,Yes
Communities & Local Government,DCLG,14/03/2017,Current (non AEF) Grants to Local Authorities,Local Government & Public Services,AMBER VALLEY BC,,,,,5000364593,,Long Term Empty Property Relief,DE5 3BT,418.00,Yes
Communities & Local Government,DCLG,14/03/2017,Current (non AEF) Grants to Local Authorities,Local Government & Public Services,ARUN DC,,,,211217668,5000364015,,Doubling of Small Business Rates Relief,BN17 5LF,"57,372.00",Yes
Communities & Local Government,DCLG,14/03/2017,Current (non AEF) Grants to Local Authorities,Local Government & Public Services,ARUN DC,,,,211217668,5000364018,,Long Term Empty Property Relief,BN17 5LF,842.00,Yes
Communities & Local Government,DCLG,14/03/2017,Current (non AEF) Grants to Local Authorities,Local Government & Public Services,ARUN DC,,,,211217668,5000364021,,Business Rates Multiplier Cap,BN17 5LF,"6,145.00",Yes
Communities & Local Government,DCLG,14/03/2017,Current (non AEF) Grants to Local Authorities,Local Government & Public Services,ARUN DC,,,,211217668,5000364024,,Small Business Rates Relief on Second Properties,BN17 5LF,455.00,Yes
Communities & Local Government,DCLG,14/03/2017,Current (non AEF) Grants to Local Authorities,Local Government & Public Services,ASHFIELD DC,,,,235415296,5000364599,,Business Rates Multiplier Cap,NG17 8DA,"5,559.00",Yes
Communities & Local Government,DCLG,14/03/2017,Current (non AEF) Grants to Local Authorities,Local Government & Public Services,ASHFIELD DC,,,,235415296,5000364602,,New Empty Property Relief,NG17 8DA,846.00,Yes
Communities & Local Government,DCLG,14/03/2017,Current (non AEF) Grants to Local Authorities,Local Government & Public Services,ASHFIELD DC,,,,235415296,5000364605,,Doubling of Small Business Rates Relief,NG17 8DA,"33,312.00",Yes
Communities & Local Government,DCLG,14/03/2017,Current (non AEF) Grants to Local Authorities,Local Government & Public Services,ASHFIELD DC,,,,235415296,5000364608,,Long Term Empty Property Relief,NG17 8DA,338.00,Yes
Communities & Local Government,DCLG,14/03/2017,Current (non AEF) Grants to Local Authorities,Local Government & Public Services,ASHFORD BC,,,,229467071,5000364027,,Business Rates Multiplier Cap,TN23 1PL,"4,397.00",Yes
Communities & Local Government,DCLG,14/03/2017,Current (non AEF) Grants to Local Authorities,Local Government & Public Services,ASHFORD BC,,,,229467071,5000364030,,Doubling of Small Business Rates Relief,TN23 1PL,"44,830.00",Yes
Communities & Local Government,DCLG,14/03/2017,Current (non AEF) Grants to Local Authorities,Local Government & Public Services,ASHFORD BC,,,,229467071,5000364033,,New Empty Property Relief,TN23 1PL,286.00,Yes
Communities & Local Government,DCLG,14/03/2017,Current (non AEF) Grants to Local Authorities,Local Government & Public Services,ASHFORD BC,,,,229467071,5000364039,,Long Term Empty Property Relief,TN23 1PL,263.00,Yes
Communities & Local Government,DCLG,14/03/2017,Current (non AEF) Grants to Local Authorities,Local Government & Public Services,AVON FIRE AUTHORITY,,Large,,424872570,5000365725,,Business Rates Multiplier Cap,BS1 6EU,"12,278.00",Yes
Communities & Local Government,DCLG,14/03/2017,Current (non AEF) Grants to Local Authorities,Local Government & Public Services,AVON FIRE AUTHORITY,,Large,,424872570,5000365726,,Doubling of Small Business Rates Relief,BS1 6EU,"8,551.00",Yes
Communities & Local Government,DCLG,14/03/2017,Current (non AEF) Grants to Local Authorities,Local Government & Public Services,AYLESBURY VALE DC(HSG),,,,396710709,5000364045,,New Empty Property Relief,HP19 8FF,"3,585.00",Yes
Communities & Local Government,DCLG,14/03/2017,Current (non AEF) Grants to Local Authorities,Local Government & Public Services,AYLESBURY VALE DC(HSG),,,,396710709,5000364048,,Long Term Empty Property Relief,HP19 8FF,465.00,Yes
Communities & Local Government,DCLG,14/03/2017,Current (non AEF) Grants to Local Authorities,Local Government & Public Services,AYLESBURY VALE DC(HSG),,,,396710709,5000364051,,Extended Transitional Relief for Small and Medium,HP19 8FF,282.00,Yes
Communities & Local Government,DCLG,14/03/2017,Current (non AEF) Grants to Local Authorities,Local Government & Public Services,AYLESBURY VALE DC(HSG),,,,396710709,5000364054,,Small Business Rates Relief on Second Properties,HP19 8FF,637.00,Yes
Communities & Local Government,DCLG,14/03/2017,Current (non AEF) Grants to Local Authorities,Local Government & Public Services,AYLESBURY VALE DC(HSG),,,,396710709,5000364057,,Doubling of Small Business Rates Relief,HP19 8FF,"56,179.00",Yes
Communities & Local Government,DCLG,14/03/2017,Current (non AEF) Grants to Local Authorities,Local Government & Public Services,AYLESBURY VALE DC(HSG),,,,396710709,5000364060,,Business Rates Multiplier Cap,HP19 8FF,"5,222.00",Yes
Communities & Local Government,DCLG,14/03/2017,Current (non AEF) Grants to Local Authorities,Local Government & Public Services,BABERGH DC,,,,232618405,5000364063,,Long Term Empty Property Relief,IP7 6SJ,606.00,Yes
Communities & Local Government,DCLG,14/03/2017,Current (non AEF) Grants to Local Authorities,Local Government & Public Services,BABERGH DC,,,,232618405,5000364069,,Business Rates Multiplier Cap,IP7 6SJ,"2,737.00",Yes
Communities & Local Government,DCLG,14/03/2017,Current (non AEF) Grants to Local Authorities,Local Government & Public Services,BABERGH DC,,,,232618405,5000364072,,Doubling of Small Business Rates Relief,IP7 6SJ,"39,561.00",Yes
Communities & Local Government,DCLG,14/03/2017,Current (non AEF) Grants to Local Authorities,Local Government & Public Services,BARKING & DAGENHAM LB (HSG),,,,217142293,5000364082,,Doubling of Small Business Rates Relief,RM10 7BY,"34,197.00",Yes
Communities & Local Government,DCLG,14/03/2017,Current (non AEF) Grants to Local Authorities,Local Government & Public Services,BARKING & DAGENHAM LB (HSG),,,,217142293,5000364086,,Long Term Empty Property Relief,RM10 7BY,"4,611.00",Yes
Communities & Local Government,DCLG,14/03/2017,Current (non AEF) Grants to Local Authorities,Local Government & Public Services,BARKING & DAGENHAM LB (HSG),,,,217142293,5000364089,,Business Rates Multiplier Cap,RM10 7BY,"63,480.00",Yes
Communities & Local Government,DCLG,14/03/2017,Current (non AEF) Grants to Local Authorities,Local Government & Public Services,BARNSLEY MBC,,,,211178595,5000364623,,Business Rates Multiplier Cap,S70 2AQ,"63,266.00",Yes
Communities & Local Government,DCLG,14/03/2017,Current (non AEF) Grants to Local Authorities,Local Government & Public Services,BARNSLEY MBC,,,,211178595,5000364626,,Extended Transitional Relief for Small and Medium,S70 2AQ,849.00,Yes
Communities & Local Government,DCLG,14/03/2017,Current (non AEF) Grants to Local Authorities,Local Government & Public Services,BARNSLEY MBC,,,,211178595,5000364629,,Doubling of Small Business Rates Relief,S70 2AQ,"103,755.00",Yes
Communities & Local Government,DCLG,14/03/2017,Current (non AEF) Grants to Local Authorities,Local Government & Public Services,BARNSLEY MBC,,,,211178595,5000364632,,Long Term Empty Property Relief,S70 2AQ,576.00,Yes
Communities & Local Government,DCLG,14/03/2017,Current (non AEF) Grants to Local Authorities,Local Government & Public Services,BARROW BC,,,,295632913,5000364644,,Business Rates Multiplier Cap,LA14 2LD,"3,959.00",Yes
Communities & Local Government,DCLG,14/03/2017,Current (non AEF) Grants to Local Authorities,Local Government & Public Services,BARROW BC,,,,295632913,5000364647,,Doubling of Small Business Rates Relief,LA14 2LD,"23,588.00",Yes
Communities & Local Government,DCLG,14/03/2017,Current (non AEF) Grants to Local Authorities,Local Government & Public Services,BASILDON BOROUGH COUNCIL,,,,,5000364650,,Business Rates Multiplier Cap,SS14 0DF,"8,442.00",Yes
Communities & Local Government,DCLG,14/03/2017,Current (non AEF) Grants to Local Authorities,Local Government & Public Services,BASILDON BOROUGH COUNCIL,,,,,5000364653,,Doubling of Small Business Rates Relief,SS14 0DF,"43,308.00",Yes
Communities & Local Government,DCLG,14/03/2017,Current (non AEF) Grants to Local Authorities,Local Government & Public Services,BASINGSTOKE & DEANE BC,,,,228328506,5000364659,,Small Business Rates Relief on Second Properties,RG21 2AJ,577.00,Yes
Communities & Local Government,DCLG,14/03/2017,Current (non AEF) Grants to Local Authorities,Local Government & Public Services,BASINGSTOKE & DEANE BC,,,,228328506,5000364662,,Doubling of Small Business Rates Relief,RG21 2AJ,"28,585.00",Yes
Communities & Local Government,DCLG,14/03/2017,Current (non AEF) Grants to Local Authorities,Local Government & Public Services,BASINGSTOKE & DEANE BC,,,,228328506,5000364665,,Long Term Empty Property Relief,RG21 2AJ,"2,546.00",Yes
Communities & Local Government,DCLG,14/03/2017,Current (non AEF) Grants to Local Authorities,Local Government & Public Services,BASINGSTOKE & DEANE BC,,,,228328506,5000364668,,Business Rates Multiplier Cap,RG21 2AJ,"4,238.00",Yes
Communities & Local Government,DCLG,14/03/2017,Current (non AEF) Grants to Local Authorities,Local Government & Public Services,BASSETLAW DC (HSG),,,,,5000364092,,Business Rates Multiplier Cap,S80 2AH,"5,825.00",Yes
Communities & Local Government,DCLG,14/03/2017,Current (non AEF) Grants to Local Authorities,Local Government & Public Services,BASSETLAW DC (HSG),,,,,5000364095,,New Empty Property Relief,S80 2AH,"2,610.00",Yes
Communities & Local Government,DCLG,14/03/2017,Current (non AEF) Grants to Local Authorities,Local Government & Public Services,BASSETLAW DC (HSG),,,,,5000364098,,Long Term Empty Property Relief,S80 2AH,563.00,Yes
Communities & Local Government,DCLG,14/03/2017,Current (non AEF) Grants to Local Authorities,Local Government & Public Services,BASSETLAW DC (HSG),,,,,5000364101,,Extended Transitional Relief for Small and Medium,S80 2AH,402.00,Yes
Communities & Local Government,DCLG,14/03/2017,Current (non AEF) Grants to Local Authorities,Local Government & Public Services,BASSETLAW DC (HSG),,,,,5000364104,,Small Business Rates Relief on Second Properties,S80 2AH,558.00,Yes
Communities & Local Government,DCLG,14/03/2017,Current (non AEF) Grants to Local Authorities,Local Government & Public Services,BASSETLAW DC (HSG),,,,,5000364107,,Doubling of Small Business Rates Relief,S80 2AH,"44,715.00",Yes
Communities & Local Government,DCLG,14/03/2017,Current (non AEF) Grants to Local Authorities,Local Government & Public Services,BATH & NE SOMERSET DC (HSG),,,,214502499,5000364110,,Doubling of Small Business Rates Relief,BA1 5AW,"85,149.00",Yes
Communities & Local Government,DCLG,14/03/2017,Current (non AEF) Grants to Local Authorities,Local Government & Public Services,BATH & NE SOMERSET DC (HSG),,,,214502499,5000364113,,Long Term Empty Property Relief,BA1 5AW,"1,968.00",Yes
Communities & Local Government,DCLG,14/03/2017,Current (non AEF) Grants to Local Authorities,Local Government & Public Services,BATH & NE SOMERSET DC (HSG),,,,214502499,5000364120,,Small Business Rates Relief on Second Properties,BA1 5AW,315.00,Yes
Communities & Local Government,DCLG,14/03/2017,Current (non AEF) Grants to Local Authorities,Local Government & Public Services,BATH & NE SOMERSET DC (HSG),,,,214502499,5000364123,,Business Rates Multiplier Cap,BA1 5AW,"27,887.00",Yes
Communities & Local Government,DCLG,14/03/2017,Current (non AEF) Grants to Local Authorities,Local Government & Public Services,BEDFORD UNITARY AUTHORITY,,,,225682160,5000365755,,Doubling of Small Business Rates Relief,MK40 1SJ,"68,235.00",Yes
Communities & Local Government,DCLG,14/03/2017,Current (non AEF) Grants to Local Authorities,Local Government & Public Services,BEDFORD UNITARY AUTHORITY,,,,225682160,5000365756,,New Empty Property Relief,MK40 1SJ,"2,873.00",Yes
Communities & Local Government,DCLG,14/03/2017,Current (non AEF) Grants to Local Authorities,Local Government & Public Services,BEDFORD UNITARY AUTHORITY,,,,225682160,5000365757,,Long Term Empty Property Relief,MK40 1SJ,"1,284.00",Yes
Communities & Local Government,DCLG,14/03/2017,Current (non AEF) Grants to Local Authorities,Local Government & Public Services,BEDFORD UNITARY AUTHORITY,,,,225682160,5000365758,,Business Rates Multiplier Cap,MK40 1SJ,"36,648.00",Yes
Communities & Local Government,DCLG,14/03/2017,Current (non AEF) Grants to Local Authorities,Local Government & Public Services,BEDS & LUTON FIRE & RESCUE SERVICE,,Medium,,387821283,5000365664,,Extended Transitional Relief for Small and Medium,MK42 7NR,913.00,Yes
Communities & Local Government,DCLG,14/03/2017,Current (non AEF) Grants to Local Authorities,Local Government & Public Services,BEDS & LUTON FIRE & RESCUE SERVICE,,Medium,,387821283,5000365665,,Business Rates Multiplier Cap,MK42 7NR,"6,643.00",Yes
Communities & Local Government,DCLG,14/03/2017,Current (non AEF) Grants to Local Authorities,Local Government & Public Services,BEDS & LUTON FIRE & RESCUE SERVICE,,Medium,,387821283,5000365666,,Doubling of Small Business Rates Relief,MK42 7NR,"4,715.00",Yes
Communities & Local Government,DCLG,14/03/2017,Current (non AEF) Grants to Local Authorities,Local Government & Public Services,BEXLEY LB (RSG),,,,,5000365551,,Doubling of Small Business Rates Relief,DA8 1TL,"51,525.00",Yes
Communities & Local Government,DCLG,14/03/2017,Current (non AEF) Grants to Local Authorities,Local Government & Public Services,BEXLEY LB (RSG),,,,,5000365554,,Business Rates Multiplier Cap,DA8 1TL,"43,437.00",Yes
Communities & Local Government,DCLG,14/03/2017,Current (non AEF) Grants to Local Authorities,Local Government & Public Services,BIRMINGHAM CITY CNCL,,,,213780559,5000364673,,Business Rates Multiplier Cap,B2 2AJ,"408,999.00",Yes
Communities & Local Government,DCLG,14/03/2017,Current (non AEF) Grants to Local Authorities,Local Government & Public Services,BIRMINGHAM CITY CNCL,,,,213780559,5000364676,,Doubling of Small Business Rates Relief,B2 2AJ,"535,039.00",Yes
Communities & Local Government,DCLG,14/03/2017,Current (non AEF) Grants to Local Authorities,Local Government & Public Services,BLABY DC (HSG),,,,,5000364126,,Doubling of Small Business Rates Relief,LE9 5EP,"21,351.00",Yes
Communities & Local Government,DCLG,14/03/2017,Current (non AEF) Grants to Local Authorities,Local Government & Public Services,BLABY DC (HSG),,,,,5000364129,,Business Rates Multiplier Cap,LE9 5EP,"3,882.00",Yes
Communities & Local Government,DCLG,14/03/2017,Current (non AEF) Grants to Local Authorities,Local Government & Public Services,BLACKBURN WITH DARWEN BC,,,,,5000364679,,Small Business Rates Relief on Second Properties,BB1 7DY,"1,243.00",Yes
Communities & Local Government,DCLG,14/03/2017,Current (non AEF) Grants to Local Authorities,Local Government & Public Services,BLACKBURN WITH DARWEN BC,,,,,5000364682,,Extended Transitional Relief for Small and Medium,BB1 7DY,414.00,Yes
Communities & Local Government,DCLG,14/03/2017,Current (non AEF) Grants to Local Authorities,Local Government & Public Services,BLACKBURN WITH DARWEN BC,,,,,5000364685,,Business Rates Multiplier Cap,BB1 7DY,"49,324.00",Yes
Communities & Local Government,DCLG,14/03/2017,Current (non AEF) Grants to Local Authorities,Local Government & Public Services,BLACKBURN WITH DARWEN BC,,,,,5000364688,,Doubling of Small Business Rates Relief,BB1 7DY,"113,344.00",Yes
Communities & Local Government,DCLG,14/03/2017,Current (non AEF) Grants to Local Authorities,Local Government & Public Services,BLACKBURN WITH DARWEN BC,,,,,5000364691,,New Empty Property Relief,BB1 7DY,"4,144.00",Yes
Communities & Local Government,DCLG,14/03/2017,Current (non AEF) Grants to Local Authorities,Local Government & Public Services,BLACKBURN WITH DARWEN BC,,,,,5000364694,,Long Term Empty Property Relief,BB1 7DY,"6,216.00",Yes
Communities & Local Government,DCLG,14/03/2017,Current (non AEF) Grants to Local Authorities,Local Government & Public Services,BLACKPOOL BC,,,,,5000364697,,Business Rates Multiplier Cap,FY1 1NA,"52,283.00",Yes
Communities & Local Government,DCLG,14/03/2017,Current (non AEF) Grants to Local Authorities,Local Government & Public Services,BLACKPOOL BC,,,,,5000364700,,Doubling of Small Business Rates Relief,FY1 1NA,"128,139.00",Yes
Communities & Local Government,DCLG,14/03/2017,Current (non AEF) Grants to Local Authorities,Local Government & Public Services,BLACKPOOL BC,,,,,5000364705,,Long Term Empty Property Relief,FY1 1NA,"3,552.00",Yes
Communities & Local Government,DCLG,14/03/2017,Current (non AEF) Grants to Local Authorities,Local Government & Public Services,BOLSOVER DC,,,,235516523,5000364711,,Doubling of Small Business Rates Relief,S43 4JY,"22,960.00",Yes
Communities & Local Government,DCLG,14/03/2017,Current (non AEF) Grants to Local Authorities,Local Government & Public Services,BOLSOVER DC,,,,235516523,5000364717,,Business Rates Multiplier Cap,S43 4JY,"4,639.00",Yes
Communities & Local Government,DCLG,14/03/2017,Current (non AEF) Grants to Local Authorities,Local Government & Public Services,BOLTON MBC,,,,,5000364720,,Business Rates Multiplier Cap,BL1 1RU,"77,613.00",Yes
Communities & Local Government,DCLG,14/03/2017,Current (non AEF) Grants to Local Authorities,Local Government & Public Services,BOLTON MBC,,,,,5000364723,,Doubling of Small Business Rates Relief,BL1 1RU,"153,336.00",Yes
Communities & Local Government,DCLG,14/03/2017,Current (non AEF) Grants to Local Authorities,Local Government & Public Services,BOLTON MBC,,,,,5000364729,,Long Term Empty Property Relief,BL1 1RU,"7,501.00",Yes
Communities & Local Government,DCLG,14/03/2017,Current (non AEF) Grants to Local Authorities,Local Government & Public Services,BOLTON MBC,,,,,5000364732,,Extended Transitional Relief for Small and Medium,BL1 1RU,"2,487.00",Yes
Communities & Local Government,DCLG,14/03/2017,Current (non AEF) Grants to Local Authorities,Local Government & Public Services,BOSTON BC,,,,236417713,5000364132,,Business Rates Multiplier Cap,PE21 8QR,"3,549.00",Yes
Communities & Local Government,DCLG,14/03/2017,Current (non AEF) Grants to Local Authorities,Local Government & Public Services,BOSTON BC,,,,236417713,5000364135,,Doubling of Small Business Rates Relief,PE21 8QR,"26,359.00",Yes
Communities & Local Government,DCLG,14/03/2017,Current (non AEF) Grants to Local Authorities,Local Government & Public Services,BOSTON BC,,,,236417713,5000364139,,Long Term Empty Property Relief,PE21 8QR,286.00,Yes
Communities & Local Government,DCLG,14/03/2017,Current (non AEF) Grants to Local Authorities,Local Government & Public Services,BOURNEMOUTH DC,,,,,5000364738,,Business Rates Multiplier Cap,BH2 6EB,"36,180.00",Yes
Communities & Local Government,DCLG,14/03/2017,Current (non AEF) Grants to Local Authorities,Local Government & Public Services,BOURNEMOUTH DC,,,,,5000364741,,Doubling of Small Business Rates Relief,BH2 6EB,"94,247.00",Yes
Communities & Local Government,DCLG,14/03/2017,Current (non AEF) Grants to Local Authorities,Local Government & Public Services,BOURNEMOUTH DC,,,,,5000364744,,Long Term Empty Property Relief,BH2 6EB,"2,015.00",Yes
Communities & Local Government,DCLG,14/03/2017,Current (non AEF) Grants to Local Authorities,Local Government & Public Services,BRACKNELL FOREST DC,,,,236184867,5000364750,,Small Business Rates Relief on Second Properties,RG12 1AQ,414.00,Yes
Communities & Local Government,DCLG,14/03/2017,Current (non AEF) Grants to Local Authorities,Local Government & Public Services,BRACKNELL FOREST DC,,,,236184867,5000364753,,Business Rates Multiplier Cap,RG12 1AQ,"23,278.00",Yes
Communities & Local Government,DCLG,14/03/2017,Current (non AEF) Grants to Local Authorities,Local Government & Public Services,BRACKNELL FOREST DC,,,,236184867,5000364756,,Doubling of Small Business Rates Relief,RG12 1AQ,"20,721.00",Yes
Communities & Local Government,DCLG,14/03/2017,Current (non AEF) Grants to Local Authorities,Local Government & Public Services,BRACKNELL FOREST DC,,,,236184867,5000364759,,Long Term Empty Property Relief,RG12 1AQ,"2,072.00",Yes
Communities & Local Government,DCLG,14/03/2017,Current (non AEF) Grants to Local Authorities,Local Government & Public Services,BRADFORD MBC,,,,,5000364762,,Doubling of Small Business Rates Relief,BD1 1HX,"340,654.00",Yes
Communities & Local Government,DCLG,14/03/2017,Current (non AEF) Grants to Local Authorities,Local Government & Public Services,BRADFORD MBC,,,,,5000364765,,Long Term Empty Property Relief,BD1 1HX,"4,068.00",Yes
Communities & Local Government,DCLG,14/03/2017,Current (non AEF) Grants to Local Authorities,Local Government & Public Services,BRADFORD MBC,,,,,5000364768,,New Empty Property Relief,BD1 1HX,829.00,Yes
Communities & Local Government,DCLG,14/03/2017,Current (non AEF) Grants to Local Authorities,Local Government & Public Services,BRADFORD MBC,,,,,5000364771,,Extended Transitional Relief for Small and Medium,BD1 1HX,"1,036.00",Yes
Communities & Local Government,DCLG,14/03/2017,Current (non AEF) Grants to Local Authorities,Local Government & Public Services,BRADFORD MBC,,,,,5000364774,,Small Business Rates Relief on Second Properties,BD1 1HX,"2,487.00",Yes
Communities & Local Government,DCLG,14/03/2017,Current (non AEF) Grants to Local Authorities,Local Government & Public Services,BRADFORD MBC,,,,,5000364777,,Business Rates Multiplier Cap,BD1 1HX,"157,190.00",Yes
Communities & Local Government,DCLG,14/03/2017,Current (non AEF) Grants to Local Authorities,Local Government & Public Services,BRAINTREE DC,,,,226941730,5000364146,,New Empty Property Relief,CM7 6HB,340.00,Yes
Communities & Local Government,DCLG,14/03/2017,Current (non AEF) Grants to Local Authorities,Local Government & Public Services,BRAINTREE DC,,,,226941730,5000364148,,Long Term Empty Property Relief,CM7 6HB,811.00,Yes
Communities & Local Government,DCLG,14/03/2017,Current (non AEF) Grants to Local Authorities,Local Government & Public Services,BRAINTREE DC,,,,226941730,5000364151,,Extended Transitional Relief for Small and Medium,CM7 6HB,406.00,Yes
Communities & Local Government,DCLG,14/03/2017,Current (non AEF) Grants to Local Authorities,Local Government & Public Services,BRAINTREE DC,,,,226941730,5000364154,,Doubling of Small Business Rates Relief,CM7 6HB,"55,837.00",Yes
Communities & Local Government,DCLG,14/03/2017,Current (non AEF) Grants to Local Authorities,Local Government & Public Services,BRAINTREE DC,,,,226941730,5000364157,,Business Rates Multiplier Cap,CM7 6HB,"4,798.00",Yes
Communities & Local Government,DCLG,14/03/2017,Current (non AEF) Grants to Local Authorities,Local Government & Public Services,BRECKLAND DC,,,,232611384,5000364160,,Doubling of Small Business Rates Relief,NR19 1EE,"50,663.00",Yes
Communities & Local Government,DCLG,14/03/2017,Current (non AEF) Grants to Local Authorities,Local Government & Public Services,BRECKLAND DC,,,,232611384,5000364163,,Long Term Empty Property Relief,NR19 1EE,616.00,Yes
Communities & Local Government,DCLG,14/03/2017,Current (non AEF) Grants to Local Authorities,Local Government & Public Services,BRECKLAND DC,,,,232611384,5000364169,,Business Rates Multiplier Cap,NR19 1EE,"5,486.00",Yes
Communities & Local Government,DCLG,14/03/2017,Current (non AEF) Grants to Local Authorities,Local Government & Public Services,BRENT LB (HSG),,,,,5000364175,,Doubling of Small Business Rates Relief,HA9 9HD,"56,909.00",Yes
Communities & Local Government,DCLG,14/03/2017,Current (non AEF) Grants to Local Authorities,Local Government & Public Services,BRENT LB (HSG),,,,,5000364178,,Long Term Empty Property Relief,HA9 9HD,"1,269.00",Yes
Communities & Local Government,DCLG,14/03/2017,Current (non AEF) Grants to Local Authorities,Local Government & Public Services,BRENT LB (HSG),,,,,5000364184,,New Empty Property Relief,HA9 9HD,507.00,Yes
Communities & Local Government,DCLG,14/03/2017,Current (non AEF) Grants to Local Authorities,Local Government & Public Services,BRENT LB (HSG),,,,,5000364190,,Business Rates Multiplier Cap,HA9 9HD,"101,536.00",Yes
Communities & Local Government,DCLG,14/03/2017,Current (non AEF) Grants to Local Authorities,Local Government & Public Services,BRENTWOOD BC,,,,227473188,5000364780,,Doubling of Small Business Rates Relief,CM15 8AY,"20,298.00",Yes
Communities & Local Government,DCLG,14/03/2017,Current (non AEF) Grants to Local Authorities,Local Government & Public Services,BRENTWOOD BC,,,,227473188,5000364783,,Long Term Empty Property Relief,CM15 8AY,609.00,Yes
Communities & Local Government,DCLG,14/03/2017,Current (non AEF) Grants to Local Authorities,Local Government & Public Services,BRENTWOOD BC,,,,227473188,5000364788,,Business Rates Multiplier Cap,CM15 8AY,"1,726.00",Yes
Communities & Local Government,DCLG,14/03/2017,Current (non AEF) Grants to Local Authorities,Local Government & Public Services,BRIGHTON & HOVE CITY COUNCIL,,Large,,228455218,5000364791,,Business Rates Multiplier Cap,BN3 2LS,"67,026.00",Yes
Communities & Local Government,DCLG,14/03/2017,Current (non AEF) Grants to Local Authorities,Local Government & Public Services,BRIGHTON & HOVE CITY COUNCIL,,Large,,228455218,5000364795,,Doubling of Small Business Rates Relief,BN3 2LS,"138,624.00",Yes
Communities & Local Government,DCLG,14/03/2017,Current (non AEF) Grants to Local Authorities,Local Government & Public Services,BRIGHTON & HOVE CITY COUNCIL,,Large,,228455218,5000364798,,New Empty Property Relief,BN3 2LS,371.00,Yes
Communities & Local Government,DCLG,14/03/2017,Current (non AEF) Grants to Local Authorities,Local Government & Public Services,BRIGHTON & HOVE CITY COUNCIL,,Large,,228455218,5000364801,,Long Term Empty Property Relief,BN3 2LS,"5,357.00",Yes
Communities & Local Government,DCLG,14/03/2017,Current (non AEF) Grants to Local Authorities,Local Government & Public Services,BRIGHTON & HOVE CITY COUNCIL,,Large,,228455218,5000364804,,Small Business Rates Relief on Second Properties,BN3 2LS,"1,312.00",Yes
Communities & Local Government,DCLG,14/03/2017,Current (non AEF) Grants to Local Authorities,Local Government & Public Services,BRISTOL CITY CNCL (HSG),,,,211103882,5000364193,,Extended Transitional Relief for Small and Medium,BS99 7BL,"1,283.00",Yes
Communities & Local Government,DCLG,14/03/2017,Current (non AEF) Grants to Local Authorities,Local Government & Public Services,BRISTOL CITY CNCL (HSG),,,,211103882,5000364196,,Small Business Rates Relief on Second Properties,BS99 7BL,"2,692.00",Yes
Communities & Local Government,DCLG,14/03/2017,Current (non AEF) Grants to Local Authorities,Local Government & Public Services,BRISTOL CITY CNCL (HSG),,,,211103882,5000364199,,Business Rates Multiplier Cap,BS99 7BL,"123,286.00",Yes
Communities & Local Government,DCLG,14/03/2017,Current (non AEF) Grants to Local Authorities,Local Government & Public Services,BRISTOL CITY CNCL (HSG),,,,211103882,5000364202,,Doubling of Small Business Rates Relief,BS99 7BL,"180,088.00",Yes
Communities & Local Government,DCLG,14/03/2017,Current (non AEF) Grants to Local Authorities,Local Government & Public Services,BRISTOL CITY CNCL (HSG),,,,211103882,5000364205,,Long Term Empty Property Relief,BS99 7BL,"6,676.00",Yes
Communities & Local Government,DCLG,14/03/2017,Current (non AEF) Grants to Local Authorities,Local Government & Public Services,BROADLAND DC,,Large,,219737785,5000364208,,Business Rates Multiplier Cap,NR7 0DU,"3,752.00",Yes
Communities & Local Government,DCLG,14/03/2017,Current (non AEF) Grants to Local Authorities,Local Government & Public Services,BROADLAND DC,,Large,,219737785,5000364211,,Doubling of Small Business Rates Relief,NR7 0DU,"45,789.00",Yes
Communities & Local Government,DCLG,14/03/2017,Current (non AEF) Grants to Local Authorities,Local Government & Public Services,BROMLEY LB,,,,211331954,5000364810,,Extended Transitional Relief for Small and Medium,BR1 3UH,438.00,Yes
Communities & Local Government,DCLG,14/03/2017,Current (non AEF) Grants to Local Authorities,Local Government & Public Services,BROMLEY LB,,,,211331954,5000364813,,Business Rates Multiplier Cap,BR1 3UH,"42,330.00",Yes
Communities & Local Government,DCLG,14/03/2017,Current (non AEF) Grants to Local Authorities,Local Government & Public Services,BROMLEY LB,,,,211331954,5000364815,,Doubling of Small Business Rates Relief,BR1 3UH,"57,059.00",Yes
Communities & Local Government,DCLG,14/03/2017,Current (non AEF) Grants to Local Authorities,Local Government & Public Services,BROMLEY LB,,,,211331954,5000364818,,Long Term Empty Property Relief,BR1 3UH,630.00,Yes
Communities & Local Government,DCLG,14/03/2017,Current (non AEF) Grants to Local Authorities,Local Government & Public Services,BROMSGROVE DC,,,,236654745,5000364225,,Business Rates Multiplier Cap,B60 1AA,"2,323.00",Yes
Communities & Local Government,DCLG,14/03/2017,Current (non AEF) Grants to Local Authorities,Local Government & Public Services,BROMSGROVE DC,,,,236654745,5000364229,,Doubling of Small Business Rates Relief,B60 1AA,"39,796.00",Yes
Communities & Local Government,DCLG,14/03/2017,Current (non AEF) Grants to Local Authorities,Local Government & Public Services,BROMSGROVE DC,,,,236654745,5000364232,,New Empty Property Relief,B60 1AA,873.00,Yes
Communities & Local Government,DCLG,14/03/2017,Current (non AEF) Grants to Local Authorities,Local Government & Public Services,BROMSGROVE DC,,,,236654745,5000364235,,Long Term Empty Property Relief,B60 1AA,496.00,Yes
Communities & Local Government,DCLG,14/03/2017,Current (non AEF) Grants to Local Authorities,Local Government & Public Services,BROXBOURNE BC,,Public Bodies,,239931918,5000364821,,Doubling of Small Business Rates Relief,EN8 9XG,"25,042.00",Yes
Communities & Local Government,DCLG,14/03/2017,Current (non AEF) Grants to Local Authorities,Local Government & Public Services,BROXBOURNE BC,,Public Bodies,,239931918,5000364824,,Business Rates Multiplier Cap,EN8 9XG,"3,768.00",Yes
Communities & Local Government,DCLG,14/03/2017,Current (non AEF) Grants to Local Authorities,Local Government & Public Services,BROXTOWE BC,,,,239877640,5000364827,,Doubling of Small Business Rates Relief,NG9 1AB,"29,094.00",Yes
Communities & Local Government,DCLG,14/03/2017,Current (non AEF) Grants to Local Authorities,Local Government & Public Services,BROXTOWE BC,,,,239877640,5000364830,,Business Rates Multiplier Cap,NG9 1AB,"3,829.00",Yes
Communities & Local Government,DCLG,14/03/2017,Current (non AEF) Grants to Local Authorities,Local Government & Public Services,BUCKINGHAMSHIRE CC,,,,293750923,5000364833,,Business Rates Multiplier Cap,HP20 1UD,"50,132.00",Yes
Communities & Local Government,DCLG,14/03/2017,Current (non AEF) Grants to Local Authorities,Local Government & Public Services,BUCKINGHAMSHIRE CC,,,,293750923,5000364836,,Doubling of Small Business Rates Relief,HP20 1UD,"30,899.00",Yes
Communities & Local Government,DCLG,14/03/2017,Current (non AEF) Grants to Local Authorities,Local Government & Public Services,BUCKINGHAMSHIRE CC,,,,293750923,5000364846,,New Empty Property Relief,HP20 1UD,807.00,Yes
Communities & Local Government,DCLG,14/03/2017,Current (non AEF) Grants to Local Authorities,Local Government & Public Services,BUCKS & MILTON KEYNES FIRE AUTH,,Public Bodies,,423679463,5000365598,,Business Rates Multiplier Cap,HP20 1BD,"5,961.00",Yes
Communities & Local Government,DCLG,14/03/2017,Current (non AEF) Grants to Local Authorities,Local Government & Public Services,BUCKS & MILTON KEYNES FIRE AUTH,,Public Bodies,,423679463,5000365599,,Doubling of Small Business Rates Relief,HP20 1BD,"4,961.00",Yes
Communities & Local Government,DCLG,14/03/2017,Current (non AEF) Grants to Local Authorities,Local Government & Public Services,BURNLEY BC,,,,229413281,5000364852,,Long Term Empty Property Relief,BB11 1JA,846.00,Yes
Communities & Local Government,DCLG,14/03/2017,Current (non AEF) Grants to Local Authorities,Local Government & Public Services,BURNLEY BC,,,,229413281,5000364855,,Extended Transitional Relief for Small and Medium,BB11 1JA,846.00,Yes
Communities & Local Government,DCLG,14/03/2017,Current (non AEF) Grants to Local Authorities,Local Government & Public Services,BURNLEY BC,,,,229413281,5000364858,,Business Rates Multiplier Cap,BB11 1JA,"5,214.00",Yes
Communities & Local Government,DCLG,14/03/2017,Current (non AEF) Grants to Local Authorities,Local Government & Public Services,BURNLEY BC,,,,229413281,5000364861,,New Empty Property Relief,BB11 1JA,846.00,Yes
Communities & Local Government,DCLG,14/03/2017,Current (non AEF) Grants to Local Authorities,Local Government & Public Services,BURNLEY BC,,,,229413281,5000364864,,Doubling of Small Business Rates Relief,BB11 1JA,"47,457.00",Yes
Communities & Local Government,DCLG,14/03/2017,Current (non AEF) Grants to Local Authorities,Local Government & Public Services,BURNLEY BC,,,,229413281,5000364867,,Small Business Rates Relief on Second Properties,BB11 1JA,422.00,Yes
Communities & Local Government,DCLG,14/03/2017,Current (non AEF) Grants to Local Authorities,Local Government & Public Services,BURY MBC,,,,,5000364872,,Business Rates Multiplier Cap,BL9 0SW,"39,364.00",Yes
Communities & Local Government,DCLG,14/03/2017,Current (non AEF) Grants to Local Authorities,Local Government & Public Services,BURY MBC,,,,,5000364876,,Doubling of Small Business Rates Relief,BL9 0SW,"101,735.00",Yes
Communities & Local Government,DCLG,14/03/2017,Current (non AEF) Grants to Local Authorities,Local Government & Public Services,BURY MBC,,,,,5000364879,,Extended Transitional Relief for Small and Medium,BL9 0SW,453.00,Yes
Communities & Local Government,DCLG,14/03/2017,Current (non AEF) Grants to Local Authorities,Local Government & Public Services,CALDERDALE MBC,,,,,5000364882,,Business Rates Multiplier Cap,HX1 1YP,"47,351.00",Yes
Communities & Local Government,DCLG,14/03/2017,Current (non AEF) Grants to Local Authorities,Local Government & Public Services,CALDERDALE MBC,,,,,5000364885,,Doubling of Small Business Rates Relief,HX1 1YP,"141,387.00",Yes
Communities & Local Government,DCLG,14/03/2017,Current (non AEF) Grants to Local Authorities,Local Government & Public Services,CALDERDALE MBC,,,,,5000364888,,Extended Transitional Relief for Small and Medium,HX1 1YP,539.00,Yes
Communities & Local Government,DCLG,14/03/2017,Current (non AEF) Grants to Local Authorities,Local Government & Public Services,CALDERDALE MBC,,,,,5000364891,,Small Business Rates Relief on Second Properties,HX1 1YP,"2,072.00",Yes
Communities & Local Government,DCLG,14/03/2017,Current (non AEF) Grants to Local Authorities,Local Government & Public Services,CAMBRIDGE CITY COUNCIL,,,,210357534,5000364894,,New Empty Property Relief,CB1 0JH,"1,692.00",Yes
Communities & Local Government,DCLG,14/03/2017,Current (non AEF) Grants to Local Authorities,Local Government & Public Services,CAMBRIDGE CITY COUNCIL,,,,210357534,5000364896,,Long Term Empty Property Relief,CB1 0JH,"3,383.00",Yes
Communities & Local Government,DCLG,14/03/2017,Current (non AEF) Grants to Local Authorities,Local Government & Public Services,CAMBRIDGE CITY COUNCIL,,,,210357534,5000364899,,Extended Transitional Relief for Small and Medium,CB1 0JH,868.00,Yes
Communities & Local Government,DCLG,14/03/2017,Current (non AEF) Grants to Local Authorities,Local Government & Public Services,CAMBRIDGE CITY COUNCIL,,,,210357534,5000364902,,Business Rates Multiplier Cap,CB1 0JH,"7,416.00",Yes
Communities & Local Government,DCLG,14/03/2017,Current (non AEF) Grants to Local Authorities,Local Government & Public Services,CAMBRIDGE CITY COUNCIL,,,,210357534,5000364905,,Doubling of Small Business Rates Relief,CB1 0JH,"24,139.00",Yes
Communities & Local Government,DCLG,14/03/2017,Current (non AEF) Grants to Local Authorities,Local Government & Public Services,CAMBRIDGESHIRE COUNTY CNCL,,,,219047347,5000364908,,Long Term Empty Property Relief,CB3 0AP,865.00,Yes
Communities & Local Government,DCLG,14/03/2017,Current (non AEF) Grants to Local Authorities,Local Government & Public Services,CAMBRIDGESHIRE COUNTY CNCL,,,,219047347,5000364911,,Extended Transitional Relief for Small and Medium,CB3 0AP,360.00,Yes
Communities & Local Government,DCLG,14/03/2017,Current (non AEF) Grants to Local Authorities,Local Government & Public Services,CAMBRIDGESHIRE COUNTY CNCL,,,,219047347,5000364914,,Small Business Rates Relief on Second Properties,CB3 0AP,391.00,Yes
Communities & Local Government,DCLG,14/03/2017,Current (non AEF) Grants to Local Authorities,Local Government & Public Services,CAMBRIDGESHIRE COUNTY CNCL,,,,219047347,5000364917,,Doubling of Small Business Rates Relief,CB3 0AP,"42,347.00",Yes
Communities & Local Government,DCLG,14/03/2017,Current (non AEF) Grants to Local Authorities,Local Government & Public Services,CAMBRIDGESHIRE COUNTY CNCL,,,,219047347,5000364920,,Business Rates Multiplier Cap,CB3 0AP,"73,957.00",Yes
Communities & Local Government,DCLG,14/03/2017,Current (non AEF) Grants to Local Authorities,Local Government & Public Services,CAMBRIDGESHIRE COUNTY CNCL,,,,219047347,5000364923,,New Empty Property Relief,CB3 0AP,692.00,Yes
Communities & Local Government,DCLG,14/03/2017,Current (non AEF) Grants to Local Authorities,Local Government & Public Services,CAMBS & PETERBOROUGH FIRE AUTHORITY,,,,235999737,5000365639,,Business Rates Multiplier Cap,PE29 2NA,"7,024.00",Yes
Communities & Local Government,DCLG,14/03/2017,Current (non AEF) Grants to Local Authorities,Local Government & Public Services,CAMBS & PETERBOROUGH FIRE AUTHORITY,,,,235999737,5000365640,,Doubling of Small Business Rates Relief,PE29 2NA,"6,042.00",Yes
Communities & Local Government,DCLG,14/03/2017,Current (non AEF) Grants to Local Authorities,Local Government & Public Services,CAMDEN LB,,,,211651836,5000364926,,Extended Transitional Relief for Small and Medium,WC1H 8NG,"2,291.00",Yes
Communities & Local Government,DCLG,14/03/2017,Current (non AEF) Grants to Local Authorities,Local Government & Public Services,CAMDEN LB,,,,211651836,5000364929,,Doubling of Small Business Rates Relief,WC1H 8NG,"37,896.00",Yes
Communities & Local Government,DCLG,14/03/2017,Current (non AEF) Grants to Local Authorities,Local Government & Public Services,CAMDEN LB,,,,211651836,5000364932,,Business Rates Multiplier Cap,WC1H 8NG,"110,441.00",Yes
Communities & Local Government,DCLG,14/03/2017,Current (non AEF) Grants to Local Authorities,Local Government & Public Services,CANNOCK CHASE DC,,,,215064770,5000364935,,Long Term Empty Property Relief,WS11 1BG,904.00,Yes
Communities & Local Government,DCLG,14/03/2017,Current (non AEF) Grants to Local Authorities,Local Government & Public Services,CANNOCK CHASE DC,,,,215064770,5000364940,,Business Rates Multiplier Cap,WS11 1BG,"4,910.00",Yes
Communities & Local Government,DCLG,14/03/2017,Current (non AEF) Grants to Local Authorities,Local Government & Public Services,CANNOCK CHASE DC,,,,215064770,5000364943,,Doubling of Small Business Rates Relief,WS11 1BG,"43,823.00",Yes
Communities & Local Government,DCLG,14/03/2017,Current (non AEF) Grants to Local Authorities,Local Government & Public Services,CANTERBURY CITY CNCL,,,,,5000364241,,Business Rates Multiplier Cap,CT1 1YW,"3,972.00",Yes
Communities & Local Government,DCLG,14/03/2017,Current (non AEF) Grants to Local Authorities,Local Government & Public Services,CANTERBURY CITY CNCL,,,,,5000364244,,Doubling of Small Business Rates Relief,CT1 1YW,"59,133.00",Yes
Communities & Local Government,DCLG,14/03/2017,Current (non AEF) Grants to Local Authorities,Local Government & Public Services,CANTERBURY CITY CNCL,,,,,5000364247,,Long Term Empty Property Relief,CT1 1YW,"1,569.00",Yes
Communities & Local Government,DCLG,14/03/2017,Current (non AEF) Grants to Local Authorities,Local Government & Public Services,CANTERBURY CITY CNCL,,,,,5000364250,,Extended Transitional Relief for Small and Medium,CT1 1YW,366.00,Yes
Communities & Local Government,DCLG,14/03/2017,Current (non AEF) Grants to Local Authorities,Local Government & Public Services,CARLISLE CITY CNCL,,,,227471059,5000364259,,Long Term Empty Property Relief,CA3 8QG,"2,091.00",Yes
Communities & Local Government,DCLG,14/03/2017,Current (non AEF) Grants to Local Authorities,Local Government & Public Services,CARLISLE CITY CNCL,,,,227471059,5000364262,,Small Business Rates Relief on Second Properties,CA3 8QG,484.00,Yes
Communities & Local Government,DCLG,14/03/2017,Current (non AEF) Grants to Local Authorities,Local Government & Public Services,CARLISLE CITY CNCL,,,,227471059,5000364265,,Extended Transitional Relief for Small and Medium,CA3 8QG,271.00,Yes
Communities & Local Government,DCLG,14/03/2017,Current (non AEF) Grants to Local Authorities,Local Government & Public Services,CARLISLE CITY CNCL,,,,227471059,5000364268,,Business Rates Multiplier Cap,CA3 8QG,"4,980.00",Yes
Communities & Local Government,DCLG,14/03/2017,Current (non AEF) Grants to Local Authorities,Local Government & Public Services,CARLISLE CITY CNCL,,,,227471059,5000364271,,Doubling of Small Business Rates Relief,CA3 8QG,"44,465.00",Yes
Communities & Local Government,DCLG,14/03/2017,Current (non AEF) Grants to Local Authorities,Local Government & Public Services,CASTLE POINT BC,,Public Bodies,,228217931,5000364949,,Business Rates Multiplier Cap,SS7 1TF,"2,467.00",Yes
Communities & Local Government,DCLG,14/03/2017,Current (non AEF) Grants to Local Authorities,Local Government & Public Services,CASTLE POINT BC,,Public Bodies,,228217931,5000364958,,Doubling of Small Business Rates Relief,SS7 1TF,"30,698.00",Yes
Communities & Local Government,DCLG,14/03/2017,Current (non AEF) Grants to Local Authorities,Local Government & Public Services,CENTRAL BEDFORDSHIRE COUNCIL,,,,232624882,5000365739,,Business Rates Multiplier Cap,SG17 5TQ,"39,592.00",Yes
Communities & Local Government,DCLG,14/03/2017,Current (non AEF) Grants to Local Authorities,Local Government & Public Services,CENTRAL BEDFORDSHIRE COUNCIL,,,,232624882,5000365740,,New Empty Property Relief,SG17 5TQ,"2,122.00",Yes
Communities & Local Government,DCLG,14/03/2017,Current (non AEF) Grants to Local Authorities,Local Government & Public Services,CENTRAL BEDFORDSHIRE COUNCIL,,,,232624882,5000365741,,Extended Transitional Relief for Small and Medium,SG17 5TQ,578.00,Yes
Communities & Local Government,DCLG,14/03/2017,Current (non AEF) Grants to Local Authorities,Local Government & Public Services,CENTRAL BEDFORDSHIRE COUNCIL,,,,232624882,5000365742,,Doubling of Small Business Rates Relief,SG17 5TQ,"98,924.00",Yes
Communities & Local Government,DCLG,14/03/2017,Current (non AEF) Grants to Local Authorities,Local Government & Public Services,CENTRAL BEDFORDSHIRE COUNCIL,,,,232624882,5000365743,,Long Term Empty Property Relief,SG17 5TQ,"1,751.00",Yes
Communities & Local Government,DCLG,14/03/2017,Current (non AEF) Grants to Local Authorities,Local Government & Public Services,CHARNWOOD BC,,,,,5000364961,,Long Term Empty Property Relief,LE11 2TU,795.00,Yes
Communities & Local Government,DCLG,14/03/2017,Current (non AEF) Grants to Local Authorities,Local Government & Public Services,CHARNWOOD BC,,,,,5000364964,,Small Business Rates Relief on Second Properties,LE11 2TU,423.00,Yes
Communities & Local Government,DCLG,14/03/2017,Current (non AEF) Grants to Local Authorities,Local Government & Public Services,CHARNWOOD BC,,,,,5000364967,,Business Rates Multiplier Cap,LE11 2TU,"4,877.00",Yes
Communities & Local Government,DCLG,14/03/2017,Current (non AEF) Grants to Local Authorities,Local Government & Public Services,CHARNWOOD BC,,,,,5000364970,,New Empty Property Relief,LE11 2TU,"1,692.00",Yes
Communities & Local Government,DCLG,14/03/2017,Current (non AEF) Grants to Local Authorities,Local Government & Public Services,CHARNWOOD BC,,,,,5000364976,,Doubling of Small Business Rates Relief,LE11 2TU,"54,588.00",Yes
Communities & Local Government,DCLG,14/03/2017,Current (non AEF) Grants to Local Authorities,Local Government & Public Services,CHELMSFORD BC,,,,,5000364979,,Doubling of Small Business Rates Relief,CM1 1JE,"46,564.00",Yes
Communities & Local Government,DCLG,14/03/2017,Current (non AEF) Grants to Local Authorities,Local Government & Public Services,CHELMSFORD BC,,,,,5000364982,,Long Term Empty Property Relief,CM1 1JE,"1,258.00",Yes
Communities & Local Government,DCLG,14/03/2017,Current (non AEF) Grants to Local Authorities,Local Government & Public Services,CHELMSFORD BC,,,,,5000364988,,Extended Transitional Relief for Small and Medium,CM1 1JE,579.00,Yes
Communities & Local Government,DCLG,14/03/2017,Current (non AEF) Grants to Local Authorities,Local Government & Public Services,CHELMSFORD BC,,,,,5000364991,,Business Rates Multiplier Cap,CM1 1JE,"3,155.00",Yes
Communities & Local Government,DCLG,14/03/2017,Current (non AEF) Grants to Local Authorities,Local Government & Public Services,CHELTENHAM BC,,,,,5000364995,,Business Rates Multiplier Cap,GL50 1PW,"3,729.00",Yes
Communities & Local Government,DCLG,14/03/2017,Current (non AEF) Grants to Local Authorities,Local Government & Public Services,CHELTENHAM BC,,,,,5000364998,,Doubling of Small Business Rates Relief,GL50 1PW,"39,956.00",Yes
Communities & Local Government,DCLG,14/03/2017,Current (non AEF) Grants to Local Authorities,Local Government & Public Services,CHELTENHAM BC,,,,,5000365001,,Long Term Empty Property Relief,GL50 1PW,507.00,Yes
Communities & Local Government,DCLG,14/03/2017,Current (non AEF) Grants to Local Authorities,Local Government & Public Services,CHERWELL DC,,,,,5000364274,,Doubling of Small Business Rates Relief,OX15 4AA,"38,356.00",Yes
Communities & Local Government,DCLG,14/03/2017,Current (non AEF) Grants to Local Authorities,Local Government & Public Services,CHERWELL DC,,,,,5000364277,,Long Term Empty Property Relief,OX15 4AA,"1,010.00",Yes
Communities & Local Government,DCLG,14/03/2017,Current (non AEF) Grants to Local Authorities,Local Government & Public Services,CHERWELL DC,,,,,5000364284,,Business Rates Multiplier Cap,OX15 4AA,"9,038.00",Yes
Communities & Local Government,DCLG,14/03/2017,Current (non AEF) Grants to Local Authorities,Local Government & Public Services,CHESHIRE EAST COUNCIL,,Large,,,5000365744,,Doubling of Small Business Rates Relief,CW11 1HZ,"185,853.00",Yes
Communities & Local Government,DCLG,14/03/2017,Current (non AEF) Grants to Local Authorities,Local Government & Public Services,CHESHIRE EAST COUNCIL,,Large,,,5000365745,,Long Term Empty Property Relief,CW11 1HZ,"4,065.00",Yes
Communities & Local Government,DCLG,14/03/2017,Current (non AEF) Grants to Local Authorities,Local Government & Public Services,CHESHIRE EAST COUNCIL,,Large,,,5000365746,,Extended Transitional Relief for Small and Medium,CW11 1HZ,294.00,Yes
Communities & Local Government,DCLG,14/03/2017,Current (non AEF) Grants to Local Authorities,Local Government & Public Services,CHESHIRE EAST COUNCIL,,Large,,,5000365747,,Small Business Rates Relief on Second Properties,CW11 1HZ,"1,953.00",Yes
Communities & Local Government,DCLG,14/03/2017,Current (non AEF) Grants to Local Authorities,Local Government & Public Services,CHESHIRE EAST COUNCIL,,Large,,,5000365748,,Business Rates Multiplier Cap,CW11 1HZ,"49,472.00",Yes
Communities & Local Government,DCLG,14/03/2017,Current (non AEF) Grants to Local Authorities,Local Government & Public Services,CHESHIRE FIRE AUTHORITY,,,,424872737,5000365633,,Doubling of Small Business Rates Relief,CW7 2FQ,"8,680.00",Yes
Communities & Local Government,DCLG,14/03/2017,Current (non AEF) Grants to Local Authorities,Local Government & Public Services,CHESHIRE FIRE AUTHORITY,,,,424872737,5000365636,,Business Rates Multiplier Cap,CW7 2FQ,"10,630.00",Yes
Communities & Local Government,DCLG,14/03/2017,Current (non AEF) Grants to Local Authorities,Local Government & Public Services,CHESHIRE WEST & CHESTER UA,,Large,,215584383,5000365749,,Business Rates Multiplier Cap,CH1 2NP,"61,470.00",Yes
Communities & Local Government,DCLG,14/03/2017,Current (non AEF) Grants to Local Authorities,Local Government & Public Services,CHESHIRE WEST & CHESTER UA,,Large,,215584383,5000365750,,New Empty Property Relief,CH1 2NP,456.00,Yes
Communities & Local Government,DCLG,14/03/2017,Current (non AEF) Grants to Local Authorities,Local Government & Public Services,CHESHIRE WEST & CHESTER UA,,Large,,215584383,5000365751,,Extended Transitional Relief for Small and Medium,CH1 2NP,414.00,Yes
Communities & Local Government,DCLG,14/03/2017,Current (non AEF) Grants to Local Authorities,Local Government & Public Services,CHESHIRE WEST & CHESTER UA,,Large,,215584383,5000365752,,Small Business Rates Relief on Second Properties,CH1 2NP,870.00,Yes
Communities & Local Government,DCLG,14/03/2017,Current (non AEF) Grants to Local Authorities,Local Government & Public Services,CHESHIRE WEST & CHESTER UA,,Large,,215584383,5000365753,,Doubling of Small Business Rates Relief,CH1 2NP,"133,672.00",Yes
Communities & Local Government,DCLG,14/03/2017,Current (non AEF) Grants to Local Authorities,Local Government & Public Services,CHESHIRE WEST & CHESTER UA,,Large,,215584383,5000365754,,Long Term Empty Property Relief,CH1 2NP,"3,481.00",Yes
Communities & Local Government,DCLG,14/03/2017,Current (non AEF) Grants to Local Authorities,Local Government & Public Services,CHESTERFIELD BC,,,,232102301,5000365013,,Small Business Rates Relief on Second Properties,S40 1LP,261.00,Yes
Communities & Local Government,DCLG,14/03/2017,Current (non AEF) Grants to Local Authorities,Local Government & Public Services,CHESTERFIELD BC,,,,232102301,5000365016,,Business Rates Multiplier Cap,S40 1LP,"5,810.00",Yes
Communities & Local Government,DCLG,14/03/2017,Current (non AEF) Grants to Local Authorities,Local Government & Public Services,CHESTERFIELD BC,,,,232102301,5000365019,,Doubling of Small Business Rates Relief,S40 1LP,"48,134.00",Yes
Communities & Local Government,DCLG,14/03/2017,Current (non AEF) Grants to Local Authorities,Local Government & Public Services,CHESTERFIELD BC,,,,232102301,5000365022,,Long Term Empty Property Relief,S40 1LP,"1,429.00",Yes
Communities & Local Government,DCLG,14/03/2017,Current (non AEF) Grants to Local Authorities,Local Government & Public Services,CHICHESTER DC,,,,739800998,5000364287,,Small Business Rates Relief on Second Properties,PO19 1TY,561.00,Yes
Communities & Local Government,DCLG,14/03/2017,Current (non AEF) Grants to Local Authorities,Local Government & Public Services,CHICHESTER DC,,,,739800998,5000364291,,Business Rates Multiplier Cap,PO19 1TY,"3,871.00",Yes
Communities & Local Government,DCLG,14/03/2017,Current (non AEF) Grants to Local Authorities,Local Government & Public Services,CHICHESTER DC,,,,739800998,5000364294,,New Empty Property Relief,PO19 1TY,338.00,Yes
Communities & Local Government,DCLG,14/03/2017,Current (non AEF) Grants to Local Authorities,Local Government & Public Services,CHICHESTER DC,,,,739800998,5000364297,,Doubling of Small Business Rates Relief,PO19 1TY,"55,103.00",Yes
Communities & Local Government,DCLG,14/03/2017,Current (non AEF) Grants to Local Authorities,Local Government & Public Services,CHICHESTER DC,,,,739800998,5000364299,,Long Term Empty Property Relief,PO19 1TY,338.00,Yes
Communities & Local Government,DCLG,14/03/2017,Current (non AEF) Grants to Local Authorities,Local Government & Public Services,CHILTERN DC (HSG),,,,,5000364305,,Doubling of Small Business Rates Relief,HP6 5AW,"25,632.00",Yes
Communities & Local Government,DCLG,14/03/2017,Current (non AEF) Grants to Local Authorities,Local Government & Public Services,CHILTERN DC (HSG),,,,,5000364311,,Business Rates Multiplier Cap,HP6 5AW,"2,151.00",Yes
Communities & Local Government,DCLG,14/03/2017,Current (non AEF) Grants to Local Authorities,Local Government & Public Services,CHORLEY BOROUGH COUNCIL,,,,236415576,5000365025,,Business Rates Multiplier Cap,PR7 1DP,"4,562.00",Yes
Communities & Local Government,DCLG,14/03/2017,Current (non AEF) Grants to Local Authorities,Local Government & Public Services,CHORLEY BOROUGH COUNCIL,,,,236415576,5000365028,,Doubling of Small Business Rates Relief,PR7 1DP,"43,148.00",Yes
Communities & Local Government,DCLG,14/03/2017,Current (non AEF) Grants to Local Authorities,Local Government & Public Services,CHORLEY BOROUGH COUNCIL,,,,236415576,5000365030,,Extended Transitional Relief for Small and Medium,PR7 1DP,558.00,Yes
Communities & Local Government,DCLG,14/03/2017,Current (non AEF) Grants to Local Authorities,Local Government & Public Services,CHORLEY BOROUGH COUNCIL,,,,236415576,5000365033,,Long Term Empty Property Relief,PR7 1DP,351.00,Yes
Communities & Local Government,DCLG,14/03/2017,Current (non AEF) Grants to Local Authorities,Local Government & Public Services,CHRISTCHURCH BC (HSG),,,,227415213,5000364320,,Business Rates Multiplier Cap,BH23 1AZ,"1,790.00",Yes
Communities & Local Government,DCLG,14/03/2017,Current (non AEF) Grants to Local Authorities,Local Government & Public Services,CHRISTCHURCH BC (HSG),,,,227415213,5000364323,,Doubling of Small Business Rates Relief,BH23 1AZ,"21,247.00",Yes
Communities & Local Government,DCLG,14/03/2017,Current (non AEF) Grants to Local Authorities,Local Government & Public Services,CHRISTCHURCH BC (HSG),,,,227415213,5000364326,,Long Term Empty Property Relief,BH23 1AZ,702.00,Yes
Communities & Local Government,DCLG,14/03/2017,Current (non AEF) Grants to Local Authorities,Local Government & Public Services,CITY OF LINCOLN COUNCIL,,,,,5000364562,,Business Rates Multiplier Cap,LN1 1DB,"5,243.00",Yes
Communities & Local Government,DCLG,14/03/2017,Current (non AEF) Grants to Local Authorities,Local Government & Public Services,CITY OF LINCOLN COUNCIL,,,,,5000364565,,Doubling of Small Business Rates Relief,LN1 1DB,"32,578.00",Yes
Communities & Local Government,DCLG,14/03/2017,Current (non AEF) Grants to Local Authorities,Local Government & Public Services,CITY OF LINCOLN COUNCIL,,,,,5000364568,,New Empty Property Relief,LN1 1DB,"5,982.00",Yes
Communities & Local Government,DCLG,14/03/2017,Current (non AEF) Grants to Local Authorities,Local Government & Public Services,CITY OF LINCOLN COUNCIL,,,,,5000364571,,Long Term Empty Property Relief,LN1 1DB,"4,480.00",Yes
Communities & Local Government,DCLG,14/03/2017,Current (non AEF) Grants to Local Authorities,Local Government & Public Services,CITY OF LONDON (HSG),,,,217471460,5000364331,,Doubling of Small Business Rates Relief,EC2P 2EJ,"5,580.00",Yes
Communities & Local Government,DCLG,14/03/2017,Current (non AEF) Grants to Local Authorities,Local Government & Public Services,CITY OF LONDON (HSG),,,,217471460,5000364334,,Business Rates Multiplier Cap,EC2P 2EJ,"44,642.00",Yes
Communities & Local Government,DCLG,14/03/2017,Current (non AEF) Grants to Local Authorities,Local Government & Public Services,CITY OF LONDON (HSG),,,,217471460,5000364337,,New Empty Property Relief,EC2P 2EJ,"3,562.00",Yes
Communities & Local Government,DCLG,14/03/2017,Current (non AEF) Grants to Local Authorities,Local Government & Public Services,CITY OF LONDON (HSG),,,,217471460,5000364340,,Long Term Empty Property Relief,EC2P 2EJ,"2,224.00",Yes
Communities & Local Government,DCLG,14/03/2017,Current (non AEF) Grants to Local Authorities,Local Government & Public Services,CITY OF LONDON (HSG),,,,217471460,5000364343,,Extended Transitional Relief for Small and Medium,EC2P 2EJ,255.00,Yes
Communities & Local Government,DCLG,14/03/2017,Current (non AEF) Grants to Local Authorities,Local Government & Public Services,CITY OF SUNDERLAND (HSG),,,,215599312,5000364345,,Extended Transitional Relief for Small and Medium,SR2 7DN,829.00,Yes
Communities & Local Government,DCLG,14/03/2017,Current (non AEF) Grants to Local Authorities,Local Government & Public Services,CITY OF SUNDERLAND (HSG),,,,215599312,5000364348,,Business Rates Multiplier Cap,SR2 7DN,"97,107.00",Yes
Communities & Local Government,DCLG,14/03/2017,Current (non AEF) Grants to Local Authorities,Local Government & Public Services,CITY OF SUNDERLAND (HSG),,,,215599312,5000364350,,Doubling of Small Business Rates Relief,SR2 7DN,"97,682.00",Yes
Communities & Local Government,DCLG,14/03/2017,Current (non AEF) Grants to Local Authorities,Local Government & Public Services,CITY OF SUNDERLAND (HSG),,,,215599312,5000364353,,Long Term Empty Property Relief,SR2 7DN,"2,586.00",Yes
Communities & Local Government,DCLG,14/03/2017,Current (non AEF) Grants to Local Authorities,Local Government & Public Services,CITY OF WAKEFIELD MDC,,,,,5000365439,,Extended Transitional Relief for Small and Medium,WF1 2QW,829.00,Yes
Communities & Local Government,DCLG,14/03/2017,Current (non AEF) Grants to Local Authorities,Local Government & Public Services,CITY OF WAKEFIELD MDC,,,,,5000365440,,Small Business Rates Relief on Second Properties,WF1 2QW,414.00,Yes
Communities & Local Government,DCLG,14/03/2017,Current (non AEF) Grants to Local Authorities,Local Government & Public Services,CITY OF WAKEFIELD MDC,,,,,5000365441,,Business Rates Multiplier Cap,WF1 2QW,"81,864.00",Yes
Communities & Local Government,DCLG,14/03/2017,Current (non AEF) Grants to Local Authorities,Local Government & Public Services,CITY OF WAKEFIELD MDC,,,,,5000365442,,Doubling of Small Business Rates Relief,WF1 2QW,"165,561.00",Yes
Communities & Local Government,DCLG,14/03/2017,Current (non AEF) Grants to Local Authorities,Local Government & Public Services,CITY OF WAKEFIELD MDC,,,,,5000365444,,Long Term Empty Property Relief,WF1 2QW,"4,090.00",Yes
Communities & Local Government,DCLG,14/03/2017,Current (non AEF) Grants to Local Authorities,Local Government & Public Services,CLEVELAND FIRE AUTHORITY,,Medium,,424872778,5000365616,,Doubling of Small Business Rates Relief,TS25 5TB,"4,345.00",Yes
Communities & Local Government,DCLG,14/03/2017,Current (non AEF) Grants to Local Authorities,Local Government & Public Services,CLEVELAND FIRE AUTHORITY,,Medium,,424872778,5000365620,,Business Rates Multiplier Cap,TS25 5TB,"10,132.00",Yes
Communities & Local Government,DCLG,14/03/2017,Current (non AEF) Grants to Local Authorities,Local Government & Public Services,CODURHAM&DARLINGTON FIRE & RES AUT,,,,424872851,5000365683,,Business Rates Multiplier Cap,DH1 1TW,"7,853.00",Yes
Communities & Local Government,DCLG,14/03/2017,Current (non AEF) Grants to Local Authorities,Local Government & Public Services,CODURHAM&DARLINGTON FIRE & RES AUT,,,,424872851,5000365684,,Doubling of Small Business Rates Relief,DH1 1TW,"5,165.00",Yes
Communities & Local Government,DCLG,14/03/2017,Current (non AEF) Grants to Local Authorities,Local Government & Public Services,COLCHESTER BC,,,,,5000365037,,Extended Transitional Relief for Small and Medium,CO3 3WG,469.00,Yes
Communities & Local Government,DCLG,14/03/2017,Current (non AEF) Grants to Local Authorities,Local Government & Public Services,COLCHESTER BC,,,,,5000365040,,Business Rates Multiplier Cap,CO3 3WG,"6,358.00",Yes
Communities & Local Government,DCLG,14/03/2017,Current (non AEF) Grants to Local Authorities,Local Government & Public Services,COLCHESTER BC,,,,,5000365043,,Doubling of Small Business Rates Relief,CO3 3WG,"53,638.00",Yes
Communities & Local Government,DCLG,14/03/2017,Current (non AEF) Grants to Local Authorities,Local Government & Public Services,COLCHESTER BC,,,,,5000365046,,New Empty Property Relief,CO3 3WG,"4,841.00",Yes
Communities & Local Government,DCLG,14/03/2017,Current (non AEF) Grants to Local Authorities,Local Government & Public Services,COPELAND BC,,,,236414827,5000364356,,Long Term Empty Property Relief,CA28 7NY,251.00,Yes
Communities & Local Government,DCLG,14/03/2017,Current (non AEF) Grants to Local Authorities,Local Government & Public Services,COPELAND BC,,,,236414827,5000364362,,Extended Transitional Relief for Small and Medium,CA28 7NY,338.00,Yes
Communities & Local Government,DCLG,14/03/2017,Current (non AEF) Grants to Local Authorities,Local Government & Public Services,COPELAND BC,,,,236414827,5000364365,,Business Rates Multiplier Cap,CA28 7NY,"1,656.00",Yes
Communities & Local Government,DCLG,14/03/2017,Current (non AEF) Grants to Local Authorities,Local Government & Public Services,COPELAND BC,,,,236414827,5000364368,,Doubling of Small Business Rates Relief,CA28 7NY,"25,556.00",Yes
Communities & Local Government,DCLG,14/03/2017,Current (non AEF) Grants to Local Authorities,Local Government & Public Services,CORBY BC,,,,,5000364371,,Long Term Empty Property Relief,NN17 1GD,"1,692.00",Yes
Communities & Local Government,DCLG,14/03/2017,Current (non AEF) Grants to Local Authorities,Local Government & Public Services,CORBY BC,,,,,5000364374,,Business Rates Multiplier Cap,NN17 1GD,"3,689.00",Yes
Communities & Local Government,DCLG,14/03/2017,Current (non AEF) Grants to Local Authorities,Local Government & Public Services,CORBY BC,,,,,5000364377,,Doubling of Small Business Rates Relief,NN17 1GD,"19,842.00",Yes
Communities & Local Government,DCLG,14/03/2017,Current (non AEF) Grants to Local Authorities,Local Government & Public Services,CORNWALL UNITARY AUTHORITY,,,,211334404,5000365766,,New Empty Property Relief,TR1 3AY,634.00,Yes
Communities & Local Government,DCLG,14/03/2017,Current (non AEF) Grants to Local Authorities,Local Government & Public Services,CORNWALL UNITARY AUTHORITY,,,,211334404,5000365767,,Doubling of Small Business Rates Relief,TR1 3AY,"509,135.00",Yes
Communities & Local Government,DCLG,14/03/2017,Current (non AEF) Grants to Local Authorities,Local Government & Public Services,CORNWALL UNITARY AUTHORITY,,,,211334404,5000365768,,Long Term Empty Property Relief,TR1 3AY,"1,445.00",Yes
Communities & Local Government,DCLG,14/03/2017,Current (non AEF) Grants to Local Authorities,Local Government & Public Services,CORNWALL UNITARY AUTHORITY,,,,211334404,5000365769,,Extended Transitional Relief for Small and Medium,TR1 3AY,"6,930.00",Yes
Communities & Local Government,DCLG,14/03/2017,Current (non AEF) Grants to Local Authorities,Local Government & Public Services,CORNWALL UNITARY AUTHORITY,,,,211334404,5000365770,,Small Business Rates Relief on Second Properties,TR1 3AY,"1,250.00",Yes
Communities & Local Government,DCLG,14/03/2017,Current (non AEF) Grants to Local Authorities,Local Government & Public Services,CORNWALL UNITARY AUTHORITY,,,,211334404,5000365771,,Business Rates Multiplier Cap,TR1 3AY,"118,528.00",Yes
Communities & Local Government,DCLG,14/03/2017,Current (non AEF) Grants to Local Authorities,Local Government & Public Services,COTSWOLD DC,,,,232462085,5000364381,,Business Rates Multiplier Cap,GL7 1PX,"2,516.00",Yes
Communities & Local Government,DCLG,14/03/2017,Current (non AEF) Grants to Local Authorities,Local Government & Public Services,COTSWOLD DC,,,,232462085,5000364384,,Doubling of Small Business Rates Relief,GL7 1PX,"51,291.00",Yes
Communities & Local Government,DCLG,14/03/2017,Current (non AEF) Grants to Local Authorities,Local Government & Public Services,COTSWOLD DC,,,,232462085,5000364395,,Extended Transitional Relief for Small and Medium,GL7 1PX,514.00,Yes
Communities & Local Government,DCLG,14/03/2017,Current (non AEF) Grants to Local Authorities,Local Government & Public Services,COVENTRY CITY CNCL,,,,210384802,5000365052,,Extended Transitional Relief for Small and Medium,CV1 2QL,277.00,Yes
Communities & Local Government,DCLG,14/03/2017,Current (non AEF) Grants to Local Authorities,Local Government & Public Services,COVENTRY CITY CNCL,,,,210384802,5000365055,,Business Rates Multiplier Cap,CV1 2QL,"89,875.00",Yes
Communities & Local Government,DCLG,14/03/2017,Current (non AEF) Grants to Local Authorities,Local Government & Public Services,COVENTRY CITY CNCL,,,,210384802,5000365058,,Doubling of Small Business Rates Relief,CV1 2QL,"116,028.00",Yes
Communities & Local Government,DCLG,14/03/2017,Current (non AEF) Grants to Local Authorities,Local Government & Public Services,COVENTRY CITY CNCL,,,,210384802,5000365061,,New Empty Property Relief,CV1 2QL,379.00,Yes
Communities & Local Government,DCLG,14/03/2017,Current (non AEF) Grants to Local Authorities,Local Government & Public Services,COVENTRY CITY CNCL,,,,210384802,5000365064,,Long Term Empty Property Relief,CV1 2QL,"3,880.00",Yes
Communities & Local Government,DCLG,14/03/2017,Current (non AEF) Grants to Local Authorities,Local Government & Public Services,CRAVEN DC (HSG),,,,,5000364398,,Doubling of Small Business Rates Relief,BD23 1FJ,"39,406.00",Yes
Communities & Local Government,DCLG,14/03/2017,Current (non AEF) Grants to Local Authorities,Local Government & Public Services,CRAVEN DC (HSG),,,,,5000364404,,Long Term Empty Property Relief,BD23 1FJ,822.00,Yes
Communities & Local Government,DCLG,14/03/2017,Current (non AEF) Grants to Local Authorities,Local Government & Public Services,CRAVEN DC (HSG),,,,,5000364405,,Business Rates Multiplier Cap,BD23 1FJ,"1,835.00",Yes
Communities & Local Government,DCLG,14/03/2017,Current (non AEF) Grants to Local Authorities,Local Government & Public Services,CRAWLEY BC,,,,211222500,5000364412,,Doubling of Small Business Rates Relief,RH10 1UZ,"13,443.00",Yes
Communities & Local Government,DCLG,14/03/2017,Current (non AEF) Grants to Local Authorities,Local Government & Public Services,CRAWLEY BC,,,,211222500,5000364415,,Business Rates Multiplier Cap,RH10 1UZ,"6,988.00",Yes
Communities & Local Government,DCLG,14/03/2017,Current (non AEF) Grants to Local Authorities,Local Government & Public Services,CRAWLEY BC,,,,211222500,5000364418,,New Empty Property Relief,RH10 1UZ,"3,751.00",Yes
Communities & Local Government,DCLG,14/03/2017,Current (non AEF) Grants to Local Authorities,Local Government & Public Services,CRAWLEY BC,,,,211222500,5000364421,,Long Term Empty Property Relief,RH10 1UZ,"2,412.00",Yes
Communities & Local Government,DCLG,14/03/2017,Current (non AEF) Grants to Local Authorities,Local Government & Public Services,CROYDON LB,,,,212419973,5000365067,,Doubling of Small Business Rates Relief,CR9 3JS,"77,933.00",Yes
Communities & Local Government,DCLG,14/03/2017,Current (non AEF) Grants to Local Authorities,Local Government & Public Services,CROYDON LB,,,,212419973,5000365073,,Extended Transitional Relief for Small and Medium,CR9 3JS,"33,562.00",Yes
Communities & Local Government,DCLG,14/03/2017,Current (non AEF) Grants to Local Authorities,Local Government & Public Services,CROYDON LB,,,,212419973,5000365076,,Business Rates Multiplier Cap,CR9 3JS,"79,537.00",Yes
Communities & Local Government,DCLG,14/03/2017,Current (non AEF) Grants to Local Authorities,Local Government & Public Services,CUMBRIA COUNTY CNCL,,,,211316542,5000365079,,Doubling of Small Business Rates Relief,CA3 8NA,"73,632.00",Yes
Communities & Local Government,DCLG,14/03/2017,Current (non AEF) Grants to Local Authorities,Local Government & Public Services,CUMBRIA COUNTY CNCL,,,,211316542,5000365085,,Long Term Empty Property Relief,CA3 8NA,987.00,Yes
Communities & Local Government,DCLG,14/03/2017,Current (non AEF) Grants to Local Authorities,Local Government & Public Services,CUMBRIA COUNTY CNCL,,,,211316542,5000365088,,Small Business Rates Relief on Second Properties,CA3 8NA,443.00,Yes
Communities & Local Government,DCLG,14/03/2017,Current (non AEF) Grants to Local Authorities,Local Government & Public Services,CUMBRIA COUNTY CNCL,,,,211316542,5000365091,,Extended Transitional Relief for Small and Medium,CA3 8NA,335.00,Yes
Communities & Local Government,DCLG,14/03/2017,Current (non AEF) Grants to Local Authorities,Local Government & Public Services,CUMBRIA COUNTY CNCL,,,,211316542,5000365094,,Business Rates Multiplier Cap,CA3 8NA,"98,763.00",Yes
Communities & Local Government,DCLG,14/03/2017,Current (non AEF) Grants to Local Authorities,Local Government & Public Services,DACORUM BC,,,,236448643,5000365097,,Doubling of Small Business Rates Relief,HP1 1DN,"37,772.00",Yes
Communities & Local Government,DCLG,14/03/2017,Current (non AEF) Grants to Local Authorities,Local Government & Public Services,DACORUM BC,,,,236448643,5000365105,,Business Rates Multiplier Cap,HP1 1DN,"3,039.00",Yes
Communities & Local Government,DCLG,14/03/2017,Current (non AEF) Grants to Local Authorities,Local Government & Public Services,DARLINGTON BC,,,,,5000365109,,Doubling of Small Business Rates Relief,TS19 1JA,"50,339.00",Yes
Communities & Local Government,DCLG,14/03/2017,Current (non AEF) Grants to Local Authorities,Local Government & Public Services,DARLINGTON BC,,,,,5000365112,,Long Term Empty Property Relief,TS19 1JA,"1,978.00",Yes
Communities & Local Government,DCLG,14/03/2017,Current (non AEF) Grants to Local Authorities,Local Government & Public Services,DARLINGTON BC,,,,,5000365115,,Business Rates Multiplier Cap,TS19 1JA,"25,934.00",Yes
Communities & Local Government,DCLG,14/03/2017,Current (non AEF) Grants to Local Authorities,Local Government & Public Services,DARLINGTON BC,,,,,5000365117,,New Empty Property Relief,TS19 1JA,"5,151.00",Yes
Communities & Local Government,DCLG,14/03/2017,Current (non AEF) Grants to Local Authorities,Local Government & Public Services,DARTFORD BC,,,,225694942,5000364430,,Business Rates Multiplier Cap,DA1 1DR,"5,027.00",Yes
Communities & Local Government,DCLG,14/03/2017,Current (non AEF) Grants to Local Authorities,Local Government & Public Services,DARTFORD BC,,,,225694942,5000364433,,Doubling of Small Business Rates Relief,DA1 1DR,"23,158.00",Yes
Communities & Local Government,DCLG,14/03/2017,Current (non AEF) Grants to Local Authorities,Local Government & Public Services,DARTFORD BC,,,,225694942,5000364439,,Small Business Rates Relief on Second Properties,DA1 1DR,285.00,Yes
Communities & Local Government,DCLG,14/03/2017,Current (non AEF) Grants to Local Authorities,Local Government & Public Services,DAVENTRY DC,,,,239859333,5000364442,,Business Rates Multiplier Cap,NN11 5AF,"6,002.00",Yes
Communities & Local Government,DCLG,14/03/2017,Current (non AEF) Grants to Local Authorities,Local Government & Public Services,DAVENTRY DC,,,,239859333,5000364445,,Doubling of Small Business Rates Relief,NN11 5AF,"28,910.00",Yes
Communities & Local Government,DCLG,14/03/2017,Current (non AEF) Grants to Local Authorities,Local Government & Public Services,DERBY CITY CNCL,,,,229641378,5000365120,,Business Rates Multiplier Cap,DE1 2FS,"70,610.00",Yes
Communities & Local Government,DCLG,14/03/2017,Current (non AEF) Grants to Local Authorities,Local Government & Public Services,DERBY CITY CNCL,,,,229641378,5000365123,,Doubling of Small Business Rates Relief,DE1 2FS,"88,214.00",Yes
Communities & Local Government,DCLG,14/03/2017,Current (non AEF) Grants to Local Authorities,Local Government & Public Services,DERBY CITY CNCL,,,,229641378,5000365126,,New Empty Property Relief,DE1 2FS,"2,072.00",Yes
Communities & Local Government,DCLG,14/03/2017,Current (non AEF) Grants to Local Authorities,Local Government & Public Services,DERBYSHIRE COUNTYCOUNCIL,,,,232152967,5000365132,,Business Rates Multiplier Cap,DE4 3AG,"125,948.00",Yes
Communities & Local Government,DCLG,14/03/2017,Current (non AEF) Grants to Local Authorities,Local Government & Public Services,DERBYSHIRE COUNTYCOUNCIL,,,,232152967,5000365138,,Long Term Empty Property Relief,DE4 3AG,614.00,Yes
Communities & Local Government,DCLG,14/03/2017,Current (non AEF) Grants to Local Authorities,Local Government & Public Services,DERBYSHIRE COUNTYCOUNCIL,,,,232152967,5000365141,,Extended Transitional Relief for Small and Medium,DE4 3AG,792.00,Yes
Communities & Local Government,DCLG,14/03/2017,Current (non AEF) Grants to Local Authorities,Local Government & Public Services,DERBYSHIRE COUNTYCOUNCIL,,,,232152967,5000365147,,Doubling of Small Business Rates Relief,DE4 3AG,"68,856.00",Yes
Communities & Local Government,DCLG,14/03/2017,Current (non AEF) Grants to Local Authorities,Local Government & Public Services,DERBYSHIRE DALES DC,,,,,5000364448,,Extended Transitional Relief for Small and Medium,DE4 3NN,343.00,Yes
Communities & Local Government,DCLG,14/03/2017,Current (non AEF) Grants to Local Authorities,Local Government & Public Services,DERBYSHIRE DALES DC,,,,,5000364451,,Business Rates Multiplier Cap,DE4 3NN,"2,118.00",Yes
Communities & Local Government,DCLG,14/03/2017,Current (non AEF) Grants to Local Authorities,Local Government & Public Services,DERBYSHIRE DALES DC,,,,,5000364454,,Doubling of Small Business Rates Relief,DE4 3NN,"45,728.00",Yes
Communities & Local Government,DCLG,14/03/2017,Current (non AEF) Grants to Local Authorities,Local Government & Public Services,DERBYSHIRE FIRE AND RESCUE SERVICE,,,,424872935,5000365687,,Business Rates Multiplier Cap,DE5 3RS,"10,189.00",Yes
Communities & Local Government,DCLG,14/03/2017,Current (non AEF) Grants to Local Authorities,Local Government & Public Services,DERBYSHIRE FIRE AND RESCUE SERVICE,,,,424872935,5000365691,,Doubling of Small Business Rates Relief,DE5 3RS,"9,451.00",Yes
Communities & Local Government,DCLG,14/03/2017,Current (non AEF) Grants to Local Authorities,Local Government & Public Services,DEVON & SOMERSET FIRE & RESCUE SERV,,Large,,424872976,5000365657,,Business Rates Multiplier Cap,EX3 0NW,"17,728.00",Yes
Communities & Local Government,DCLG,14/03/2017,Current (non AEF) Grants to Local Authorities,Local Government & Public Services,DEVON & SOMERSET FIRE & RESCUE SERV,,Large,,424872976,5000365658,,Long Term Empty Property Relief,EX3 0NW,281.00,Yes
Communities & Local Government,DCLG,14/03/2017,Current (non AEF) Grants to Local Authorities,Local Government & Public Services,DEVON & SOMERSET FIRE & RESCUE SERV,,Large,,424872976,5000365661,,Doubling of Small Business Rates Relief,EX3 0NW,"20,916.00",Yes
Communities & Local Government,DCLG,14/03/2017,Current (non AEF) Grants to Local Authorities,Local Government & Public Services,DEVON COUNTY CNCL,,,,213754018,5000365150,,Business Rates Multiplier Cap,EX2 4QJ,"113,733.00",Yes
Communities & Local Government,DCLG,14/03/2017,Current (non AEF) Grants to Local Authorities,Local Government & Public Services,DEVON COUNTY CNCL,,,,213754018,5000365152,,New Empty Property Relief,EX2 4QJ,462.00,Yes
Communities & Local Government,DCLG,14/03/2017,Current (non AEF) Grants to Local Authorities,Local Government & Public Services,DEVON COUNTY CNCL,,,,213754018,5000365155,,Doubling of Small Business Rates Relief,EX2 4QJ,"102,197.00",Yes
Communities & Local Government,DCLG,14/03/2017,Current (non AEF) Grants to Local Authorities,Local Government & Public Services,DEVON COUNTY CNCL,,,,213754018,5000365158,,Long Term Empty Property Relief,EX2 4QJ,455.00,Yes
Communities & Local Government,DCLG,14/03/2017,Current (non AEF) Grants to Local Authorities,Local Government & Public Services,DEVON COUNTY CNCL,,,,213754018,5000365161,,Extended Transitional Relief for Small and Medium,EX2 4QJ,"1,281.00",Yes
Communities & Local Government,DCLG,14/03/2017,Current (non AEF) Grants to Local Authorities,Local Government & Public Services,DONCASTER MBC,,,,,5000365167,,Long Term Empty Property Relief,DN1 3QA,"1,734.00",Yes
Communities & Local Government,DCLG,14/03/2017,Current (non AEF) Grants to Local Authorities,Local Government & Public Services,DONCASTER MBC,,,,,5000365170,,Extended Transitional Relief for Small and Medium,DN1 3QA,824.00,Yes
Communities & Local Government,DCLG,14/03/2017,Current (non AEF) Grants to Local Authorities,Local Government & Public Services,DONCASTER MBC,,,,,5000365173,,Small Business Rates Relief on Second Properties,DN1 3QA,"1,129.00",Yes
Communities & Local Government,DCLG,14/03/2017,Current (non AEF) Grants to Local Authorities,Local Government & Public Services,DONCASTER MBC,,,,,5000365176,,Business Rates Multiplier Cap,DN1 3QA,"90,504.00",Yes
Communities & Local Government,DCLG,14/03/2017,Current (non AEF) Grants to Local Authorities,Local Government & Public Services,DONCASTER MBC,,,,,5000365179,,New Empty Property Relief,DN1 3QA,"1,692.00",Yes
Communities & Local Government,DCLG,14/03/2017,Current (non AEF) Grants to Local Authorities,Local Government & Public Services,DONCASTER MBC,,,,,5000365182,,Doubling of Small Business Rates Relief,DN1 3QA,"127,029.00",Yes
Communities & Local Government,DCLG,14/03/2017,Current (non AEF) Grants to Local Authorities,Local Government & Public Services,DORSET & WILTSHIRE FIRE & RESCUE AU,,Large,,,5000365785,,Business Rates Multiplier Cap,SP1 3NR,"11,493.00",Yes
Communities & Local Government,DCLG,14/03/2017,Current (non AEF) Grants to Local Authorities,Local Government & Public Services,DORSET & WILTSHIRE FIRE & RESCUE AU,,Large,,,5000365787,,Doubling of Small Business Rates Relief,SP1 3NR,"14,058.00",Yes
Communities & Local Government,DCLG,14/03/2017,Current (non AEF) Grants to Local Authorities,Local Government & Public Services,DORSET COUNTY CNCL,,,,225431279,5000365188,,Doubling of Small Business Rates Relief,DT1 1XJ,"48,050.00",Yes
Communities & Local Government,DCLG,14/03/2017,Current (non AEF) Grants to Local Authorities,Local Government & Public Services,DORSET COUNTY CNCL,,,,225431279,5000365191,,Long Term Empty Property Relief,DT1 1XJ,312.00,Yes
Communities & Local Government,DCLG,14/03/2017,Current (non AEF) Grants to Local Authorities,Local Government & Public Services,DORSET COUNTY CNCL,,,,225431279,5000365194,,Business Rates Multiplier Cap,DT1 1XJ,"43,766.00",Yes
Communities & Local Government,DCLG,14/03/2017,Current (non AEF) Grants to Local Authorities,Local Government & Public Services,DORSET COUNTY CNCL,,,,225431279,5000365197,,New Empty Property Relief,DT1 1XJ,411.00,Yes
Communities & Local Government,DCLG,14/03/2017,Current (non AEF) Grants to Local Authorities,Local Government & Public Services,DORSET COUNTY CNCL,,,,225431279,5000365200,,Extended Transitional Relief for Small and Medium,DT1 1XJ,294.00,Yes
Communities & Local Government,DCLG,14/03/2017,Current (non AEF) Grants to Local Authorities,Local Government & Public Services,DOVER DC,,,,,5000364458,,Long Term Empty Property Relief,CT16 3PD,710.00,Yes
Communities & Local Government,DCLG,14/03/2017,Current (non AEF) Grants to Local Authorities,Local Government & Public Services,DOVER DC,,,,,5000364462,,Extended Transitional Relief for Small and Medium,CT16 3PD,372.00,Yes
Communities & Local Government,DCLG,14/03/2017,Current (non AEF) Grants to Local Authorities,Local Government & Public Services,DOVER DC,,,,,5000364465,,Business Rates Multiplier Cap,CT16 3PD,"5,069.00",Yes
Communities & Local Government,DCLG,14/03/2017,Current (non AEF) Grants to Local Authorities,Local Government & Public Services,DOVER DC,,,,,5000364468,,Doubling of Small Business Rates Relief,CT16 3PD,"43,820.00",Yes
Communities & Local Government,DCLG,14/03/2017,Current (non AEF) Grants to Local Authorities,Local Government & Public Services,DUDLEY MBC,,,,,5000365203,,Small Business Rates Relief on Second Properties,DY1 1HF,682.00,Yes
Communities & Local Government,DCLG,14/03/2017,Current (non AEF) Grants to Local Authorities,Local Government & Public Services,DUDLEY MBC,,,,,5000365206,,Doubling of Small Business Rates Relief,DY1 1HF,"153,415.00",Yes
Communities & Local Government,DCLG,14/03/2017,Current (non AEF) Grants to Local Authorities,Local Government & Public Services,DUDLEY MBC,,,,,5000365209,,Long Term Empty Property Relief,DY1 1HF,"2,796.00",Yes
Communities & Local Government,DCLG,14/03/2017,Current (non AEF) Grants to Local Authorities,Local Government & Public Services,DUDLEY MBC,,,,,5000365212,,New Empty Property Relief,DY1 1HF,"4,144.00",Yes
Communities & Local Government,DCLG,14/03/2017,Current (non AEF) Grants to Local Authorities,Local Government & Public Services,DUDLEY MBC,,,,,5000365215,,Extended Transitional Relief for Small and Medium,DY1 1HF,280.00,Yes
Communities & Local Government,DCLG,14/03/2017,Current (non AEF) Grants to Local Authorities,Local Government & Public Services,DUDLEY MBC,,,,,5000365218,,Business Rates Multiplier Cap,DY1 1HF,"73,555.00",Yes
Communities & Local Government,DCLG,14/03/2017,Current (non AEF) Grants to Local Authorities,Local Government & Public Services,DURHAM COUNTY COUNCIL,,,,224004882,5000365772,,Business Rates Multiplier Cap,DH1 5UE,"139,672.00",Yes
Communities & Local Government,DCLG,14/03/2017,Current (non AEF) Grants to Local Authorities,Local Government & Public Services,DURHAM COUNTY COUNCIL,,,,224004882,5000365773,,Doubling of Small Business Rates Relief,DH1 5UE,"202,756.00",Yes
Communities & Local Government,DCLG,14/03/2017,Current (non AEF) Grants to Local Authorities,Local Government & Public Services,DURHAM COUNTY COUNCIL,,,,224004882,5000365774,,Long Term Empty Property Relief,DH1 5UE,"1,393.00",Yes
Communities & Local Government,DCLG,14/03/2017,Current (non AEF) Grants to Local Authorities,Local Government & Public Services,DURHAM COUNTY COUNCIL,,,,224004882,5000365775,,Small Business Rates Relief on Second Properties,DH1 5UE,617.00,Yes
Communities & Local Government,DCLG,14/03/2017,Current (non AEF) Grants to Local Authorities,Local Government & Public Services,DURHAM COUNTY COUNCIL,,,,224004882,5000365776,,Extended Transitional Relief for Small and Medium,DH1 5UE,422.00,Yes
Communities & Local Government,DCLG,14/03/2017,Current (non AEF) Grants to Local Authorities,Local Government & Public Services,EALING LB,,,,,5000365221,,Small Business Rates Relief on Second Properties,W5 2HL,396.00,Yes
Communities & Local Government,DCLG,14/03/2017,Current (non AEF) Grants to Local Authorities,Local Government & Public Services,EALING LB,,,,,5000365223,,Business Rates Multiplier Cap,W5 2HL,"87,315.00",Yes
Communities & Local Government,DCLG,14/03/2017,Current (non AEF) Grants to Local Authorities,Local Government & Public Services,EALING LB,,,,,5000365226,,New Empty Property Relief,W5 2HL,"13,327.00",Yes
Communities & Local Government,DCLG,14/03/2017,Current (non AEF) Grants to Local Authorities,Local Government & Public Services,EALING LB,,,,,5000365229,,Doubling of Small Business Rates Relief,W5 2HL,"59,661.00",Yes
Communities & Local Government,DCLG,14/03/2017,Current (non AEF) Grants to Local Authorities,Local Government & Public Services,EALING LB,,,,,5000365232,,Long Term Empty Property Relief,W5 2HL,"1,814.00",Yes
Communities & Local Government,DCLG,14/03/2017,Current (non AEF) Grants to Local Authorities,Local Government & Public Services,EAST CAMBRIDGESHIRE DC,,,,236472023,5000364475,,Doubling of Small Business Rates Relief,CB7 4PL,"27,324.00",Yes
Communities & Local Government,DCLG,14/03/2017,Current (non AEF) Grants to Local Authorities,Local Government & Public Services,EAST CAMBRIDGESHIRE DC,,,,236472023,5000364478,,Business Rates Multiplier Cap,CB7 4PL,"3,594.00",Yes
Communities & Local Government,DCLG,14/03/2017,Current (non AEF) Grants to Local Authorities,Local Government & Public Services,EAST DEVON DC,,,,,5000364484,,Doubling of Small Business Rates Relief,EX10 8HL,"73,796.00",Yes
Communities & Local Government,DCLG,14/03/2017,Current (non AEF) Grants to Local Authorities,Local Government & Public Services,EAST DEVON DC,,,,,5000364490,,Extended Transitional Relief for Small and Medium,EX10 8HL,"1,167.00",Yes
Communities & Local Government,DCLG,14/03/2017,Current (non AEF) Grants to Local Authorities,Local Government & Public Services,EAST DEVON DC,,,,,5000364495,,Business Rates Multiplier Cap,EX10 8HL,"3,748.00",Yes
Communities & Local Government,DCLG,14/03/2017,Current (non AEF) Grants to Local Authorities,Local Government & Public Services,EAST DORSET DC,,,,228470456,5000365235,,Business Rates Multiplier Cap,BH21 4HN,"1,836.00",Yes
Communities & Local Government,DCLG,14/03/2017,Current (non AEF) Grants to Local Authorities,Local Government & Public Services,EAST DORSET DC,,,,228470456,5000365238,,Doubling of Small Business Rates Relief,BH21 4HN,"35,242.00",Yes
Communities & Local Government,DCLG,14/03/2017,Current (non AEF) Grants to Local Authorities,Local Government & Public Services,EAST HAMPSHIRE DC,,,,,5000364498,,Business Rates Multiplier Cap,GU31 4EX,"2,419.00",Yes
Communities & Local Government,DCLG,14/03/2017,Current (non AEF) Grants to Local Authorities,Local Government & Public Services,EAST HAMPSHIRE DC,,,,,5000364500,,Small Business Rates Relief on Second Properties,GU31 4EX,944.00,Yes
Communities & Local Government,DCLG,14/03/2017,Current (non AEF) Grants to Local Authorities,Local Government & Public Services,EAST HAMPSHIRE DC,,,,,5000364503,,Doubling of Small Business Rates Relief,GU31 4EX,"43,118.00",Yes
Communities & Local Government,DCLG,14/03/2017,Current (non AEF) Grants to Local Authorities,Local Government & Public Services,EAST HAMPSHIRE DC,,,,,5000364506,,Long Term Empty Property Relief,GU31 4EX,507.00,Yes
Communities & Local Government,DCLG,14/03/2017,Current (non AEF) Grants to Local Authorities,Local Government & Public Services,EAST HERTFORDSHIRE DC,,,,236176954,5000364512,,Long Term Empty Property Relief,SG13 8EQ,467.00,Yes
Communities & Local Government,DCLG,14/03/2017,Current (non AEF) Grants to Local Authorities,Local Government & Public Services,EAST HERTFORDSHIRE DC,,,,236176954,5000364515,,Extended Transitional Relief for Small and Medium,SG13 8EQ,"1,756.00",Yes
Communities & Local Government,DCLG,14/03/2017,Current (non AEF) Grants to Local Authorities,Local Government & Public Services,EAST HERTFORDSHIRE DC,,,,236176954,5000364517,,Business Rates Multiplier Cap,SG13 8EQ,"2,666.00",Yes
Communities & Local Government,DCLG,14/03/2017,Current (non AEF) Grants to Local Authorities,Local Government & Public Services,EAST HERTFORDSHIRE DC,,,,236176954,5000364520,,Doubling of Small Business Rates Relief,SG13 8EQ,"45,036.00",Yes
Communities & Local Government,DCLG,14/03/2017,Current (non AEF) Grants to Local Authorities,Local Government & Public Services,EAST HERTFORDSHIRE DC,,,,236176954,5000364523,,New Empty Property Relief,SG13 8EQ,"1,160.00",Yes
Communities & Local Government,DCLG,14/03/2017,Current (non AEF) Grants to Local Authorities,Local Government & Public Services,EAST LINDSEY DC,,,,,5000364526,,Business Rates Multiplier Cap,LN11 8UP,"7,638.00",Yes
Communities & Local Government,DCLG,14/03/2017,Current (non AEF) Grants to Local Authorities,Local Government & Public Services,EAST LINDSEY DC,,,,,5000364529,,Doubling of Small Business Rates Relief,LN11 8UP,"80,604.00",Yes
Communities & Local Government,DCLG,14/03/2017,Current (non AEF) Grants to Local Authorities,Local Government & Public Services,EAST LINDSEY DC,,,,,5000364535,,Extended Transitional Relief for Small and Medium,LN11 8UP,254.00,Yes
Communities & Local Government,DCLG,14/03/2017,Current (non AEF) Grants to Local Authorities,Local Government & Public Services,EAST LINDSEY DC,,,,,5000364538,,Small Business Rates Relief on Second Properties,LN11 8UP,382.00,Yes
Communities & Local Government,DCLG,14/03/2017,Current (non AEF) Grants to Local Authorities,Local Government & Public Services,EAST NORTHAMPTONSHIRE COUNCIL,,,,227475290,5000364544,,Business Rates Multiplier Cap,NN14 4LZ,"4,625.00",Yes
Communities & Local Government,DCLG,14/03/2017,Current (non AEF) Grants to Local Authorities,Local Government & Public Services,EAST NORTHAMPTONSHIRE COUNCIL,,,,227475290,5000364547,,Doubling of Small Business Rates Relief,NN14 4LZ,"32,542.00",Yes
Communities & Local Government,DCLG,14/03/2017,Current (non AEF) Grants to Local Authorities,Local Government & Public Services,EAST NORTHAMPTONSHIRE COUNCIL,,,,227475290,5000364550,,Small Business Rates Relief on Second Properties,NN14 4LZ,410.00,Yes
Communities & Local Government,DCLG,14/03/2017,Current (non AEF) Grants to Local Authorities,Local Government & Public Services,EAST RIDING OF YORKS (HSG),,,,423159987,5000364553,,Business Rates Multiplier Cap,HU17 9BA,"73,584.00",Yes
Communities & Local Government,DCLG,14/03/2017,Current (non AEF) Grants to Local Authorities,Local Government & Public Services,EAST RIDING OF YORKS (HSG),,,,423159987,5000364556,,Doubling of Small Business Rates Relief,HU17 9BA,"166,353.00",Yes
Communities & Local Government,DCLG,14/03/2017,Current (non AEF) Grants to Local Authorities,Local Government & Public Services,EAST RIDING OF YORKS (HSG),,,,423159987,5000364558,,Extended Transitional Relief for Small and Medium,HU17 9BA,597.00,Yes
Communities & Local Government,DCLG,14/03/2017,Current (non AEF) Grants to Local Authorities,Local Government & Public Services,EAST STAFFORDSHIRE BC,,,,226778033,5000364564,,Business Rates Multiplier Cap,DE14 2EB,"3,620.00",Yes
Communities & Local Government,DCLG,14/03/2017,Current (non AEF) Grants to Local Authorities,Local Government & Public Services,EAST STAFFORDSHIRE BC,,,,226778033,5000364567,,Doubling of Small Business Rates Relief,DE14 2EB,"48,274.00",Yes
Communities & Local Government,DCLG,14/03/2017,Current (non AEF) Grants to Local Authorities,Local Government & Public Services,EAST SUSSEX COUNTY CNCL,,,,,5000365249,,Business Rates Multiplier Cap,BN7 1SF,"83,245.00",Yes
Communities & Local Government,DCLG,14/03/2017,Current (non AEF) Grants to Local Authorities,Local Government & Public Services,EAST SUSSEX COUNTY CNCL,,,,,5000365252,,New Empty Property Relief,BN7 1SF,814.00,Yes
Communities & Local Government,DCLG,14/03/2017,Current (non AEF) Grants to Local Authorities,Local Government & Public Services,EAST SUSSEX COUNTY CNCL,,,,,5000365255,,Doubling of Small Business Rates Relief,BN7 1SF,"56,784.00",Yes
Communities & Local Government,DCLG,14/03/2017,Current (non AEF) Grants to Local Authorities,Local Government & Public Services,EAST SUSSEX COUNTY CNCL,,,,,5000365259,,Long Term Empty Property Relief,BN7 1SF,443.00,Yes
Communities & Local Government,DCLG,14/03/2017,Current (non AEF) Grants to Local Authorities,Local Government & Public Services,EAST SUSSEX COUNTY CNCL,,,,,5000365262,,Extended Transitional Relief for Small and Medium,BN7 1SF,363.00,Yes
Communities & Local Government,DCLG,14/03/2017,Current (non AEF) Grants to Local Authorities,Local Government & Public Services,EAST SUSSEX FIRE AUTHORITY,,Large,,,5000365713,,Business Rates Multiplier Cap,BN21 1EU,"8,649.00",Yes
Communities & Local Government,DCLG,14/03/2017,Current (non AEF) Grants to Local Authorities,Local Government & Public Services,EAST SUSSEX FIRE AUTHORITY,,Large,,,5000365714,,Doubling of Small Business Rates Relief,BN21 1EU,"9,139.00",Yes
Communities & Local Government,DCLG,14/03/2017,Current (non AEF) Grants to Local Authorities,Local Government & Public Services,EASTBOURNE BC,,,,229896428,5000365265,,Business Rates Multiplier Cap,BN21 4TW,"4,648.00",Yes
Communities & Local Government,DCLG,14/03/2017,Current (non AEF) Grants to Local Authorities,Local Government & Public Services,EASTBOURNE BC,,,,229896428,5000365268,,Doubling of Small Business Rates Relief,BN21 4TW,"35,188.00",Yes
Communities & Local Government,DCLG,14/03/2017,Current (non AEF) Grants to Local Authorities,Local Government & Public Services,EASTBOURNE BC,,,,229896428,5000365271,,Long Term Empty Property Relief,BN21 4TW,"1,638.00",Yes
Communities & Local Government,DCLG,14/03/2017,Current (non AEF) Grants to Local Authorities,Local Government & Public Services,EASTBOURNE BC,,,,229896428,5000365274,,Extended Transitional Relief for Small and Medium,BN21 4TW,336.00,Yes
Communities & Local Government,DCLG,14/03/2017,Current (non AEF) Grants to Local Authorities,Local Government & Public Services,EASTLEIGH BOROUGH COUNCIL,,,,232669911,5000365282,,Doubling of Small Business Rates Relief,SO5 9YN,"29,357.00",Yes
Communities & Local Government,DCLG,14/03/2017,Current (non AEF) Grants to Local Authorities,Local Government & Public Services,EASTLEIGH BOROUGH COUNCIL,,,,232669911,5000365285,,Business Rates Multiplier Cap,SO5 9YN,"4,055.00",Yes
Communities & Local Government,DCLG,14/03/2017,Current (non AEF) Grants to Local Authorities,Local Government & Public Services,EDEN DC (HSG),,,,,5000364579,,Business Rates Multiplier Cap,CA11 7QF,"2,557.00",Yes
Communities & Local Government,DCLG,14/03/2017,Current (non AEF) Grants to Local Authorities,Local Government & Public Services,EDEN DC (HSG),,,,,5000364582,,Doubling of Small Business Rates Relief,CA11 7QF,"37,551.00",Yes
Communities & Local Government,DCLG,14/03/2017,Current (non AEF) Grants to Local Authorities,Local Government & Public Services,ELMBRIDGE BC (HSG),,,,,5000364591,,Business Rates Multiplier Cap,KT10 9SD,"4,432.00",Yes
Communities & Local Government,DCLG,14/03/2017,Current (non AEF) Grants to Local Authorities,Local Government & Public Services,ELMBRIDGE BC (HSG),,,,,5000364594,,Doubling of Small Business Rates Relief,KT10 9SD,"32,078.00",Yes
Communities & Local Government,DCLG,14/03/2017,Current (non AEF) Grants to Local Authorities,Local Government & Public Services,ELMBRIDGE BC (HSG),,,,,5000364597,,Long Term Empty Property Relief,KT10 9SD,266.00,Yes
Communities & Local Government,DCLG,14/03/2017,Current (non AEF) Grants to Local Authorities,Local Government & Public Services,ENFIELD LB,,,,,5000365288,,Business Rates Multiplier Cap,EN1 3XF,"82,769.00",Yes
Communities & Local Government,DCLG,14/03/2017,Current (non AEF) Grants to Local Authorities,Local Government & Public Services,ENFIELD LB,,,,,5000365291,,Doubling of Small Business Rates Relief,EN1 3XF,"50,946.00",Yes
Communities & Local Government,DCLG,14/03/2017,Current (non AEF) Grants to Local Authorities,Local Government & Public Services,ENFIELD LB,,,,,5000365294,,Long Term Empty Property Relief,EN1 3XF,"1,264.00",Yes
Communities & Local Government,DCLG,14/03/2017,Current (non AEF) Grants to Local Authorities,Local Government & Public Services,EPPING FOREST DC,,,,775876360,5000363987,,Extended Transitional Relief for Small and Medium,CM16 4BZ,"1,310.00",Yes
Communities & Local Government,DCLG,14/03/2017,Current (non AEF) Grants to Local Authorities,Local Government & Public Services,EPPING FOREST DC,,,,775876360,5000363992,,Doubling of Small Business Rates Relief,CM16 4BZ,"43,365.00",Yes
Communities & Local Government,DCLG,14/03/2017,Current (non AEF) Grants to Local Authorities,Local Government & Public Services,EPPING FOREST DC,,,,775876360,5000363993,,Business Rates Multiplier Cap,CM16 4BZ,"4,798.00",Yes
Communities & Local Government,DCLG,14/03/2017,Current (non AEF) Grants to Local Authorities,Local Government & Public Services,EPPING FOREST DC,,,,775876360,5000363995,,New Empty Property Relief,CM16 4BZ,450.00,Yes
Communities & Local Government,DCLG,14/03/2017,Current (non AEF) Grants to Local Authorities,Local Government & Public Services,EPSOM & EWELL BC,,,,225423094,5000363997,,Business Rates Multiplier Cap,KT18 5BY,"1,630.00",Yes
Communities & Local Government,DCLG,14/03/2017,Current (non AEF) Grants to Local Authorities,Local Government & Public Services,EPSOM & EWELL BC,,,,225423094,5000363999,,Doubling of Small Business Rates Relief,KT18 5BY,"18,242.00",Yes
Communities & Local Government,DCLG,14/03/2017,Current (non AEF) Grants to Local Authorities,Local Government & Public Services,EPSOM & EWELL BC,,,,225423094,5000364001,,Long Term Empty Property Relief,KT18 5BY,368.00,Yes
Communities & Local Government,DCLG,14/03/2017,Current (non AEF) Grants to Local Authorities,Local Government & Public Services,EREWASH BC,,,,211209762,5000364003,,Business Rates Multiplier Cap,DE7 5RP,"4,728.00",Yes
Communities & Local Government,DCLG,14/03/2017,Current (non AEF) Grants to Local Authorities,Local Government & Public Services,EREWASH BC,,,,211209762,5000364005,,Doubling of Small Business Rates Relief,DE7 5RP,"43,411.00",Yes
Communities & Local Government,DCLG,14/03/2017,Current (non AEF) Grants to Local Authorities,Local Government & Public Services,ESSEX COUNTY CNCL,,,,233572986,5000364009,,Doubling of Small Business Rates Relief,CM1 1JZ,"108,373.00",Yes
Communities & Local Government,DCLG,14/03/2017,Current (non AEF) Grants to Local Authorities,Local Government & Public Services,ESSEX COUNTY CNCL,,,,233572986,5000364011,,Long Term Empty Property Relief,CM1 1JZ,866.00,Yes
Communities & Local Government,DCLG,14/03/2017,Current (non AEF) Grants to Local Authorities,Local Government & Public Services,ESSEX COUNTY CNCL,,,,233572986,5000364013,,New Empty Property Relief,CM1 1JZ,"1,283.00",Yes
Communities & Local Government,DCLG,14/03/2017,Current (non AEF) Grants to Local Authorities,Local Government & Public Services,ESSEX COUNTY CNCL,,,,233572986,5000364016,,Extended Transitional Relief for Small and Medium,CM1 1JZ,898.00,Yes
Communities & Local Government,DCLG,14/03/2017,Current (non AEF) Grants to Local Authorities,Local Government & Public Services,ESSEX COUNTY CNCL,,,,233572986,5000364020,,Business Rates Multiplier Cap,CM1 1JZ,"196,615.00",Yes
Communities & Local Government,DCLG,14/03/2017,Current (non AEF) Grants to Local Authorities,Local Government & Public Services,ESSEX FIRE AUTHORITY,,Large,,424873099,5000365605,,Doubling of Small Business Rates Relief,CM8 3HB,"15,084.00",Yes
Communities & Local Government,DCLG,14/03/2017,Current (non AEF) Grants to Local Authorities,Local Government & Public Services,ESSEX FIRE AUTHORITY,,Large,,424873099,5000365607,,Business Rates Multiplier Cap,CM8 3HB,"18,445.00",Yes
Communities & Local Government,DCLG,14/03/2017,Current (non AEF) Grants to Local Authorities,Local Government & Public Services,EXETER CITY COUNCIL,,,,,5000364023,,Extended Transitional Relief for Small and Medium,EX1 1JW,784.00,Yes
Communities & Local Government,DCLG,14/03/2017,Current (non AEF) Grants to Local Authorities,Local Government & Public Services,EXETER CITY COUNCIL,,,,,5000364026,,Business Rates Multiplier Cap,EX1 1JW,"6,122.00",Yes
Communities & Local Government,DCLG,14/03/2017,Current (non AEF) Grants to Local Authorities,Local Government & Public Services,EXETER CITY COUNCIL,,,,,5000364032,,Doubling of Small Business Rates Relief,EX1 1JW,"36,795.00",Yes
Communities & Local Government,DCLG,14/03/2017,Current (non AEF) Grants to Local Authorities,Local Government & Public Services,EXETER CITY COUNCIL,,,,,5000364035,,Long Term Empty Property Relief,EX1 1JW,519.00,Yes
Communities & Local Government,DCLG,14/03/2017,Current (non AEF) Grants to Local Authorities,Local Government & Public Services,FAREHAM BC,,,,228474144,5000364600,,Doubling of Small Business Rates Relief,PO16 7PU,"30,477.00",Yes
Communities & Local Government,DCLG,14/03/2017,Current (non AEF) Grants to Local Authorities,Local Government & Public Services,FAREHAM BC,,,,228474144,5000364603,,Long Term Empty Property Relief,PO16 7PU,806.00,Yes
Communities & Local Government,DCLG,14/03/2017,Current (non AEF) Grants to Local Authorities,Local Government & Public Services,FAREHAM BC,,,,228474144,5000364609,,Business Rates Multiplier Cap,PO16 7PU,"1,473.00",Yes
Communities & Local Government,DCLG,14/03/2017,Current (non AEF) Grants to Local Authorities,Local Government & Public Services,FAREHAM BC,,,,228474144,5000364612,,New Empty Property Relief,PO16 7PU,457.00,Yes
Communities & Local Government,DCLG,14/03/2017,Current (non AEF) Grants to Local Authorities,Local Government & Public Services,FENLAND DC,,,,227476348,5000364618,,Doubling of Small Business Rates Relief,PE15 8NQ,"40,840.00",Yes
Communities & Local Government,DCLG,14/03/2017,Current (non AEF) Grants to Local Authorities,Local Government & Public Services,FENLAND DC,,,,227476348,5000364627,,Business Rates Multiplier Cap,PE15 8NQ,"4,885.00",Yes
Communities & Local Government,DCLG,14/03/2017,Current (non AEF) Grants to Local Authorities,Local Government & Public Services,FOREST HEATH DISTRICT COUNCIL,,,,236678116,5000364633,,Doubling of Small Business Rates Relief,IP28 7EY,"24,695.00",Yes
Communities & Local Government,DCLG,14/03/2017,Current (non AEF) Grants to Local Authorities,Local Government & Public Services,FOREST HEATH DISTRICT COUNCIL,,,,236678116,5000364636,,Business Rates Multiplier Cap,IP28 7EY,"2,388.00",Yes
Communities & Local Government,DCLG,14/03/2017,Current (non AEF) Grants to Local Authorities,Local Government & Public Services,FOREST OF DEAN DC,,,,211278890,5000364642,,Extended Transitional Relief for Small and Medium,GL16 8HG,950.00,Yes
Communities & Local Government,DCLG,14/03/2017,Current (non AEF) Grants to Local Authorities,Local Government & Public Services,FOREST OF DEAN DC,,,,211278890,5000364645,,Business Rates Multiplier Cap,GL16 8HG,"3,221.00",Yes
Communities & Local Government,DCLG,14/03/2017,Current (non AEF) Grants to Local Authorities,Local Government & Public Services,FOREST OF DEAN DC,,,,211278890,5000364648,,Doubling of Small Business Rates Relief,GL16 8HG,"40,552.00",Yes
Communities & Local Government,DCLG,14/03/2017,Current (non AEF) Grants to Local Authorities,Local Government & Public Services,FYLDE BC,,,,227479912,5000364044,,Extended Transitional Relief for Small and Medium,FY8 1LW,372.00,Yes
Communities & Local Government,DCLG,14/03/2017,Current (non AEF) Grants to Local Authorities,Local Government & Public Services,FYLDE BC,,,,227479912,5000364047,,Business Rates Multiplier Cap,FY8 1LW,"1,616.00",Yes
Communities & Local Government,DCLG,14/03/2017,Current (non AEF) Grants to Local Authorities,Local Government & Public Services,FYLDE BC,,,,227479912,5000364050,,Doubling of Small Business Rates Relief,FY8 1LW,"36,258.00",Yes
Communities & Local Government,DCLG,14/03/2017,Current (non AEF) Grants to Local Authorities,Local Government & Public Services,GATESHEAD COUNCIL,,,,216116041,5000364056,,Business Rates Multiplier Cap,NE8 1HH,"68,508.00",Yes
Communities & Local Government,DCLG,14/03/2017,Current (non AEF) Grants to Local Authorities,Local Government & Public Services,GATESHEAD COUNCIL,,,,216116041,5000364059,,Doubling of Small Business Rates Relief,NE8 1HH,"90,255.00",Yes
Communities & Local Government,DCLG,14/03/2017,Current (non AEF) Grants to Local Authorities,Local Government & Public Services,GATESHEAD COUNCIL,,,,216116041,5000364062,,Long Term Empty Property Relief,NE8 1HH,"2,824.00",Yes
Communities & Local Government,DCLG,14/03/2017,Current (non AEF) Grants to Local Authorities,Local Government & Public Services,GATESHEAD COUNCIL,,,,216116041,5000364068,,Extended Transitional Relief for Small and Medium,NE8 1HH,"1,588.00",Yes
Communities & Local Government,DCLG,14/03/2017,Current (non AEF) Grants to Local Authorities,Local Government & Public Services,GEDLING BC,,,,236180337,5000364071,,Business Rates Multiplier Cap,NG5 6LU,"4,092.00",Yes
Communities & Local Government,DCLG,14/03/2017,Current (non AEF) Grants to Local Authorities,Local Government & Public Services,GEDLING BC,,,,236180337,5000364074,,Doubling of Small Business Rates Relief,NG5 6LU,"28,434.00",Yes
Communities & Local Government,DCLG,14/03/2017,Current (non AEF) Grants to Local Authorities,Local Government & Public Services,GLOUCESTER CITY CNCL,,,,230841392,5000364080,,Doubling of Small Business Rates Relief,GL1 2EQ,"33,068.00",Yes
Communities & Local Government,DCLG,14/03/2017,Current (non AEF) Grants to Local Authorities,Local Government & Public Services,GLOUCESTER CITY CNCL,,,,230841392,5000364085,,Business Rates Multiplier Cap,GL1 2EQ,"6,333.00",Yes
Communities & Local Government,DCLG,14/03/2017,Current (non AEF) Grants to Local Authorities,Local Government & Public Services,GLOUCESTER CITY CNCL,,,,230841392,5000364088,,New Empty Property Relief,GL1 2EQ,"3,220.00",Yes
Communities & Local Government,DCLG,14/03/2017,Current (non AEF) Grants to Local Authorities,Local Government & Public Services,GLOUCESTERSHIRE COUNTY CNCL,,,,211272067,5000364091,,Long Term Empty Property Relief,GL1 2TG,386.00,Yes
Communities & Local Government,DCLG,14/03/2017,Current (non AEF) Grants to Local Authorities,Local Government & Public Services,GLOUCESTERSHIRE COUNTY CNCL,,,,211272067,5000364097,,New Empty Property Relief,GL1 2TG,865.00,Yes
Communities & Local Government,DCLG,14/03/2017,Current (non AEF) Grants to Local Authorities,Local Government & Public Services,GLOUCESTERSHIRE COUNTY CNCL,,,,211272067,5000364100,,Extended Transitional Relief for Small and Medium,GL1 2TG,408.00,Yes
Communities & Local Government,DCLG,14/03/2017,Current (non AEF) Grants to Local Authorities,Local Government & Public Services,GLOUCESTERSHIRE COUNTY CNCL,,,,211272067,5000364102,,Business Rates Multiplier Cap,GL1 2TG,"84,710.00",Yes
Communities & Local Government,DCLG,14/03/2017,Current (non AEF) Grants to Local Authorities,Local Government & Public Services,GLOUCESTERSHIRE COUNTY CNCL,,,,211272067,5000364105,,Doubling of Small Business Rates Relief,GL1 2TG,"60,355.00",Yes
Communities & Local Government,DCLG,14/03/2017,Current (non AEF) Grants to Local Authorities,Local Government & Public Services,GOSPORT BOROUGH COUNCIL,,,,239825078,5000364108,,Business Rates Multiplier Cap,PO12 1ED,"3,532.00",Yes
Communities & Local Government,DCLG,14/03/2017,Current (non AEF) Grants to Local Authorities,Local Government & Public Services,GOSPORT BOROUGH COUNCIL,,,,239825078,5000364111,,Doubling of Small Business Rates Relief,PO12 1ED,"24,487.00",Yes
Communities & Local Government,DCLG,14/03/2017,Current (non AEF) Grants to Local Authorities,Local Government & Public Services,GRAVESHAM BC,,,,236178612,5000364117,,Doubling of Small Business Rates Relief,DA12 1AU,"28,426.00",Yes
Communities & Local Government,DCLG,14/03/2017,Current (non AEF) Grants to Local Authorities,Local Government & Public Services,GRAVESHAM BC,,,,236178612,5000364119,,Long Term Empty Property Relief,DA12 1AU,350.00,Yes
Communities & Local Government,DCLG,14/03/2017,Current (non AEF) Grants to Local Authorities,Local Government & Public Services,GRAVESHAM BC,,,,236178612,5000364125,,Business Rates Multiplier Cap,DA12 1AU,"4,008.00",Yes
Communities & Local Government,DCLG,14/03/2017,Current (non AEF) Grants to Local Authorities,Local Government & Public Services,GREAT YARMOUTH BC,,,,292697372,5000364128,,Extended Transitional Relief for Small and Medium,NR30 2QG,483.00,Yes
Communities & Local Government,DCLG,14/03/2017,Current (non AEF) Grants to Local Authorities,Local Government & Public Services,GREAT YARMOUTH BC,,,,292697372,5000364131,,Business Rates Multiplier Cap,NR30 2QG,"5,154.00",Yes
Communities & Local Government,DCLG,14/03/2017,Current (non AEF) Grants to Local Authorities,Local Government & Public Services,GREAT YARMOUTH BC,,,,292697372,5000364134,,Doubling of Small Business Rates Relief,NR30 2QG,"47,553.00",Yes
Communities & Local Government,DCLG,14/03/2017,Current (non AEF) Grants to Local Authorities,Local Government & Public Services,GREATER LONDON AUTHORITY,,,,,5000365777,,Doubling of Small Business Rates Relief,SE10 1AJ,"1,064,766.00",Yes
Communities & Local Government,DCLG,14/03/2017,Current (non AEF) Grants to Local Authorities,Local Government & Public Services,GREATER LONDON AUTHORITY,,,,,5000365778,,Long Term Empty Property Relief,SE10 1AJ,"19,709.00",Yes
Communities & Local Government,DCLG,14/03/2017,Current (non AEF) Grants to Local Authorities,Local Government & Public Services,GREATER LONDON AUTHORITY,,,,,5000365779,,Business Rates Multiplier Cap,SE10 1AJ,"1,223,611.00",Yes
Communities & Local Government,DCLG,14/03/2017,Current (non AEF) Grants to Local Authorities,Local Government & Public Services,GREATER LONDON AUTHORITY,,,,,5000365780,,New Empty Property Relief,SE10 1AJ,"32,708.00",Yes
Communities & Local Government,DCLG,14/03/2017,Current (non AEF) Grants to Local Authorities,Local Government & Public Services,GREATER LONDON AUTHORITY,,,,,5000365781,,Extended Transitional Relief for Small and Medium,SE10 1AJ,"42,472.00",Yes
Communities & Local Government,DCLG,14/03/2017,Current (non AEF) Grants to Local Authorities,Local Government & Public Services,GREATER LONDON AUTHORITY,,,,,5000365782,,Small Business Rates Relief on Second Properties,SE10 1AJ,"1,718.00",Yes
Communities & Local Government,DCLG,14/03/2017,Current (non AEF) Grants to Local Authorities,Local Government & Public Services,GREATER MANCHESTER FIRE (RSG),,,,,5000365555,,Business Rates Multiplier Cap,M2 8US,"35,681.00",Yes
Communities & Local Government,DCLG,14/03/2017,Current (non AEF) Grants to Local Authorities,Local Government & Public Services,GREATER MANCHESTER FIRE (RSG),,,,,5000365556,,Doubling of Small Business Rates Relief,M2 8US,"27,084.00",Yes
Communities & Local Government,DCLG,14/03/2017,Current (non AEF) Grants to Local Authorities,Local Government & Public Services,GREATER MANCHESTER FIRE (RSG),,,,,5000365558,,Long Term Empty Property Relief,M2 8US,705.00,Yes
Communities & Local Government,DCLG,14/03/2017,Current (non AEF) Grants to Local Authorities,Local Government & Public Services,GREENWICH LB,,,,,5000364137,,Doubling of Small Business Rates Relief,SE18 6HQ,"43,152.00",Yes
Communities & Local Government,DCLG,14/03/2017,Current (non AEF) Grants to Local Authorities,Local Government & Public Services,GREENWICH LB,,,,,5000364140,,New Empty Property Relief,SE18 6HQ,"2,030.00",Yes
Communities & Local Government,DCLG,14/03/2017,Current (non AEF) Grants to Local Authorities,Local Government & Public Services,GREENWICH LB,,,,,5000364145,,Business Rates Multiplier Cap,SE18 6HQ,"94,539.00",Yes
Communities & Local Government,DCLG,14/03/2017,Current (non AEF) Grants to Local Authorities,Local Government & Public Services,GUILDFORD BC,,,,236663720,5000364657,,Extended Transitional Relief for Small and Medium,GU2 5BB,285.00,Yes
Communities & Local Government,DCLG,14/03/2017,Current (non AEF) Grants to Local Authorities,Local Government & Public Services,GUILDFORD BC,,,,236663720,5000364660,,Business Rates Multiplier Cap,GU2 5BB,"5,819.00",Yes
Communities & Local Government,DCLG,14/03/2017,Current (non AEF) Grants to Local Authorities,Local Government & Public Services,GUILDFORD BC,,,,236663720,5000364666,,Doubling of Small Business Rates Relief,GU2 5BB,"30,784.00",Yes
Communities & Local Government,DCLG,14/03/2017,Current (non AEF) Grants to Local Authorities,Local Government & Public Services,HALTON BC (HSG),,,,,5000364672,,Small Business Rates Relief on Second Properties,WA8 7QF,361.00,Yes
Communities & Local Government,DCLG,14/03/2017,Current (non AEF) Grants to Local Authorities,Local Government & Public Services,HALTON BC (HSG),,,,,5000364675,,Business Rates Multiplier Cap,WA8 7QF,"40,211.00",Yes
Communities & Local Government,DCLG,14/03/2017,Current (non AEF) Grants to Local Authorities,Local Government & Public Services,HALTON BC (HSG),,,,,5000364678,,Doubling of Small Business Rates Relief,WA8 7QF,"41,366.00",Yes
Communities & Local Government,DCLG,14/03/2017,Current (non AEF) Grants to Local Authorities,Local Government & Public Services,HALTON BC (HSG),,,,,5000364681,,Long Term Empty Property Relief,WA8 7QF,"1,085.00",Yes
Communities & Local Government,DCLG,14/03/2017,Current (non AEF) Grants to Local Authorities,Local Government & Public Services,HAMBLETON DC (HSG),,,,503481319,5000364684,,Doubling of Small Business Rates Relief,DL6 2UU,"47,717.00",Yes
Communities & Local Government,DCLG,14/03/2017,Current (non AEF) Grants to Local Authorities,Local Government & Public Services,HAMBLETON DC (HSG),,,,503481319,5000364687,,New Empty Property Relief,DL6 2UU,677.00,Yes
Communities & Local Government,DCLG,14/03/2017,Current (non AEF) Grants to Local Authorities,Local Government & Public Services,HAMBLETON DC (HSG),,,,503481319,5000364689,,Long Term Empty Property Relief,DL6 2UU,677.00,Yes
Communities & Local Government,DCLG,14/03/2017,Current (non AEF) Grants to Local Authorities,Local Government & Public Services,HAMBLETON DC (HSG),,,,503481319,5000364692,,Business Rates Multiplier Cap,DL6 2UU,"2,464.00",Yes
Communities & Local Government,DCLG,14/03/2017,Current (non AEF) Grants to Local Authorities,Local Government & Public Services,HAMBLETON DC (HSG),,,,503481319,5000364698,,Small Business Rates Relief on Second Properties,DL6 2UU,490.00,Yes
Communities & Local Government,DCLG,14/03/2017,Current (non AEF) Grants to Local Authorities,Local Government & Public Services,HAMMERSMITH & FULHAM LB,,,,216929489,5000364161,,Doubling of Small Business Rates Relief,W6 9JU,"29,054.00",Yes
Communities & Local Government,DCLG,14/03/2017,Current (non AEF) Grants to Local Authorities,Local Government & Public Services,HAMMERSMITH & FULHAM LB,,,,216929489,5000364164,,New Empty Property Relief,W6 9JU,"8,945.00",Yes
Communities & Local Government,DCLG,14/03/2017,Current (non AEF) Grants to Local Authorities,Local Government & Public Services,HAMMERSMITH & FULHAM LB,,,,216929489,5000364167,,Long Term Empty Property Relief,W6 9JU,616.00,Yes
Communities & Local Government,DCLG,14/03/2017,Current (non AEF) Grants to Local Authorities,Local Government & Public Services,HAMMERSMITH & FULHAM LB,,,,216929489,5000364170,,Business Rates Multiplier Cap,W6 9JU,"64,019.00",Yes
Communities & Local Government,DCLG,14/03/2017,Current (non AEF) Grants to Local Authorities,Local Government & Public Services,HAMPSHIRE COUNTY COUNCIL,,,,211325832,5000364174,,Doubling of Small Business Rates Relief,SO23 8UB,"89,133.00",Yes
Communities & Local Government,DCLG,14/03/2017,Current (non AEF) Grants to Local Authorities,Local Government & Public Services,HAMPSHIRE COUNTY COUNCIL,,,,211325832,5000364177,,New Empty Property Relief,SO23 8UB,293.00,Yes
Communities & Local Government,DCLG,14/03/2017,Current (non AEF) Grants to Local Authorities,Local Government & Public Services,HAMPSHIRE COUNTY COUNCIL,,,,211325832,5000364180,,Long Term Empty Property Relief,SO23 8UB,"2,245.00",Yes
Communities & Local Government,DCLG,14/03/2017,Current (non AEF) Grants to Local Authorities,Local Government & Public Services,HAMPSHIRE COUNTY COUNCIL,,,,211325832,5000364183,,Extended Transitional Relief for Small and Medium,SO23 8UB,406.00,Yes
Communities & Local Government,DCLG,14/03/2017,Current (non AEF) Grants to Local Authorities,Local Government & Public Services,HAMPSHIRE COUNTY COUNCIL,,,,211325832,5000364186,,Business Rates Multiplier Cap,SO23 8UB,"134,996.00",Yes
Communities & Local Government,DCLG,14/03/2017,Current (non AEF) Grants to Local Authorities,Local Government & Public Services,HAMPSHIRE COUNTY COUNCIL,,,,211325832,5000364189,,Small Business Rates Relief on Second Properties,SO23 8UB,559.00,Yes
